Local authority department which incurred the expenditure,Service Division,Cost Centre,Summary of the Purpose of Expenditure,Expense Type,Expense Code,Detailed Expense Type,Date of Transaction,Transaction Number,Beneficiary,Merchant Category Number,Merchant Category,Gross Amount,VAT,Net Amount
"Regeneration, Economy and Growth",Business Durham CL0850,030689,Inward Investment and Aftercare,Supplies and Services,336005,Advertising E336,01-Dec-2020,000009300927625,FACEBK JMMLRYW4Z2,7311,Advertising other than for staff,1.63,0.00,1.63
Children and Young Peoples Services,Head of Early Help Inclusion & Vulnerable Children.,074000,TTF-Attachment and Results,Supplies and Services,332047,Printing Stationery and Gen Off Exps,01-Dec-2020,000009300928457,FREEPIK & FLATICON,5111,Stationery,0.99,0.00,0.99
Children and Young Peoples Services,Head of Education and Skills,071801,Selby Cottage Childcare Centre,Supplies and Services,324117,Provisions E324,01-Dec-2020,000009303446143,ASDA GROCERIES ONLINE,5411,Catering costs - provisions,50.35,0.00,50.35
Children and Young Peoples Services,Head of Education and Skills,071801,Selby Cottage Childcare Centre,Supplies and Services,324117,Provisions E324,01-Dec-2020,000009303446171,B&M 228 - CHESTER-LE-S,5399,Catering costs - provisions,7.75,0.00,7.75
Children and Young Peoples Services,Head of Education and Skills,071801,Selby Cottage Childcare Centre,Supplies and Services,328041,Clothing uniforms and laundry E328,01-Dec-2020,000009303446177,POUNDLAND LTD 1330,5310,Clothing uniforms and laundry,31.10,0.00,31.10
"Regeneration, Economy and Growth",Corporate Property and Land,036000,Asset Management 036000,Supplies and Services,304403,Equipment and Materials,01-Dec-2020,000009303446213,AMZNMKTPLACE AMAZON.CO,5999,Other consumables,116.79,0.00,116.79
Resources BK0010,Legal & Democratic Services,067910,Democratic Representation 067910,Supplies and Services,344033,Telephones,01-Dec-2020,000009303446225,WWW.MOBILEFUN.CO.U,4812,Telephones general-all costs,38.69,0.00,38.69
Children and Young Peoples Services,Head of Childrens Social Care,085357,LAC Bespoke Placements,Supplies and Services,352001,Conference Expenses,01-Dec-2020,000009303446311,Hotel on Booking.com,7011,Conferencesseminars fees etc,924.00,0.00,924.00
Children and Young Peoples Services,Head of Childrens Social Care,085501,Child Care Cases Legal Expenses,Supplies and Services,304403,Equipment and Materials,01-Dec-2020,000009303446343,DARLINGTON BOROUGH COU,9399,Other consumables,11.00,0.00,11.00
Children and Young Peoples Services,Head of Childrens Social Care,085332,Middlestone Moor CU,Supplies and Services,324117,Provisions E324,01-Dec-2020,000009303446447,TESCO STORES 2371,5411,Catering costs - provisions,130.20,0.00,130.20
Children and Young Peoples Services,Head of Early Help Inclusion & Vulnerable Children.,085957,Secure Management,Supplies and Services,304403,Equipment and Materials,01-Dec-2020,000009303447235,AMZNMKTPLACE AMAZON.CO,5999,Other consumables,78.80,0.00,78.80
Children and Young Peoples Services,Head of Early Help Inclusion & Vulnerable Children.,085957,Secure Management,Supplies and Services,304403,Equipment and Materials,01-Dec-2020,000009303447245,AMZNMktplace,5999,Other consumables,3.98,0.66,3.32
Children and Young Peoples Services,Head of Childrens Social Care,085361,LAC & Permanence Team 1,Supplies and Services,304403,Equipment and Materials,01-Dec-2020,000009303447405,WWW.DURHAM.GOV.UK,9399,Other consumables,11.00,0.00,11.00
Children and Young Peoples Services,Head of Childrens Social Care,085342,16 Hickstead Rise (previously 9 Cedar Ave),Supplies and Services,304999,Equipment and Materials,01-Dec-2020,000009303447827,HOME BARGAINS,5251,Misc equipment tools and materials,9.87,0.00,9.87
Children and Young Peoples Services,Head of Childrens Social Care,085342,16 Hickstead Rise (previously 9 Cedar Ave),Supplies and Services,304999,Equipment and Materials,01-Dec-2020,000009303447831,HOME BARGAINS,5251,Misc equipment tools and materials,9.85,0.00,9.85
Children and Young Peoples Services,Head of Childrens Social Care,085342,16 Hickstead Rise (previously 9 Cedar Ave),Supplies and Services,324117,Provisions E324,01-Dec-2020,000009303447839,TESCO STORES 6329,5411,Catering costs - provisions,47.20,0.00,47.20
Children and Young Peoples Services,Head of Childrens Social Care,085342,16 Hickstead Rise (previously 9 Cedar Ave),Supplies and Services,324117,Provisions E324,01-Dec-2020,000009303447851,TESCO STORES 6329,5411,Catering costs - provisions,20.58,0.00,20.58
Children and Young Peoples Services,Head of Education and Skills,071732,Dean Bank Childcare,Supplies and Services,324117,Provisions E324,01-Dec-2020,000009303447907,ASDA GROCERIES ONLINE,5411,Catering costs - provisions,61.64,0.00,61.64
Children and Young Peoples Services,Head of Education and Skills,071732,Dean Bank Childcare,Supplies and Services,324117,Provisions E324,01-Dec-2020,000009303447913,ASDA GROCERIES ONLINE,5411,Catering costs - provisions,30.61,0.00,30.61
"Regeneration, Economy and Growth",Development and Housing,031500,Housing Solutions - Core Team,Supplies and Services,352001,Conference Expenses,01-Dec-2020,000009303448157,AYCLIFFE BIZ,7011,Conferencesseminars fees etc,76.00,0.00,76.00
Children and Young Peoples Services,Head of Childrens Social Care,085334,West Rainton Satelite Home,Supplies and Services,328041,Clothing uniforms and laundry E328,01-Dec-2020,000009303448319,The Range,5311,Clothing uniforms and laundry,74.35,0.00,74.35
Resources BK0010,Business Support,052986,CYPS - Locality and Operational Support,Supplies and Services,324117,Provisions E324,01-Dec-2020,000009303448377,ASDA GROCERIES ONLINE,5411,Catering costs - provisions,147.58,0.00,147.58
Resources BK0010,Business Support,052986,CYPS - Locality and Operational Support,Supplies and Services,324117,Provisions E324,01-Dec-2020,000009303448387,ASDA GROCERIES ONLINE,5411,Catering costs - provisions,-2.40,0.00,-2.40
Neighbourhoods and Climate Change,Environmental Services,010919,C&G - Countryside Site Management,Supplies and Services,304403,Equipment and Materials,01-Dec-2020,000009303448577,AMZNMktplace,5999,Other consumables,27.63,0.00,27.63
"Regeneration, Economy and Growth",Development and Housing,031500,Housing Solutions - Core Team,Supplies and Services,352001,Conference Expenses,01-Dec-2020,000009303448677,AYCLIFFE BIZ,7011,Conferencesseminars fees etc,152.00,0.00,152.00
"Regeneration, Economy and Growth",Development and Housing,031500,Housing Solutions - Core Team,Supplies and Services,352001,Conference Expenses,01-Dec-2020,000009303448683,HI NEWCASTLE WASHI,7011,Conferencesseminars fees etc,450.00,0.00,450.00
"Regeneration, Economy and Growth",Development and Housing,031500,Housing Solutions - Core Team,Supplies and Services,352001,Conference Expenses,01-Dec-2020,000009303448693,HI NEWCASTLE WASHI,7011,Conferencesseminars fees etc,167.00,0.00,167.00
Children and Young Peoples Services,Head of Childrens Social Care,085331,New Lea Childrens Home,Supplies and Services,304221,Equipment and Materials,01-Dec-2020,000009303448717,LINTZFORD GARDEN CENTR,5261,Direct materials,44.99,0.00,44.99
Children and Young Peoples Services,Head of Childrens Social Care,085331,New Lea Childrens Home,Supplies and Services,324117,Provisions E324,01-Dec-2020,000009303448727,PPOINT_ PVR and CO LTD,5499,Catering costs - provisions,14.79,0.00,14.79
Children and Young Peoples Services,Head of Childrens Social Care,085331,New Lea Childrens Home,Supplies and Services,324117,Provisions E324,01-Dec-2020,000009303448733,B&M 519 - CONSETT,5399,Catering costs - provisions,46.78,0.00,46.78
Children and Young Peoples Services,Head of Childrens Social Care,085331,New Lea Childrens Home,Supplies and Services,324117,Provisions E324,01-Dec-2020,000009303448743,B&M 519 - CONSETT,5399,Catering costs - provisions,48.98,0.00,48.98
Children and Young Peoples Services,Head of Education and Skills,071802,Louisa Cent Nursery,Supplies and Services,324117,Provisions E324,01-Dec-2020,000009303449151,ALDI STORES,5411,Catering costs - provisions,3.72,0.00,3.72
Children and Young Peoples Services,Head of Childrens Social Care,085352,Tow Law CU,Supplies and Services,304259,Equipment and Materials,01-Dec-2020,000009303449291,SHARKNINJA SCUK,5722,Equipment-purchase and rental,14.99,0.00,14.99
Children and Young Peoples Services,Head of Early Help Inclusion & Vulnerable Children.,085965,Barnard,Supplies and Services,304403,Equipment and Materials,01-Dec-2020,000009303449679,AMZNMktplace,5999,Other consumables,5.89,0.98,4.91
Children and Young Peoples Services,Head of Early Help Inclusion & Vulnerable Children.,085965,Barnard,Supplies and Services,304403,Equipment and Materials,01-Dec-2020,000009303449685,AMZNMktplace,5999,Other consumables,19.16,0.00,19.16
Children and Young Peoples Services,Head of Early Help Inclusion & Vulnerable Children.,085957,Secure Management,Supplies and Services,384999,Miscellaneous Expenses,01-Dec-2020,000009303449699,Amazon.co.uk MY14148M4,5969,Other expenses,28.50,4.75,23.75
Children and Young Peoples Services,Head of Early Help Inclusion & Vulnerable Children.,085965,Barnard,Supplies and Services,384999,Miscellaneous Expenses,01-Dec-2020,000009303449709,Amazon.co.uk MY4X99QV4,5969,Other expenses,22.18,0.00,22.18
Children and Young Peoples Services,Head of Early Help Inclusion & Vulnerable Children.,085957,Secure Management,Supplies and Services,304403,Equipment and Materials,01-Dec-2020,000009303449713,AMZNMktplace,5999,Other consumables,7.98,1.34,6.64
Children and Young Peoples Services,Head of Early Help Inclusion & Vulnerable Children.,085965,Barnard,Supplies and Services,384999,Miscellaneous Expenses,01-Dec-2020,000009303449719,AMZNMktplace,5999,Other expenses,59.26,0.00,59.26
Children and Young Peoples Services,Head of Early Help Inclusion & Vulnerable Children.,085957,Secure Management,Supplies and Services,304245,Equipment and Materials,01-Dec-2020,000009303449727,SCREWFIX DIRECT,5211,Materials,12.49,2.08,10.41
Adult and Health Services,Head of Adults,053815,The Orchards Extra Care,Supplies and Services,308011,Furniture,01-Dec-2020,000009303449749,AMZ Amazon.co.uk,5969,Furniture repair and replacement,-156.47,-26.08,-130.39
Resources BK0010,Business Support,052986,CYPS - Locality and Operational Support,Supplies and Services,304259,Equipment and Materials,01-Dec-2020,000009303449783,CURRYS ONLINE,5732,Equipment-purchase and rental,49.99,0.00,49.99
Children and Young Peoples Services,Head of Childrens Social Care,085631,Families First Peterlee,Supplies and Services,304259,Equipment and Materials,01-Dec-2020,000009303449793,AMZNMKTPLACE AMAZON.CO,5999,Equipment-purchase and rental,7.99,1.33,6.66
Children and Young Peoples Services,Head of Education and Skills,071903,Early Years Sustainability,Supplies and Services,304403,Equipment and Materials,01-Dec-2020,000009303449809,FAIRY DUST TEACHING,5734,Other consumables,20.29,0.00,20.29
Children and Young Peoples Services,Head of Education and Skills,071802,Louisa Cent Nursery,Supplies and Services,304999,Equipment and Materials,01-Dec-2020,000009303450067,HOME BARGAINS CONSETT,5251,Misc equipment tools and materials,6.12,0.00,6.12
Children and Young Peoples Services,Head of Education and Skills,070169,Durham SSP,Supplies and Services,384199,Miscellaneous Expenses,01-Dec-2020,000009303450129,AMZNMKTPLACE AMAZON.CO,5999,Other hired and contracted services,23.99,0.00,23.99
Children and Young Peoples Services,Head of Childrens Social Care,085633,Families First Chester-Le-Street,Supplies and Services,364340,Grants to Voluntary Organisations,01-Dec-2020,000009303450173,GO NORTH EAST LIMITED,4131,Contact expenses,20.00,0.00,20.00
Neighbourhoods and Climate Change,Environmental Services,031200,North Pennines Core,Supplies and Services,328041,Clothing uniforms and laundry E328,01-Dec-2020,000009303450311,WWW.THEWORKS.CO.UK,5310,Clothing uniforms and laundry,39.00,0.00,39.00
Children and Young Peoples Services,Head of Childrens Social Care,085333,Coxhoe Satelite Home,Supplies and Services,324117,Provisions E324,01-Dec-2020,000009303450375,TESCO STORES 2371,5411,Catering costs - provisions,52.16,0.00,52.16
Children and Young Peoples Services,Head of Childrens Social Care,085333,Coxhoe Satelite Home,Supplies and Services,324117,Provisions E324,01-Dec-2020,000009303450379,TESCO STORES 2371,5411,Catering costs - provisions,36.50,0.00,36.50
Neighbourhoods and Climate Change,Environmental Services,010301,C&G - North Grounds Maintenance,Supplies and Services,304403,Equipment and Materials,01-Dec-2020,000009303450391,AMZNMKTPLACE AMAZON.CO,5999,Other consumables,43.19,0.00,43.19
Children and Young Peoples Services,Head of Childrens Social Care,085331,New Lea Childrens Home,Supplies and Services,324117,Provisions E324,01-Dec-2020,000009303450495,B&M 681 - DURHAM,5399,Catering costs - provisions,60.53,0.00,60.53
Children and Young Peoples Services,Head of Childrens Social Care,085331,New Lea Childrens Home,Supplies and Services,324117,Provisions E324,01-Dec-2020,000009303450507,TESCO STORES 2371,5411,Catering costs - provisions,78.09,0.00,78.09
Resources BK0010,Business Support,069010,Administration 069010,Employees,040149,Recruitment Instruction and Training,01-Dec-2020,000009303450589,THOMSON REUTERS UK LTD,8999,Training-all costs,225.25,0.00,225.25
Resources BK0010,Business Support,069010,Administration 069010,Supplies and Services,342033,Computers and Communications,01-Dec-2020,000009303450599,STK Shutterstock,7333,Computer hardware,369.00,0.00,369.00
"Regeneration, Economy and Growth",Development and Housing,031500,Housing Solutions - Core Team,Supplies and Services,352001,Conference Expenses,01-Dec-2020,000009303450651,H52STANLEY,7011,Conferencesseminars fees etc,176.00,0.00,176.00
Children and Young Peoples Services,Head of Early Help Inclusion & Vulnerable Children.,085957,Secure Management,Supplies and Services,304403,Equipment and Materials,01-Dec-2020,000009306432911,AMZNMKTPLACE AMAZON.CO,5999,Other consumables,5.06,0.00,5.06
Children and Young Peoples Services,Head of Education and Skills,071732,Dean Bank Childcare,Supplies and Services,304403,Equipment and Materials,01-Dec-2020,000009306433163,AMZNMKTPLACE AMAZON.CO,5999,Other consumables,7.86,1.31,6.55
Children and Young Peoples Services,Head of Education and Skills,071732,Dean Bank Childcare,Supplies and Services,304403,Equipment and Materials,01-Dec-2020,000009306433163 - 1,AMZNMKTPLACE AMAZON.CO,5999,Other consumables,3.97,,3.97
Children and Young Peoples Services,Head of Education and Skills,071732,Dean Bank Childcare,Supplies and Services,304403,Equipment and Materials,01-Dec-2020,000009306433187,AMZNMKTPLACE AMAZON.CO,5999,Other consumables,5.94,0.00,5.94
Children and Young Peoples Services,Head of Early Help Inclusion & Vulnerable Children.,088101,CLS 0-19 Community Family Hub,Supplies and Services,384302,Miscellaneous Expenses,02-Dec-2020,000009303449551,Hobbycraft Trading Lim,5970,Activity expenses,140.00,0.00,140.00
Children and Young Peoples Services,Head of Education and Skills,071903,Early Years Sustainability,Supplies and Services,304403,Equipment and Materials,02-Dec-2020,000009303449813,FAIRY DUST TEACHING,5734,Other consumables,0.56,0.00,0.56
Children and Young Peoples Services,Head of Childrens Social Care,085341,High Etherley Satelite Home,Supplies and Services,328041,Clothing uniforms and laundry E328,02-Dec-2020,000009306432089,ARGOS LTD,5310,Clothing uniforms and laundry,211.00,0.00,211.00
Children and Young Peoples Services,Head of Childrens Social Care,085341,High Etherley Satelite Home,Supplies and Services,328041,Clothing uniforms and laundry E328,02-Dec-2020,000009306432103,ARGOS LTD,5310,Clothing uniforms and laundry,255.95,0.00,255.95
"Regeneration, Economy and Growth",Business Durham CL0850,030689,Inward Investment and Aftercare,Supplies and Services,304403,Equipment and Materials,02-Dec-2020,000009306432111,ADOBE CREATIVE CLOUD,5734,Other consumables,49.94,0.00,49.94
"Regeneration, Economy and Growth",Business Durham CL0850,030689,Inward Investment and Aftercare,Supplies and Services,342222,Computers and Communications,02-Dec-2020,000009306432123,FASTHOSTS INTERNET,4816,Comp hardware purch-network servers,67.20,0.00,67.20
"Regeneration, Economy and Growth",Business Durham CL0850,030689,Inward Investment and Aftercare,Supplies and Services,342222,Computers and Communications,02-Dec-2020,000009306432135,FASTHOSTS INTERNET,4816,Comp hardware purch-network servers,72.66,0.00,72.66
Children and Young Peoples Services,Head of Education and Skills,071801,Selby Cottage Childcare Centre,Supplies and Services,324117,Provisions E324,02-Dec-2020,000009306432151,JR HOLLAND FOODSERVICE,5499,Catering costs - provisions,356.12,0.00,356.12
Children and Young Peoples Services,Head of Education and Skills,071801,Selby Cottage Childcare Centre,Supplies and Services,324117,Provisions E324,02-Dec-2020,000009306432165,TESCO STORES 2278,5411,Catering costs - provisions,86.63,0.00,86.63
Adult and Health Services,Head of Adults,055302,Durham Pathways,Supplies and Services,304403,Equipment and Materials,02-Dec-2020,000009306432363,AMZNMKTPLACE AMAZON.CO,5999,Other consumables,13.98,2.34,11.64
Adult and Health Services,Head of Adults,055302,Durham Pathways,Supplies and Services,384999,Miscellaneous Expenses,02-Dec-2020,000009306432371,Amazon.co.uk MY2MW7DM4,5969,Other expenses,27.81,4.64,23.17
Adult and Health Services,Head of Adults,055302,Durham Pathways,Supplies and Services,384999,Miscellaneous Expenses,02-Dec-2020,000009306432379,Amazon.co.uk MY79Z1D34,5969,Other expenses,5.99,1.00,4.99
"Regeneration, Economy and Growth",Culture Sport and Tourism,030708,VCD - Marketing & Information,Supplies and Services,384199,Miscellaneous Expenses,02-Dec-2020,000009306432397,MAILCHIMP MONTHLY,5968,Other hired and contracted services,211.91,0.00,211.91
Children and Young Peoples Services,Head of Childrens Social Care,085341,High Etherley Satelite Home,Supplies and Services,304999,Equipment and Materials,02-Dec-2020,000009306432593,HOME BARGAINS,5251,Misc equipment tools and materials,5.36,0.00,5.36
Children and Young Peoples Services,Head of Childrens Social Care,085341,High Etherley Satelite Home,Supplies and Services,324117,Provisions E324,02-Dec-2020,000009306432597,TESCO STORES 6329,5411,Catering costs - provisions,22.50,0.00,22.50
Children and Young Peoples Services,Head of Childrens Social Care,085341,High Etherley Satelite Home,Supplies and Services,304999,Equipment and Materials,02-Dec-2020,000009306432609,SUPERDRUG STORES PLC,5912,Misc equipment tools and materials,15.00,0.00,15.00
Children and Young Peoples Services,Head of Childrens Social Care,085341,High Etherley Satelite Home,Supplies and Services,304259,Equipment and Materials,02-Dec-2020,000009306432615,JD SPORTS PLC,5941,Equipment-purchase and rental,80.40,0.00,80.40
Children and Young Peoples Services,Head of Childrens Social Care,085380,Operations Manager LAC Resources,Supplies and Services,328041,Clothing uniforms and laundry E328,02-Dec-2020,000009306432761,ARGOS LTD,5310,Clothing uniforms and laundry,103.95,0.00,103.95
Children and Young Peoples Services,Head of Childrens Social Care,085380,Operations Manager LAC Resources,Supplies and Services,328041,Clothing uniforms and laundry E328,02-Dec-2020,000009306432773,ARGOS LTD,5310,Clothing uniforms and laundry,146.95,0.00,146.95
Children and Young Peoples Services,Head of Childrens Social Care,085380,Operations Manager LAC Resources,Supplies and Services,328041,Clothing uniforms and laundry E328,02-Dec-2020,000009306432777,ARGOS LTD,5310,Clothing uniforms and laundry,-3.95,0.00,-3.95
Neighbourhoods and Climate Change,Environmental Services,010367,C&G - South Grounds Maintenance,Supplies and Services,304221,Equipment and Materials,02-Dec-2020,000009306432823,JT ATKINSON & SONS LTD,5211,Direct materials,26.70,0.00,26.70
Children and Young Peoples Services,Head of Early Help Inclusion & Vulnerable Children.,079599,Psychological-HQ,Employees,040149,Recruitment Instruction and Training,02-Dec-2020,000009306432883,SP SCHOOL WELLBEING,8299,Training-all costs,25.00,0.00,25.00
Children and Young Peoples Services,Head of Early Help Inclusion & Vulnerable Children.,085957,Secure Management,Supplies and Services,340001,Postages E340,02-Dec-2020,000009306432891,TSB Returns Ltd,4215,Postages,2.50,0.00,2.50
Children and Young Peoples Services,Head of Early Help Inclusion & Vulnerable Children.,085957,Secure Management,Supplies and Services,340001,Postages E340,02-Dec-2020,000009306432901,TSB Returns Ltd,4215,Postages,2.50,0.00,2.50
Children and Young Peoples Services,Head of Early Help Inclusion & Vulnerable Children.,085957,Secure Management,Supplies and Services,304999,Equipment and Materials,02-Dec-2020,000009306432919,HIGHSPEEDTRAINING.CO.U,8244,Misc equipment tools and materials,78.00,0.00,78.00
Children and Young Peoples Services,Head of Early Help Inclusion & Vulnerable Children.,085957,Secure Management,Supplies and Services,324117,Provisions E324,02-Dec-2020,000009306432929,TESCO STORES 6329,5411,Catering costs - provisions,60.88,0.00,60.88
Children and Young Peoples Services,Head of Early Help Inclusion & Vulnerable Children.,073998,TTF-Co-ordinator Grant,Transfer Payments,525033,Other,02-Dec-2020,000009306433067,MAGUIRE TA LTD,5713,Grants to individuals,250.00,0.00,250.00
Children and Young Peoples Services,Head of Education and Skills,071732,Dean Bank Childcare,Supplies and Services,304403,Equipment and Materials,02-Dec-2020,000009306433177,AMZNMKTPLACE AMAZON.CO,5999,Other consumables,13.98,2.34,11.64
Children and Young Peoples Services,Head of Education and Skills,071732,Dean Bank Childcare,Supplies and Services,384999,Miscellaneous Expenses,02-Dec-2020,000009306433199,Amazon.co.uk MY64J0604,5969,Other expenses,8.00,0.00,8.00
Children and Young Peoples Services,Head of Education and Skills,071732,Dean Bank Childcare,Supplies and Services,304403,Equipment and Materials,02-Dec-2020,000009306433207,AMZNMktplace,5999,Other consumables,9.99,1.67,8.32
Children and Young Peoples Services,Head of Education and Skills,071732,Dean Bank Childcare,Supplies and Services,324117,Provisions E324,02-Dec-2020,000009306433217,B&M 035 - SHILDON,5399,Catering costs - provisions,36.66,0.00,36.66
Children and Young Peoples Services,Head of Education and Skills,071732,Dean Bank Childcare,Supplies and Services,384999,Miscellaneous Expenses,02-Dec-2020,000009306433223,Amazon.co.uk MY05E8DT4,5969,Other expenses,8.00,0.00,8.00
Children and Young Peoples Services,Head of Childrens Social Care,085334,West Rainton Satelite Home,Transport,215995,Running Costs of Vehicles,02-Dec-2020,000009306433279,BELLS HILL SERVICE,5541,Vehicle running expenses,39.01,0.00,39.01
"Regeneration, Economy and Growth",Business Durham CL0850,030671,Business Space 030671,Supplies and Services,304999,Equipment and Materials,02-Dec-2020,000009306433329,HOME BARGAINS,5251,Misc equipment tools and materials,11.92,0.00,11.92
"Regeneration, Economy and Growth",Development and Housing,031576,B& B - Temp Accom,Supplies and Services,364320,Grants to Voluntary Organisations,02-Dec-2020,000009306433369,AYCLIFFE BIZ,7011,Accommodation assistance,266.00,0.00,266.00
"Regeneration, Economy and Growth",Development and Housing,031576,B& B - Temp Accom,Supplies and Services,364320,Grants to Voluntary Organisations,02-Dec-2020,000009306433383,AYCLIFFE BIZ,7011,Accommodation assistance,266.00,0.00,266.00
"Regeneration, Economy and Growth",Development and Housing,031576,B& B - Temp Accom,Supplies and Services,364320,Grants to Voluntary Organisations,02-Dec-2020,000009306433395,DUNCAN BELTON TA K,6513,Accommodation assistance,440.00,0.00,440.00
Children and Young Peoples Services,Head of Early Help Inclusion & Vulnerable Children.,085957,Secure Management,Supplies and Services,384999,Miscellaneous Expenses,02-Dec-2020,000009306433453,NEXT DIRECTORY,5965,Other expenses,27.99,0.00,27.99
Children and Young Peoples Services,Head of Early Help Inclusion & Vulnerable Children.,085957,Secure Management,Supplies and Services,328041,Clothing uniforms and laundry E328,02-Dec-2020,000009306433467,FOOTASYLUM PLC,5691,Clothing uniforms and laundry,184.97,0.00,184.97
Children and Young Peoples Services,Head of Early Help Inclusion & Vulnerable Children.,085957,Secure Management,Supplies and Services,328041,Clothing uniforms and laundry E328,02-Dec-2020,000009306433483,SP TRAPSTAR LONDON,5691,Clothing uniforms and laundry,25.45,0.00,25.45
Children and Young Peoples Services,Head of Early Help Inclusion & Vulnerable Children.,085957,Secure Management,Supplies and Services,328041,Clothing uniforms and laundry E328,02-Dec-2020,000009306433493,SP TRAPSTAR LONDON,5691,Clothing uniforms and laundry,79.45,0.00,79.45
Children and Young Peoples Services,Head of Early Help Inclusion & Vulnerable Children.,085957,Secure Management,Supplies and Services,304403,Equipment and Materials,02-Dec-2020,000009306433507,AMZNMktplace,5999,Other consumables,4.54,0.76,3.78
Children and Young Peoples Services,Head of Early Help Inclusion & Vulnerable Children.,085957,Secure Management,Supplies and Services,304403,Equipment and Materials,02-Dec-2020,000009306433519,CEX LTD,5065,Other consumables,43.95,0.00,43.95
Children and Young Peoples Services,Head of Early Help Inclusion & Vulnerable Children.,085957,Secure Management,Supplies and Services,304259,Equipment and Materials,02-Dec-2020,000009306433527,JD SPORTS INTERNET,5941,Equipment-purchase and rental,70.00,0.00,70.00
Children and Young Peoples Services,Head of Early Help Inclusion & Vulnerable Children.,085957,Secure Management,Supplies and Services,304259,Equipment and Materials,02-Dec-2020,000009306433533,JD SPORTS INTERNET,5941,Equipment-purchase and rental,33.99,0.00,33.99
Children and Young Peoples Services,Head of Early Help Inclusion & Vulnerable Children.,085957,Secure Management,Supplies and Services,304259,Equipment and Materials,02-Dec-2020,000009306433541,SPORTSDIRECT.COM,5941,Equipment-purchase and rental,31.99,0.00,31.99
Neighbourhoods and Climate Change,Environmental Services,010367,C&G - South Grounds Maintenance,Supplies and Services,304999,Equipment and Materials,02-Dec-2020,000009306433591,GROUNDSMAN TOOLS AND S,5251,Misc equipment tools and materials,311.90,0.00,311.90
Neighbourhoods and Climate Change,Environmental Services,011060,C&G - Hardwick Park Catering,Premises,145009,Cleaning and Domestic Supplies,02-Dec-2020,000009306433605,ALLIANCE DISPOSABLES L,2842,Other cleaning and domestic costs,86.40,14.40,72.00
Neighbourhoods and Climate Change,Environmental Services,011060,C&G - Hardwick Park Catering,Premises,145009,Cleaning and Domestic Supplies,02-Dec-2020,000009306433625,ALLIANCE DISPOSABLES L,2842,Other cleaning and domestic costs,320.82,53.47,267.35
Neighbourhoods and Climate Change,Environmental Services,011060,C&G - Hardwick Park Catering,Premises,145009,Cleaning and Domestic Supplies,02-Dec-2020,000009306433625 - 1,ALLIANCE DISPOSABLES L,2842,Other cleaning and domestic costs,0.06,,0.06
Neighbourhoods and Climate Change,Environmental Services,011060,C&G - Hardwick Park Catering,Premises,145009,Cleaning and Domestic Supplies,02-Dec-2020,000009306433637,ALLIANCE DISPOSABLES L,2842,Other cleaning and domestic costs,4.08,0.68,3.40
Children and Young Peoples Services,Head of Childrens Social Care,085331,New Lea Childrens Home,Supplies and Services,304403,Equipment and Materials,02-Dec-2020,000009306433727,AMZNMktplace,5999,Other consumables,53.99,0.00,53.99
Children and Young Peoples Services,Head of Early Help Inclusion & Vulnerable Children.,088119,Durham 0-19 Community Family Hub,Supplies and Services,304403,Equipment and Materials,02-Dec-2020,000009306433741,AMZNMktplace,5999,Other consumables,39.99,6.67,33.32
Children and Young Peoples Services,Head of Early Help Inclusion & Vulnerable Children.,088109,Spennymoor & Shildon 0-19 Community Family Hub,Supplies and Services,304259,Equipment and Materials,02-Dec-2020,000009306433873,AMZNMktplace,5999,Equipment-purchase and rental,100.80,16.80,84.00
Resources BK0010,Business Support,065503,Business Support - Spectrum,Supplies and Services,340001,Postages E340,02-Dec-2020,000009306433885,TESCO STORES 6329,5411,Postages,16.92,0.00,16.92
Adult and Health Services,Head of Adults,055643,Hawthorn House LD Respite Unit,Supplies and Services,324117,Provisions E324,02-Dec-2020,000009306434093,SAINSBURYS SACAT 0776,5411,Catering costs - provisions,13.30,0.00,13.30
Children and Young Peoples Services,Head of Childrens Social Care,085352,Tow Law CU,Supplies and Services,324117,Provisions E324,02-Dec-2020,000009306434183,B&M 681 - DURHAM,5399,Catering costs - provisions,44.10,0.00,44.10
Children and Young Peoples Services,Head of Childrens Social Care,085352,Tow Law CU,Supplies and Services,324117,Provisions E324,02-Dec-2020,000009306434195,WILKO.COM,5399,Catering costs - provisions,59.50,0.00,59.50
Children and Young Peoples Services,Head of Childrens Social Care,085334,West Rainton Satelite Home,Supplies and Services,324117,Provisions E324,02-Dec-2020,000009306434325,WM Morrisons Store,5411,Catering costs - provisions,7.00,0.00,7.00
Children and Young Peoples Services,Head of Childrens Social Care,085334,West Rainton Satelite Home,Supplies and Services,324117,Provisions E324,02-Dec-2020,000009306434331,WM Morrisons Store,5411,Catering costs - provisions,42.87,0.00,42.87
Neighbourhoods and Climate Change,Environmental Services,010301,C&G - North Grounds Maintenance,Supplies and Services,324117,Provisions E324,02-Dec-2020,000009306434351,J VAN VLIET GATESHEAD,5399,Catering costs - provisions,117.24,0.00,117.24
Children and Young Peoples Services,Head of Early Help Inclusion & Vulnerable Children.,085965,Barnard,Supplies and Services,384999,Miscellaneous Expenses,02-Dec-2020,000009306434487,Amazon.co.uk MY7T83644,5969,Other expenses,8.97,0.00,8.97
Adult and Health Services,Head of Adults,053815,The Orchards Extra Care,Supplies and Services,308011,Furniture,02-Dec-2020,000009306434507,AMZNMktplace,5999,Furniture repair and replacement,189.99,31.67,158.32
Children and Young Peoples Services,Head of Early Help Inclusion & Vulnerable Children.,079034,SEND LOOKED AFTER AND VULNERABLE CASEWORK TEAM 1,Supplies and Services,384999,Miscellaneous Expenses,02-Dec-2020,000009306434523,Amazon.co.uk MY2HC7604,5969,Other expenses,9.83,1.64,8.19
Children and Young Peoples Services,Head of Early Help Inclusion & Vulnerable Children.,079034,SEND LOOKED AFTER AND VULNERABLE CASEWORK TEAM 1,Supplies and Services,384999,Miscellaneous Expenses,02-Dec-2020,000009306434537,Amazon.co.uk MY4I016F4,5969,Other expenses,9.83,1.64,8.19
Children and Young Peoples Services,Head of Early Help Inclusion & Vulnerable Children.,079034,SEND LOOKED AFTER AND VULNERABLE CASEWORK TEAM 1,Supplies and Services,384999,Miscellaneous Expenses,02-Dec-2020,000009306434545,Amazon.co.uk MY54T46S4,5969,Other expenses,9.83,1.64,8.19
Children and Young Peoples Services,Head of Early Help Inclusion & Vulnerable Children.,079034,SEND LOOKED AFTER AND VULNERABLE CASEWORK TEAM 1,Supplies and Services,384999,Miscellaneous Expenses,02-Dec-2020,000009306434555,Amazon.co.uk MY9EF96H4,5969,Other expenses,9.83,1.64,8.19
Neighbourhoods and Climate Change,Environmental Services,010301,C&G - North Grounds Maintenance,Supplies and Services,304221,Equipment and Materials,02-Dec-2020,000009306434691,TOOLSTATION LIMITED,5211,Direct materials,39.48,0.00,39.48
Neighbourhoods and Climate Change,Environmental Services,010301,C&G - North Grounds Maintenance,Supplies and Services,304221,Equipment and Materials,02-Dec-2020,000009306434701,TOOLSTATION LTD,5211,Direct materials,39.48,0.00,39.48
Children and Young Peoples Services,Head of Childrens Social Care,085351,Framwellgate Moor CU,Supplies and Services,340001,Postages E340,02-Dec-2020,000009306434835,ROYAL MAIL CHARGES,9402,Postages,17.88,0.00,17.88
Children and Young Peoples Services,Head of Education and Skills,071802,Louisa Cent Nursery,Supplies and Services,324117,Provisions E324,02-Dec-2020,000009306434853,ASDA SUPERSTORE,5411,Catering costs - provisions,6.67,0.00,6.67
Resources BK0010,Finance & Transactional Services,065180,Collections,Supplies and Services,304221,Equipment and Materials,02-Dec-2020,000009306434975,VERLINGUE LIMITED,6300,Direct materials,250.00,0.00,250.00
Children and Young Peoples Services,Head of Childrens Social Care,085332,Middlestone Moor CU,Supplies and Services,308011,Furniture,02-Dec-2020,000009306434989,WF WAYFAIR 3088565504,5712,Furniture repair and replacement,98.99,0.00,98.99
Children and Young Peoples Services,Head of Childrens Social Care,085332,Middlestone Moor CU,Supplies and Services,324117,Provisions E324,02-Dec-2020,000009306435001,MCQUEENS DAIRIES LTD,5499,Catering costs - provisions,59.70,0.00,59.70
Children and Young Peoples Services,Head of Childrens Social Care,085332,Middlestone Moor CU,Supplies and Services,324117,Provisions E324,02-Dec-2020,000009306435017,KEN WARNE LTD (O5),5411,Catering costs - provisions,8.77,0.00,8.77
Children and Young Peoples Services,Head of Early Help Inclusion & Vulnerable Children.,088107,Ferryhill & Newton Aycliffe 0-19 Community Family Hub,Supplies and Services,328041,Clothing uniforms and laundry E328,02-Dec-2020,000009306435035,ARGOS LTD,5310,Clothing uniforms and laundry,53.95,0.00,53.95
Resources BK0010,Business Support,069010,Administration 069010,Supplies and Services,304403,Equipment and Materials,02-Dec-2020,000009306435199,AMZNMktplace,5999,Other consumables,9.69,1.62,8.07
Children and Young Peoples Services,Head of Early Help Inclusion & Vulnerable Children.,088112,Seaham & Central Durham 0-19 Targeted Family Support,Supplies and Services,304259,Equipment and Materials,02-Dec-2020,000009306435605,ARGOS LTD,5310,Equipment-purchase and rental,162.94,0.00,162.94
Children and Young Peoples Services,Head of Childrens Social Care,085342,16 Hickstead Rise (previously 9 Cedar Ave),Supplies and Services,304259,Equipment and Materials,02-Dec-2020,000009309568227,EBUYER (UK) LTD,5722,Equipment-purchase and rental,17.05,0.00,17.05
Children and Young Peoples Services,Head of Education and Skills,070169,Durham SSP,Supplies and Services,384199,Miscellaneous Expenses,02-Dec-2020,000009309568403,ZOOM.US 888-799-9666,4814,Other hired and contracted services,14.39,2.40,11.99
Children and Young Peoples Services,Head of Education and Skills,071801,Selby Cottage Childcare Centre,Supplies and Services,304259,Equipment and Materials,03-Dec-2020,000009309567411,WWW.ICO.ORG.UK,9399,Equipment-purchase and rental,40.00,0.00,40.00
Children and Young Peoples Services,Head of Childrens Social Care,085561,Social Work Academy,Supplies and Services,304403,Equipment and Materials,03-Dec-2020,000009309567427,AMZNMKTPLACE AMAZON.CO,5999,Other consumables,21.96,0.00,21.96
Children and Young Peoples Services,Head of Childrens Social Care,085561,Social Work Academy,Supplies and Services,304403,Equipment and Materials,03-Dec-2020,000009309567429,AMZNMKTPLACE AMAZON.CO,5999,Other consumables,24.36,4.06,20.30
Children and Young Peoples Services,Head of Childrens Social Care,085561,Social Work Academy,Supplies and Services,304403,Equipment and Materials,03-Dec-2020,000009309567429 - 1,AMZNMKTPLACE AMAZON.CO,5999,Other consumables,28.00,,28.00
Children and Young Peoples Services,Head of Childrens Social Care,085561,Social Work Academy,Supplies and Services,384999,Miscellaneous Expenses,03-Dec-2020,000009309567431,Amazon.co.uk MY1XX7SB4,5969,Other expenses,216.75,0.00,216.75
Children and Young Peoples Services,Head of Childrens Social Care,085561,Social Work Academy,Supplies and Services,384999,Miscellaneous Expenses,03-Dec-2020,000009309567435,Amazon.co.uk MY2064SF4,5969,Other expenses,293.58,0.00,293.58
Children and Young Peoples Services,Head of Childrens Social Care,085561,Social Work Academy,Supplies and Services,384999,Miscellaneous Expenses,03-Dec-2020,000009309567439,Amazon.co.uk MY9X24SU4,5969,Other expenses,451.07,0.00,451.07
Chief Executive's Office,Communications Management,060200,Communication Management,Supplies and Services,304403,Equipment and Materials,03-Dec-2020,000009309567443,AMZNMktplace,5999,Other consumables,32.99,5.50,27.49
Resources BK0010,Legal & Democratic Services,067910,Democratic Representation 067910,Supplies and Services,304259,Equipment and Materials,03-Dec-2020,000009309567445,APPLE.COM/UK,5732,Equipment-purchase and rental,38.00,6.33,31.67
"Regeneration, Economy and Growth",Development and Housing,031576,B& B - Temp Accom,Supplies and Services,364320,Grants to Voluntary Organisations,03-Dec-2020,000009309567451,H52STANLEY,7011,Accommodation assistance,500.00,0.00,500.00
"Regeneration, Economy and Growth",Development and Housing,031576,B& B - Temp Accom,Supplies and Services,364320,Grants to Voluntary Organisations,03-Dec-2020,000009309567455,H52STANLEY,7011,Accommodation assistance,291.00,0.00,291.00
"Regeneration, Economy and Growth",Culture Sport and Tourism,030705,Visit County Durham 030705,Supplies and Services,342033,Computers and Communications,03-Dec-2020,000009309567485,FASTHOSTS INTERNET,4816,Computer hardware,6.34,0.00,6.34
Neighbourhoods and Climate Change,Environmental Services,010367,C&G - South Grounds Maintenance,Supplies and Services,304221,Equipment and Materials,03-Dec-2020,000009309567571,J T ATKINSON,5200,Direct materials,106.00,0.00,106.00
Children and Young Peoples Services,Head of Childrens Social Care,085332,Middlestone Moor CU,Supplies and Services,324117,Provisions E324,03-Dec-2020,000009309567617,SAINSBURYS SACAT 0776,5411,Catering costs - provisions,9.40,0.00,9.40
Children and Young Peoples Services,Head of Childrens Social Care,085332,Middlestone Moor CU,Supplies and Services,324117,Provisions E324,03-Dec-2020,000009309567621,ASDA STORES LTD 4313,5411,Catering costs - provisions,14.60,0.00,14.60
Children and Young Peoples Services,Head of Childrens Social Care,085362,LAC & Permanence Team 2,Supplies and Services,304403,Equipment and Materials,03-Dec-2020,000009309567693,WWW.DURHAM.GOV.UK,9399,Other consumables,11.00,0.00,11.00
Children and Young Peoples Services,Head of Early Help Inclusion & Vulnerable Children.,073998,TTF-Co-ordinator Grant,Transfer Payments,525033,Other,03-Dec-2020,000009309567727,J DODDS CARPETS LTD,5713,Grants to individuals,244.00,0.00,244.00
Neighbourhoods and Climate Change,Environmental Services,010900,Fleet - Meadowfield Fleet,Transport,215013,Running Costs of Vehicles,03-Dec-2020,000009309567769,DVLA VEHICLE TAX,9311,Vehicle Excise Duty (VED),267.50,0.00,267.50
Children and Young Peoples Services,Head of Early Help Inclusion & Vulnerable Children.,088109,Spennymoor & Shildon 0-19 Community Family Hub,Supplies and Services,324117,Provisions E324,03-Dec-2020,000009309567783,TESCO STORES 2916,5411,Catering costs - provisions,2.25,0.00,2.25
Children and Young Peoples Services,Head of Education and Skills,071732,Dean Bank Childcare,Supplies and Services,384999,Miscellaneous Expenses,03-Dec-2020,000009309567831,BAKER ROSS,5970,Other expenses,82.81,0.00,82.81
Children and Young Peoples Services,Head of Childrens Social Care,085332,Middlestone Moor CU,Supplies and Services,304259,Equipment and Materials,03-Dec-2020,000009309567849,HALFORDS ON LINE,5940,Equipment-purchase and rental,350.00,0.00,350.00
Children and Young Peoples Services,Head of Childrens Social Care,085332,Middlestone Moor CU,Supplies and Services,324117,Provisions E324,03-Dec-2020,000009309567855,IZ Thames fruit and v,5499,Catering costs - provisions,17.50,0.00,17.50
"Regeneration, Economy and Growth",Development and Housing,031576,B& B - Temp Accom,Supplies and Services,364320,Grants to Voluntary Organisations,03-Dec-2020,000009309567883,H52STANLEY,7011,Accommodation assistance,80.00,0.00,80.00
"Regeneration, Economy and Growth",Development and Housing,031576,B& B - Temp Accom,Supplies and Services,364320,Grants to Voluntary Organisations,03-Dec-2020,000009309567887,H52STANLEY,7011,Accommodation assistance,407.00,0.00,407.00
Children and Young Peoples Services,Head of Early Help Inclusion & Vulnerable Children.,085957,Secure Management,Supplies and Services,340001,Postages E340,03-Dec-2020,000009309567895,TSB Returns Ltd,4215,Postages,2.50,0.00,2.50
Children and Young Peoples Services,Head of Early Help Inclusion & Vulnerable Children.,085957,Secure Management,Supplies and Services,340001,Postages E340,03-Dec-2020,000009309567899,TSB Returns Ltd,4215,Postages,2.50,0.00,2.50
Children and Young Peoples Services,Head of Early Help Inclusion & Vulnerable Children.,085957,Secure Management,Supplies and Services,304403,Equipment and Materials,03-Dec-2020,000009309567901,AMZNMKTPLACE AMAZON.CO,5999,Other consumables,3.49,0.58,2.91
Children and Young Peoples Services,Head of Early Help Inclusion & Vulnerable Children.,085957,Secure Management,Supplies and Services,328041,Clothing uniforms and laundry E328,03-Dec-2020,000009309567905,SPORTSDIRECT.COM,5691,Clothing uniforms and laundry,12.48,0.00,12.48
Children and Young Peoples Services,Head of Early Help Inclusion & Vulnerable Children.,085957,Secure Management,Supplies and Services,328041,Clothing uniforms and laundry E328,03-Dec-2020,000009309567909,DISTANCE S.A.,5651,Clothing uniforms and laundry,73.48,0.00,73.48
Children and Young Peoples Services,Head of Early Help Inclusion & Vulnerable Children.,085957,Secure Management,Supplies and Services,328041,Clothing uniforms and laundry E328,03-Dec-2020,000009309567911,PRETTYLITTLETHING.COM,5691,Clothing uniforms and laundry,25.90,0.00,25.90
Children and Young Peoples Services,Head of Early Help Inclusion & Vulnerable Children.,085957,Secure Management,Supplies and Services,328041,Clothing uniforms and laundry E328,03-Dec-2020,000009309567913,PRETTYLITTLETHING.COM,5691,Clothing uniforms and laundry,10.50,0.00,10.50
Children and Young Peoples Services,Head of Early Help Inclusion & Vulnerable Children.,085957,Secure Management,Supplies and Services,384999,Miscellaneous Expenses,03-Dec-2020,000009309567919,Klarna lullabellz com,7230,Other expenses,24.95,0.00,24.95
Children and Young Peoples Services,Head of Early Help Inclusion & Vulnerable Children.,085957,Secure Management,Supplies and Services,304403,Equipment and Materials,03-Dec-2020,000009309567925,AMZNMKTPLACE AMAZON.CO,5999,Other consumables,15.00,2.50,12.50
Children and Young Peoples Services,Head of Early Help Inclusion & Vulnerable Children.,085957,Secure Management,Supplies and Services,304403,Equipment and Materials,03-Dec-2020,000009309567925 - 1,AMZNMKTPLACE AMAZON.CO,5999,Other consumables,19.95,,19.95
Children and Young Peoples Services,Head of Early Help Inclusion & Vulnerable Children.,085957,Secure Management,Supplies and Services,304259,Equipment and Materials,03-Dec-2020,000009309567927,JD SPORTS INTERNET,5941,Equipment-purchase and rental,117.00,0.00,117.00
Children and Young Peoples Services,Head of Early Help Inclusion & Vulnerable Children.,085957,Secure Management,Supplies and Services,304259,Equipment and Materials,03-Dec-2020,000009309567931,SPORTSDIRECT.COM,5941,Equipment-purchase and rental,44.99,0.00,44.99
Neighbourhoods and Climate Change,Environmental Services,011060,C&G - Hardwick Park Catering,Supplies and Services,324117,Provisions E324,03-Dec-2020,000009309567939,JR HOLLAND FOODSERVICE,5499,Catering costs - provisions,61.38,0.00,61.38
Neighbourhoods and Climate Change,Environmental Services,010919,C&G - Countryside Site Management,Supplies and Services,304221,Equipment and Materials,03-Dec-2020,000009309567951,SCREWFIX DIRECT,5211,Direct materials,39.72,0.00,39.72
Children and Young Peoples Services,Head of Childrens Social Care,085331,New Lea Childrens Home,Supplies and Services,304403,Equipment and Materials,03-Dec-2020,000009309567965,BUILD A BEAR WORKSHOP,5999,Other consumables,84.19,0.00,84.19
Children and Young Peoples Services,Head of Childrens Social Care,085331,New Lea Childrens Home,Supplies and Services,348037,Subsistence E348,03-Dec-2020,000009309567969,MCDONALDS 1555,5814,Subsistence,5.00,0.00,5.00
"Regeneration, Economy and Growth",Development and Housing,031576,B& B - Temp Accom,Supplies and Services,364320,Grants to Voluntary Organisations,03-Dec-2020,000009309567985,HI NEWCASTLE WASHI,7011,Accommodation assistance,455.00,0.00,455.00
Children and Young Peoples Services,Head of Childrens Social Care,085551,Short Break Services-Park Hse Sher,Supplies and Services,324117,Provisions E324,03-Dec-2020,000009309567993,ALDI 15 774,5411,Catering costs - provisions,29.40,0.00,29.40
Children and Young Peoples Services,Head of Early Help Inclusion & Vulnerable Children.,088108,Spennymoor & Shildon 0-19 Targeted Family Support,Supplies and Services,304259,Equipment and Materials,03-Dec-2020,000009309568053,AMZNMKTPLACE AMAZON.CO,5999,Equipment-purchase and rental,11.76,1.96,9.80
Children and Young Peoples Services,Head of Early Help Inclusion & Vulnerable Children.,088108,Spennymoor & Shildon 0-19 Targeted Family Support,Supplies and Services,304259,Equipment and Materials,03-Dec-2020,000009309568053 - 1,AMZNMKTPLACE AMAZON.CO,5999,Equipment-purchase and rental,0.08,,0.08
Children and Young Peoples Services,Head of Early Help Inclusion & Vulnerable Children.,088108,Spennymoor & Shildon 0-19 Targeted Family Support,Supplies and Services,304259,Equipment and Materials,03-Dec-2020,000009309568057,AMZNMktplace,5999,Equipment-purchase and rental,13.98,2.34,11.64
Neighbourhoods and Climate Change,Environmental Services,010367,C&G - South Grounds Maintenance,Transport,215995,Running Costs of Vehicles,03-Dec-2020,000009309568085,D WARD AUTOMOTIVE,5533,Vehicle running expenses,180.00,0.00,180.00
Neighbourhoods and Climate Change,Environmental Services,010367,C&G - South Grounds Maintenance,Supplies and Services,304221,Equipment and Materials,03-Dec-2020,000009309568129,HARELAW SAWMILL,5211,Direct materials,33.00,0.00,33.00
Adult and Health Services,Head of Adults,055301,Stanley Pathways,Supplies and Services,304403,Equipment and Materials,03-Dec-2020,000009309568137,AMZNMktplace,5999,Other consumables,138.98,0.00,138.98
Children and Young Peoples Services,Head of Education and Skills,070008,Governor Training,Supplies and Services,304999,Equipment and Materials,03-Dec-2020,000009309568173,VIMEO.COM,5968,Misc equipment tools and materials,226.80,0.00,226.80
Children and Young Peoples Services,Head of Education and Skills,071903,Early Years Sustainability,Third Party Payments,430100,Rendered by Private Contractors,03-Dec-2020,000009309568175,EB EARLY LEARNING GOA,7399,Payments to sub-contractors,230.00,0.00,230.00
Neighbourhoods and Climate Change,Environmental Services,010301,C&G - North Grounds Maintenance,Supplies and Services,324117,Provisions E324,03-Dec-2020,000009309568193,J VAN VLIET GATESHEAD,5399,Catering costs - provisions,289.09,0.00,289.09
Neighbourhoods and Climate Change,Environmental Services,010301,C&G - North Grounds Maintenance,Supplies and Services,304403,Equipment and Materials,03-Dec-2020,000009309568203,BESCOL,5231,Other consumables,179.66,0.00,179.66
Resources BK0010,Digital and Customer Services,065335,School Services - Implementations,Supplies and Services,304639,Equipment and Materials,03-Dec-2020,000009309568211,WWW.ALIEXPRESS.COM,5964,Technicians-supplies,97.92,0.00,97.92
"Regeneration, Economy and Growth",Development and Housing,030771,Durham Advance Flexible Fund,Employees,040149,Recruitment Instruction and Training,03-Dec-2020,000009309568245,WWW.CSCS.UK.COM,8699,Training-all costs,36.00,0.00,36.00
Resources BK0010,COVID19 - Resources,091007,COVID19 - Resources,Supplies and Services,384999,Miscellaneous Expenses,03-Dec-2020,000009309568267,AMZNMktplace,5999,Other expenses,14.99,2.50,12.49
Adult and Health Services,Head of Adults,053815,The Orchards Extra Care,Supplies and Services,384999,Miscellaneous Expenses,03-Dec-2020,000009309568271,Amazon.co.uk MY3EA2D74,5969,Other expenses,334.99,55.83,279.16
Resources BK0010,Business Support,052986,CYPS - Locality and Operational Support,Supplies and Services,328041,Clothing uniforms and laundry E328,03-Dec-2020,000009309568275,BOOHOO.COM,5691,Clothing uniforms and laundry,40.00,0.00,40.00
Resources BK0010,Business Support,052986,CYPS - Locality and Operational Support,Supplies and Services,328041,Clothing uniforms and laundry E328,03-Dec-2020,000009309568279,Klarna schuh,5651,Clothing uniforms and laundry,57.00,0.00,57.00
"Regeneration, Economy and Growth",Development and Housing,031576,B& B - Temp Accom,Supplies and Services,364320,Grants to Voluntary Organisations,03-Dec-2020,000009309568329,H52STANLEY,7011,Accommodation assistance,88.00,0.00,88.00
Neighbourhoods and Climate Change,Environmental Services,010301,C&G - North Grounds Maintenance,Supplies and Services,304999,Equipment and Materials,03-Dec-2020,000009309568337,GUSTHARTS,5072,Misc equipment tools and materials,345.99,0.00,345.99
Children and Young Peoples Services,Head of Childrens Social Care,085351,Framwellgate Moor CU,Supplies and Services,304259,Equipment and Materials,03-Dec-2020,000009309568353,M and M Direct Ltd,5941,Equipment-purchase and rental,69.94,0.00,69.94
Children and Young Peoples Services,Head of Childrens Social Care,085351,Framwellgate Moor CU,Supplies and Services,304403,Equipment and Materials,03-Dec-2020,000009309568359,CEX,5065,Other consumables,86.25,0.00,86.25
Children and Young Peoples Services,Head of Childrens Social Care,085351,Framwellgate Moor CU,Supplies and Services,304403,Equipment and Materials,03-Dec-2020,000009309568361,CEX,5065,Other consumables,200.50,0.00,200.50
Children and Young Peoples Services,Head of Childrens Social Care,085351,Framwellgate Moor CU,Supplies and Services,304403,Equipment and Materials,03-Dec-2020,000009309568367,CEX,5065,Other consumables,7.75,0.00,7.75
Children and Young Peoples Services,Head of Childrens Social Care,085351,Framwellgate Moor CU,Supplies and Services,324117,Provisions E324,03-Dec-2020,000009309568371,ASDA GROCERIES ONLINE,5411,Catering costs - provisions,176.30,0.00,176.30
Children and Young Peoples Services,Head of Childrens Social Care,085351,Framwellgate Moor CU,Supplies and Services,348037,Subsistence E348,03-Dec-2020,000009309568375,GREGGS PLC,5812,Subsistence,9.50,0.00,9.50
Children and Young Peoples Services,Head of Childrens Social Care,085351,Framwellgate Moor CU,Supplies and Services,304259,Equipment and Materials,03-Dec-2020,000009309568379,FOOTASYLUM,5941,Equipment-purchase and rental,49.98,0.00,49.98
Children and Young Peoples Services,Head of Childrens Social Care,085351,Framwellgate Moor CU,Supplies and Services,304259,Equipment and Materials,03-Dec-2020,000009309568383,JD SPORTS 193,5941,Equipment-purchase and rental,114.30,0.00,114.30
Children and Young Peoples Services,Head of Childrens Social Care,085351,Framwellgate Moor CU,Supplies and Services,304403,Equipment and Materials,03-Dec-2020,000009309568387,MENKIND,5947,Other consumables,30.00,0.00,30.00
Children and Young Peoples Services,Head of Childrens Social Care,085351,Framwellgate Moor CU,Supplies and Services,324117,Provisions E324,03-Dec-2020,000009309568391,ASDA GROCERIES ONLINE,5411,Catering costs - provisions,-0.21,0.00,-0.21
Children and Young Peoples Services,Head of Childrens Social Care,085333,Coxhoe Satelite Home,Supplies and Services,304999,Equipment and Materials,03-Dec-2020,000009309568427,HOLLYWOOD NAILS,7298,Misc equipment tools and materials,24.00,0.00,24.00
Children and Young Peoples Services,Head of Childrens Social Care,085333,Coxhoe Satelite Home,Supplies and Services,328041,Clothing uniforms and laundry E328,03-Dec-2020,000009309568431,NEW LOOK 1744,5621,Clothing uniforms and laundry,11.09,0.00,11.09
Children and Young Peoples Services,Head of Childrens Social Care,085333,Coxhoe Satelite Home,Supplies and Services,328041,Clothing uniforms and laundry E328,03-Dec-2020,000009309568435,NEW LOOK 1744,5621,Clothing uniforms and laundry,23.98,0.00,23.98
Adult and Health Services,Head of Adults,055310,Positive Journeys (Tudhoe),Supplies and Services,324117,Provisions E324,03-Dec-2020,000009309568449,B&M 681 - DURHAM,5399,Catering costs - provisions,1.09,0.00,1.09
Adult and Health Services,Head of Adults,055309,Peterlee Pathways,Supplies and Services,304259,Equipment and Materials,03-Dec-2020,000009309568457,WWW.DURHAM.GOV.UK,9399,Equipment-purchase and rental,10.00,0.00,10.00
Neighbourhoods and Climate Change,Environmental Services,031200,North Pennines Core,Supplies and Services,344033,Telephones,03-Dec-2020,000009309568493,ZOOM.US 888-799-9666,4814,Telephones general-all costs,34.56,0.00,34.56
Children and Young Peoples Services,Head of Childrens Social Care,085333,Coxhoe Satelite Home,Supplies and Services,324117,Provisions E324,03-Dec-2020,000009309568527,CO-OP GROUP 310016,5411,Catering costs - provisions,12.55,0.00,12.55
"Regeneration, Economy and Growth",Development and Housing,030770,Durham Advance,Supplies and Services,324117,Provisions E324,03-Dec-2020,000009309568531,MARKS&SPENCER PLC,5411,Catering costs - provisions,-59.00,0.00,-59.00
Children and Young Peoples Services,Head of Childrens Social Care,085332,Middlestone Moor CU,Supplies and Services,328041,Clothing uniforms and laundry E328,03-Dec-2020,000009313736953,ARGOS LTD,5310,Clothing uniforms and laundry,29.99,0.00,29.99
Children and Young Peoples Services,Head of Early Help Inclusion & Vulnerable Children.,085957,Secure Management,Supplies and Services,304403,Equipment and Materials,03-Dec-2020,000009313737113,AMZNMKTPLACE AMAZON.CO,5999,Other consumables,1.75,0.29,1.46
Children and Young Peoples Services,Head of Early Help Inclusion & Vulnerable Children.,085957,Secure Management,Supplies and Services,304403,Equipment and Materials,03-Dec-2020,000009313737117,AMZNMKTPLACE AMAZON.CO,5999,Other consumables,3.49,0.58,2.91
Neighbourhoods and Climate Change,Environmental Services,011060,C&G - Hardwick Park Catering,Supplies and Services,324117,Provisions E324,03-Dec-2020,000009313737197,BATLEYS PERTH,5300,Catering costs - provisions,156.06,26.01,130.05
Neighbourhoods and Climate Change,Environmental Services,011060,C&G - Hardwick Park Catering,Supplies and Services,324117,Provisions E324,03-Dec-2020,000009313737197 - 1,BATLEYS PERTH,5300,Catering costs - provisions,75.06,,75.06
Children and Young Peoples Services,Head of Early Help Inclusion & Vulnerable Children.,088108,Spennymoor & Shildon 0-19 Targeted Family Support,Supplies and Services,304259,Equipment and Materials,03-Dec-2020,000009313737499,AMZNMKTPLACE AMAZON.CO,5999,Equipment-purchase and rental,4.99,0.83,4.16
Children and Young Peoples Services,Head of Early Help Inclusion & Vulnerable Children.,088108,Spennymoor & Shildon 0-19 Targeted Family Support,Supplies and Services,304259,Equipment and Materials,03-Dec-2020,000009313737511,AMZNMKTPLACE AMAZON.CO,5999,Equipment-purchase and rental,21.47,3.58,17.89
Children and Young Peoples Services,Head of Childrens Social Care,085333,Coxhoe Satelite Home,Supplies and Services,328041,Clothing uniforms and laundry E328,03-Dec-2020,000009313738239,PRIMARK 670 GATESHEAD,5651,Clothing uniforms and laundry,16.00,0.00,16.00
Children and Young Peoples Services,Head of Childrens Social Care,085333,Coxhoe Satelite Home,Supplies and Services,328041,Clothing uniforms and laundry E328,03-Dec-2020,000009313738243,PRIMARK 670 GATESHEAD,5651,Clothing uniforms and laundry,56.00,0.00,56.00
"Regeneration, Economy and Growth",Corporate Property and Land,021235,Catering - Wharton Park,Supplies and Services,324117,Provisions E324,03-Dec-2020,000009313738339,BATLEYS PERTH,5300,Catering costs - provisions,50.88,8.48,42.40
"Regeneration, Economy and Growth",Corporate Property and Land,021235,Catering - Wharton Park,Supplies and Services,324117,Provisions E324,03-Dec-2020,000009313738339 - 1,BATLEYS PERTH,5300,Catering costs - provisions,2.31,,2.31
Children and Young Peoples Services,Head of Childrens Social Care,085341,High Etherley Satelite Home,Supplies and Services,324117,Provisions E324,04-Dec-2020,000009313736397,SAINSBURYS SACAT 2199,5411,Catering costs - provisions,26.50,0.00,26.50
Children and Young Peoples Services,Head of Childrens Social Care,085341,High Etherley Satelite Home,Supplies and Services,328041,Clothing uniforms and laundry E328,04-Dec-2020,000009313736399,TK MAXX,5331,Clothing uniforms and laundry,29.97,0.00,29.97
"Regeneration, Economy and Growth",Business Durham CL0850,030689,Inward Investment and Aftercare,Supplies and Services,336005,Advertising E336,04-Dec-2020,000009313736421,GOOGLE ADS6853017821,7311,Advertising other than for staff,64.18,0.00,64.18
"Regeneration, Economy and Growth",Business Durham CL0850,030689,Inward Investment and Aftercare,Supplies and Services,342222,Computers and Communications,04-Dec-2020,000009313736431,FASTHOSTS INTERNET,4816,Comp hardware purch-network servers,7.54,0.00,7.54
Children and Young Peoples Services,Head of Education and Skills,071801,Selby Cottage Childcare Centre,Supplies and Services,324117,Provisions E324,04-Dec-2020,000009313736465,TESCO STORES 2278,5411,Catering costs - provisions,10.00,0.00,10.00
Children and Young Peoples Services,Head of Childrens Social Care,085501,Child Care Cases Legal Expenses,Supplies and Services,304403,Equipment and Materials,04-Dec-2020,000009313736491,HULL CITY COUNCIL,9399,Other consumables,11.00,0.00,11.00
Resources BK0010,Legal & Democratic Services,069320,Litigation Solicitors,Supplies and Services,338045,Services,04-Dec-2020,000009313736495,WWW.MONEYCLAIM.GOV,9399,Legal expenses 338045,25.00,0.00,25.00
Children and Young Peoples Services,Head of Childrens Social Care,085341,High Etherley Satelite Home,Supplies and Services,324117,Provisions E324,04-Dec-2020,000009313736587,ASDA STORES,5411,Catering costs - provisions,32.93,0.00,32.93
Neighbourhoods and Climate Change,Environmental Services,031202,North Pennines - Peatscapes,Supplies and Services,304259,Equipment and Materials,04-Dec-2020,000009313736621,TREES PLEASE LTD,8999,Equipment-purchase and rental,50.40,8.40,42.00
Children and Young Peoples Services,Head of Childrens Social Care,085380,Operations Manager LAC Resources,Supplies and Services,328041,Clothing uniforms and laundry E328,04-Dec-2020,000009313736673,ARGOS LTD,5310,Clothing uniforms and laundry,148.95,0.00,148.95
"Regeneration, Economy and Growth",Development and Housing,030770,Durham Advance,Transport,235057,Public Transport,04-Dec-2020,000009313736679,GO NORTH EAST LIMITED,4131,Staff travelling,15.00,0.00,15.00
Children and Young Peoples Services,Head of Early Help Inclusion & Vulnerable Children.,085957,Secure Management,Supplies and Services,324117,Provisions E324,04-Dec-2020,000009313736731,TESCO STORES 6329,5411,Catering costs - provisions,87.15,0.00,87.15
Children and Young Peoples Services,Head of Childrens Social Care,085334,West Rainton Satelite Home,Supplies and Services,324117,Provisions E324,04-Dec-2020,000009313736927,SPAR,5411,Catering costs - provisions,30.44,0.00,30.44
"Regeneration, Economy and Growth",Development and Housing,031576,B& B - Temp Accom,Supplies and Services,364320,Grants to Voluntary Organisations,04-Dec-2020,000009313737063,AYCLIFFE BIZ,7011,Accommodation assistance,114.00,0.00,114.00
"Regeneration, Economy and Growth",Development and Housing,031576,B& B - Temp Accom,Supplies and Services,364320,Grants to Voluntary Organisations,04-Dec-2020,000009313737069,AYCLIFFE BIZ,7011,Accommodation assistance,114.00,0.00,114.00
Children and Young Peoples Services,Head of Early Help Inclusion & Vulnerable Children.,085957,Secure Management,Supplies and Services,384999,Miscellaneous Expenses,04-Dec-2020,000009313737105,Fragrance Direct UK,5977,Other expenses,5.98,0.00,5.98
Children and Young Peoples Services,Head of Early Help Inclusion & Vulnerable Children.,085957,Secure Management,Supplies and Services,304403,Equipment and Materials,04-Dec-2020,000009313737109,AMZNMKTPLACE AMAZON.CO,5999,Other consumables,8.94,1.49,7.45
Children and Young Peoples Services,Head of Early Help Inclusion & Vulnerable Children.,085957,Secure Management,Supplies and Services,304403,Equipment and Materials,04-Dec-2020,000009313737109 - 1,AMZNMKTPLACE AMAZON.CO,5999,Other consumables,9.97,,9.97
Children and Young Peoples Services,Head of Early Help Inclusion & Vulnerable Children.,085957,Secure Management,Supplies and Services,304403,Equipment and Materials,04-Dec-2020,000009313737121,AMZNMKTPLACE AMAZON.CO,5999,Other consumables,11.24,0.00,11.24
Children and Young Peoples Services,Head of Early Help Inclusion & Vulnerable Children.,085957,Secure Management,Supplies and Services,304403,Equipment and Materials,04-Dec-2020,000009313737125,AMZNMKTPLACE AMAZON.CO,5999,Other consumables,6.49,1.08,5.41
Children and Young Peoples Services,Head of Early Help Inclusion & Vulnerable Children.,085957,Secure Management,Supplies and Services,304403,Equipment and Materials,04-Dec-2020,000009313737129,AMZNMktplace,5999,Other consumables,24.79,4.13,20.66
Children and Young Peoples Services,Head of Early Help Inclusion & Vulnerable Children.,085957,Secure Management,Supplies and Services,304403,Equipment and Materials,04-Dec-2020,000009313737135,AMZ Prime Makeup,5999,Other consumables,-2.92,0.00,-2.92
Neighbourhoods and Climate Change,Environmental Services,010367,C&G - South Grounds Maintenance,Supplies and Services,304403,Equipment and Materials,04-Dec-2020,000009313737157,MAXWELLS DIY,5231,Other consumables,5.00,0.00,5.00
Neighbourhoods and Climate Change,Environmental Services,011060,C&G - Hardwick Park Catering,Supplies and Services,324117,Provisions E324,04-Dec-2020,000009313737211,HOPWELLS LTD,5811,Catering costs - provisions,102.89,0.00,102.89
Neighbourhoods and Climate Change,Environmental Services,011060,C&G - Hardwick Park Catering,Supplies and Services,324117,Provisions E324,04-Dec-2020,000009313737215,HOPWELLS LTD,5811,Catering costs - provisions,31.68,5.28,26.40
Neighbourhoods and Climate Change,Environmental Services,011060,C&G - Hardwick Park Catering,Supplies and Services,324117,Provisions E324,04-Dec-2020,000009313737215 - 1,HOPWELLS LTD,5811,Catering costs - provisions,65.19,,65.19
Neighbourhoods and Climate Change,Environmental Services,011060,C&G - Hardwick Park Catering,Premises,145009,Cleaning and Domestic Supplies,04-Dec-2020,000009313737223,ALLIANCE DISPOSABLES L,2842,Other cleaning and domestic costs,325.90,54.32,271.58
Neighbourhoods and Climate Change,Environmental Services,011060,C&G - Hardwick Park Catering,Premises,145009,Cleaning and Domestic Supplies,04-Dec-2020,000009313737229,ALLIANCE DISPOSABLES L,2842,Other cleaning and domestic costs,21.62,3.60,18.02
Neighbourhoods and Climate Change,Environmental Services,011060,C&G - Hardwick Park Catering,Supplies and Services,324117,Provisions E324,04-Dec-2020,000009313737237,JR HOLLAND FOODSERVICE,5499,Catering costs - provisions,93.17,0.00,93.17
"Regeneration, Economy and Growth",Development and Housing,031500,Housing Solutions - Core Team,Supplies and Services,352001,Conference Expenses,04-Dec-2020,000009313737297,AYCLIFFE BIZ,7011,Conferencesseminars fees etc,114.00,0.00,114.00
Children and Young Peoples Services,Head of Childrens Social Care,085331,New Lea Childrens Home,Supplies and Services,324117,Provisions E324,04-Dec-2020,000009313737309,ALDI 11 774,5411,Catering costs - provisions,54.77,0.00,54.77
Children and Young Peoples Services,Head of Childrens Social Care,085331,New Lea Childrens Home,Supplies and Services,332047,Printing Stationery and Gen Off Exps,04-Dec-2020,000009313737341,RYMAN,5943,Stationery,36.48,0.00,36.48
Children and Young Peoples Services,Head of Childrens Social Care,085625,Families First Spennymoor,Supplies and Services,364301,Grants to Voluntary Organisations,04-Dec-2020,000009313737515,ARGOS LTD,5310,Hardship,118.00,0.00,118.00
Children and Young Peoples Services,Head of Childrens Social Care,085625,Families First Spennymoor,Supplies and Services,364301,Grants to Voluntary Organisations,04-Dec-2020,000009313737521,ARGOS LTD,5310,Hardship,264.95,0.00,264.95
"Regeneration, Economy and Growth",Development and Housing,031500,Housing Solutions - Core Team,Debtors,930177,Debtor - Chapter Homes,04-Dec-2020,000009313737635,WWW.THEDISPUTESERVICE.,6513,Debtor - Chapter Homes,24.00,0.00,24.00
"Regeneration, Economy and Growth",Corporate Property and Land,020082,Bldg Serv - R&M Div 82- Lifts,Supplies and Services,384999,Miscellaneous Expenses,04-Dec-2020,000009313737661,TT2,4784,Other expenses,1.80,0.00,1.80
Neighbourhoods and Climate Change,Environmental Services,031202,North Pennines - Peatscapes,Supplies and Services,304221,Equipment and Materials,04-Dec-2020,000009313737791,WWW.GAFFERTAPE.COM,5085,Direct materials,31.03,5.17,25.86
Resources BK0010,Digital and Customer Services,065335,School Services - Implementations,Supplies and Services,304303,Equipment and Materials,04-Dec-2020,000009313737877,PAYPAL KENABLE LTD,5732,Network for resale,33.31,0.00,33.31
Children and Young Peoples Services,Head of Childrens Social Care,085342,16 Hickstead Rise (previously 9 Cedar Ave),Supplies and Services,384999,Miscellaneous Expenses,04-Dec-2020,000009313737889,Amazon.co.uk MY8585924,5969,Other expenses,7.99,0.00,7.99
Children and Young Peoples Services,Head of Childrens Social Care,085334,West Rainton Satelite Home,Supplies and Services,324117,Provisions E324,04-Dec-2020,000009313737901,TESCO STORES 2371,5411,Catering costs - provisions,120.08,0.00,120.08
Children and Young Peoples Services,Head of Childrens Social Care,085334,West Rainton Satelite Home,Supplies and Services,324117,Provisions E324,04-Dec-2020,000009313737907,TESCO STORES 2371,5411,Catering costs - provisions,13.70,0.00,13.70
Children and Young Peoples Services,Head of Early Help Inclusion & Vulnerable Children.,085954,Walworth,Supplies and Services,304403,Equipment and Materials,04-Dec-2020,000009313737929,AMZNMktplace,5999,Other consumables,8.82,1.47,7.35
Children and Young Peoples Services,Head of Early Help Inclusion & Vulnerable Children.,085954,Walworth,Supplies and Services,304403,Equipment and Materials,04-Dec-2020,000009313737929 - 1,AMZNMktplace,5999,Other consumables,0.06,,0.06
Children and Young Peoples Services,Head of Early Help Inclusion & Vulnerable Children.,085962,Aycliffe Secure - Durham,Transfer Payments,515140,Social Services Clients,04-Dec-2020,000009313737935,JD SPORTS INTERNET,5941,Clothing allowances,75.00,0.00,75.00
Children and Young Peoples Services,Head of Early Help Inclusion & Vulnerable Children.,085962,Aycliffe Secure - Durham,Transfer Payments,515140,Social Services Clients,04-Dec-2020,000009313737941,ARGOS LTD,5310,Clothing allowances,114.99,0.00,114.99
Children and Young Peoples Services,Head of Early Help Inclusion & Vulnerable Children.,088110,Easington & Peterlee 0-19 Targeted Family Support,Supplies and Services,384302,Miscellaneous Expenses,04-Dec-2020,000009313737969,AMZNMktplace,5999,Activity expenses,9.97,1.67,8.30
Children and Young Peoples Services,Head of Early Help Inclusion & Vulnerable Children.,088110,Easington & Peterlee 0-19 Targeted Family Support,Supplies and Services,384302,Miscellaneous Expenses,04-Dec-2020,000009313737975,AMZNMktplace,5999,Activity expenses,4.99,0.83,4.16
Children and Young Peoples Services,Head of Early Help Inclusion & Vulnerable Children.,088111,Easington & Peterlee 0-19 Community Family Hub,Supplies and Services,384302,Miscellaneous Expenses,04-Dec-2020,000009313737977,AMZNMktplace,5999,Activity expenses,19.25,3.21,16.04
Children and Young Peoples Services,Head of Early Help Inclusion & Vulnerable Children.,088110,Easington & Peterlee 0-19 Targeted Family Support,Supplies and Services,384302,Miscellaneous Expenses,04-Dec-2020,000009313737983,WILKO.COM,5399,Activity expenses,194.00,0.00,194.00
Children and Young Peoples Services,Head of Childrens Social Care,085333,Coxhoe Satelite Home,Supplies and Services,328041,Clothing uniforms and laundry E328,04-Dec-2020,000009313738015,SARA MART LIMITED,5311,Clothing uniforms and laundry,55.65,0.00,55.65
Neighbourhoods and Climate Change,Environmental Services,010301,C&G - North Grounds Maintenance,Supplies and Services,304999,Equipment and Materials,04-Dec-2020,000009313738093,GUSTHARTS,5072,Misc equipment tools and materials,37.44,0.00,37.44
Children and Young Peoples Services,Head of Education and Skills,071802,Louisa Cent Nursery,Supplies and Services,324117,Provisions E324,04-Dec-2020,000009313738103,ASDA GROCERIES ONLINE,5411,Catering costs - provisions,161.36,0.00,161.36
Children and Young Peoples Services,Head of Education and Skills,071802,Louisa Cent Nursery,Supplies and Services,324117,Provisions E324,04-Dec-2020,000009313738109,ASDA GROCERIES ONLINE,5411,Catering costs - provisions,-1.24,0.00,-1.24
Children and Young Peoples Services,Head of Childrens Social Care,085333,Coxhoe Satelite Home,Supplies and Services,324117,Provisions E324,04-Dec-2020,000009313738249,TESCO STORES 2371,5411,Catering costs - provisions,103.93,0.00,103.93
Neighbourhoods and Climate Change,Environmental Services,010301,C&G - North Grounds Maintenance,Supplies and Services,304403,Equipment and Materials,04-Dec-2020,000009313738255,BESCOL,5231,Other consumables,45.12,0.00,45.12
"Regeneration, Economy and Growth",Development and Housing,031500,Housing Solutions - Core Team,Supplies and Services,352001,Conference Expenses,04-Dec-2020,000009313738327,H52STANLEY,7011,Conferencesseminars fees etc,108.00,0.00,108.00
"Regeneration, Economy and Growth",Corporate Property and Land,021235,Catering - Wharton Park,Supplies and Services,324117,Provisions E324,04-Dec-2020,000009313738343,HOPWELLS LTD,5811,Catering costs - provisions,118.47,0.00,118.47
"Regeneration, Economy and Growth",Corporate Property and Land,021235,Catering - Wharton Park,Supplies and Services,324117,Provisions E324,04-Dec-2020,000009313738349,JR HOLLAND FOODSERVICE,5499,Catering costs - provisions,14.42,0.00,14.42
Children and Young Peoples Services,Head of Childrens Social Care,085341,High Etherley Satelite Home,Supplies and Services,328041,Clothing uniforms and laundry E328,04-Dec-2020,000009313738355,ETSY.COM LAMBSROSEDESI,5699,Clothing uniforms and laundry,14.50,0.00,14.50
Adult and Health Services,Head of Adults,055309,Peterlee Pathways,Supplies and Services,328041,Clothing uniforms and laundry E328,04-Dec-2020,000009313738577,POUNDSTRETCHER 396,5331,Clothing uniforms and laundry,22.42,0.00,22.42
Children and Young Peoples Services,Head of Childrens Social Care,085341,High Etherley Satelite Home,Supplies and Services,304999,Equipment and Materials,04-Dec-2020,000009321007641,SNAPFISH UK,7395,Misc equipment tools and materials,20.19,0.00,20.19
Adult and Health Services,Head of Adults,055643,Hawthorn House LD Respite Unit,Supplies and Services,324117,Provisions E324,04-Dec-2020,000009357797071,BATLEYS PERTH,5300,Catering costs - provisions,23.70,0.00,23.70
Adult and Health Services,Head of Adults,055643,Hawthorn House LD Respite Unit,Supplies and Services,324117,Provisions E324,04-Dec-2020,000009357797075,BATLEYS PERTH,5300,Catering costs - provisions,6.60,1.10,5.50
Adult and Health Services,Head of Adults,055643,Hawthorn House LD Respite Unit,Supplies and Services,324117,Provisions E324,04-Dec-2020,000009357797075 - 1,BATLEYS PERTH,5300,Catering costs - provisions,143.99,,143.99
"Regeneration, Economy and Growth",Culture Sport and Tourism,030705,Visit County Durham 030705,Supplies and Services,342033,Computers and Communications,05-Dec-2020,000009313736525,FASTHOSTS INTERNET,4816,Computer hardware,39.47,0.00,39.47
Children and Young Peoples Services,Head of Childrens Social Care,085341,High Etherley Satelite Home,Supplies and Services,304259,Equipment and Materials,05-Dec-2020,000009313736591,JD SPORTS PLC,5941,Equipment-purchase and rental,125.30,0.00,125.30
Children and Young Peoples Services,Head of Childrens Social Care,085341,High Etherley Satelite Home,Supplies and Services,328041,Clothing uniforms and laundry E328,05-Dec-2020,000009313736593,L+P HANDBAGS,5631,Clothing uniforms and laundry,51.00,0.00,51.00
Children and Young Peoples Services,Head of Early Help Inclusion & Vulnerable Children.,085957,Secure Management,Supplies and Services,324117,Provisions E324,05-Dec-2020,000009313736735,TESCO STORES 6329,5411,Catering costs - provisions,113.20,0.00,113.20
Children and Young Peoples Services,Head of Childrens Social Care,085332,Middlestone Moor CU,Supplies and Services,384999,Miscellaneous Expenses,05-Dec-2020,000009313736961,TRIMMERS,7230,Other expenses,15.00,0.00,15.00
Children and Young Peoples Services,Head of Childrens Social Care,085331,New Lea Childrens Home,Transport,215995,Running Costs of Vehicles,05-Dec-2020,000009313737317,WASHINGTON NORTH MWSA,5541,Vehicle running expenses,25.02,0.00,25.02
Children and Young Peoples Services,Head of Childrens Social Care,085331,New Lea Childrens Home,Supplies and Services,348037,Subsistence E348,05-Dec-2020,000009313737323,MCDONALDS 1555,5814,Subsistence,10.30,0.00,10.30
Children and Young Peoples Services,Head of Childrens Social Care,085331,New Lea Childrens Home,Supplies and Services,324117,Provisions E324,05-Dec-2020,000009313737325,SPAR 11081,5411,Catering costs - provisions,13.50,0.00,13.50
Children and Young Peoples Services,Head of Early Help Inclusion & Vulnerable Children.,088108,Spennymoor & Shildon 0-19 Targeted Family Support,Supplies and Services,304259,Equipment and Materials,05-Dec-2020,000009313737525,AMZNMktplace,5999,Equipment-purchase and rental,12.99,2.17,10.82
Adult and Health Services,Head of Adults,055643,Hawthorn House LD Respite Unit,Supplies and Services,324117,Provisions E324,05-Dec-2020,000009313737641,SAINSBURYS SACAT 0776,5411,Catering costs - provisions,2.50,0.00,2.50
"Regeneration, Economy and Growth",Corporate Property and Land,036000,Asset Management 036000,Supplies and Services,304259,Equipment and Materials,05-Dec-2020,000009313737667,AMZNMktplace,5999,Equipment-purchase and rental,61.99,10.33,51.66
Adult and Health Services,Head of Adults,055301,Stanley Pathways,Supplies and Services,304403,Equipment and Materials,05-Dec-2020,000009313737711,AMZNMktplace,5999,Other consumables,114.99,19.17,95.82
Resources BK0010,Digital and Customer Services,065335,School Services - Implementations,Supplies and Services,304303,Equipment and Materials,05-Dec-2020,000009313737885,DKC DIGI-KEY CORP,5065,Network for resale,81.97,0.00,81.97
Children and Young Peoples Services,Head of Early Help Inclusion & Vulnerable Children.,085965,Barnard,Supplies and Services,304403,Equipment and Materials,05-Dec-2020,000009313737949,AMZNMktplace,5999,Other consumables,29.22,0.00,29.22
"Regeneration, Economy and Growth",Business Durham CL0850,030689,Inward Investment and Aftercare,Supplies and Services,342033,Computers and Communications,06-Dec-2020,000009313736423,STK Shutterstock,7333,Computer hardware,19.00,0.00,19.00
"Regeneration, Economy and Growth",Business Durham CL0850,030689,Inward Investment and Aftercare,Supplies and Services,304999,Equipment and Materials,06-Dec-2020,000009313736427,TSOHOST,5968,Misc equipment tools and materials,43.02,0.00,43.02
Children and Young Peoples Services,Head of Early Help Inclusion & Vulnerable Children.,085957,Secure Management,Supplies and Services,324117,Provisions E324,06-Dec-2020,000009313736739,TESCO STORES 6329,5411,Catering costs - provisions,111.32,0.00,111.32
Children and Young Peoples Services,Head of Education and Skills,071732,Dean Bank Childcare,Supplies and Services,304403,Equipment and Materials,06-Dec-2020,000009313736897,AMZNMktplace,5999,Other consumables,111.24,0.00,111.24
Children and Young Peoples Services,Head of Early Help Inclusion & Vulnerable Children.,085962,Aycliffe Secure - Durham,Supplies and Services,304403,Equipment and Materials,06-Dec-2020,000009313736969,AMZNMKTPLACE AMAZON.CO,5999,Other consumables,15.48,0.00,15.48
Children and Young Peoples Services,Head of Early Help Inclusion & Vulnerable Children.,088107,Ferryhill & Newton Aycliffe 0-19 Community Family Hub,Supplies and Services,304403,Equipment and Materials,06-Dec-2020,000009313737087,AMZNMktplace,5999,Other consumables,20.89,3.49,17.40
Children and Young Peoples Services,Head of Early Help Inclusion & Vulnerable Children.,088107,Ferryhill & Newton Aycliffe 0-19 Community Family Hub,Supplies and Services,304403,Equipment and Materials,06-Dec-2020,000009313737095,AMZNMktplace,5999,Other consumables,14.99,2.50,12.49
Children and Young Peoples Services,Head of Childrens Social Care,085551,Short Break Services-Park Hse Sher,Supplies and Services,324117,Provisions E324,06-Dec-2020,000009313737463,ALDI 59 774,5411,Catering costs - provisions,10.09,0.00,10.09
Adult and Health Services,Head of Adults,055643,Hawthorn House LD Respite Unit,Supplies and Services,324117,Provisions E324,06-Dec-2020,000009313737647,SAINSBURYS SACAT 0776,5411,Catering costs - provisions,3.30,0.00,3.30
Children and Young Peoples Services,Head of Early Help Inclusion & Vulnerable Children.,085962,Aycliffe Secure - Durham,Supplies and Services,384999,Miscellaneous Expenses,06-Dec-2020,000009313737945,Amazon.co.uk MY4SE7RM4,5969,Other expenses,14.78,2.46,12.32
Children and Young Peoples Services,Head of Early Help Inclusion & Vulnerable Children.,085965,Barnard,Supplies and Services,304403,Equipment and Materials,06-Dec-2020,000009313737953,AMZNMktplace,5999,Other consumables,12.98,2.16,10.82
Children and Young Peoples Services,Head of Early Help Inclusion & Vulnerable Children.,085957,Secure Management,Supplies and Services,304403,Equipment and Materials,06-Dec-2020,000009313737959,AMZNMktplace,5999,Other consumables,44.76,7.46,37.30
Children and Young Peoples Services,Head of Early Help Inclusion & Vulnerable Children.,085957,Secure Management,Supplies and Services,304403,Equipment and Materials,06-Dec-2020,000009313737959 - 1,AMZNMktplace,5999,Other consumables,0.04,,0.04
Children and Young Peoples Services,Head of Early Help Inclusion & Vulnerable Children.,085954,Walworth,Supplies and Services,304403,Equipment and Materials,06-Dec-2020,000009313737965,AMZNMktplace,5999,Other consumables,9.48,1.58,7.90
Children and Young Peoples Services,Head of Early Help Inclusion & Vulnerable Children.,085954,Walworth,Supplies and Services,304403,Equipment and Materials,06-Dec-2020,000009313737965 - 1,AMZNMktplace,5999,Other consumables,13.00,,13.00
Children and Young Peoples Services,Head of Early Help Inclusion & Vulnerable Children.,088110,Easington & Peterlee 0-19 Targeted Family Support,Supplies and Services,384302,Miscellaneous Expenses,06-Dec-2020,000009313737989,AMZNMktplace,5999,Activity expenses,6.50,1.08,5.42
Children and Young Peoples Services,Head of Early Help Inclusion & Vulnerable Children.,088110,Easington & Peterlee 0-19 Targeted Family Support,Supplies and Services,384302,Miscellaneous Expenses,06-Dec-2020,000009313737993,AMZNMktplace,5999,Activity expenses,31.20,5.20,26.00
Children and Young Peoples Services,Head of Early Help Inclusion & Vulnerable Children.,088110,Easington & Peterlee 0-19 Targeted Family Support,Supplies and Services,384302,Miscellaneous Expenses,06-Dec-2020,000009313737999,AMZNMktplace,5999,Activity expenses,12.39,2.07,10.32
Children and Young Peoples Services,Head of Early Help Inclusion & Vulnerable Children.,088110,Easington & Peterlee 0-19 Targeted Family Support,Supplies and Services,384302,Miscellaneous Expenses,06-Dec-2020,000009313738003,AMZNMktplace,5999,Activity expenses,11.70,1.96,9.74
Children and Young Peoples Services,Head of Childrens Social Care,085332,Middlestone Moor CU,Supplies and Services,304999,Equipment and Materials,06-Dec-2020,000009313738037,Microsoft Console 1-Mo,5816,Misc equipment tools and materials,7.99,0.00,7.99
Children and Young Peoples Services,Head of Childrens Social Care,085332,Middlestone Moor CU,Supplies and Services,304999,Equipment and Materials,06-Dec-2020,000009313738051,Amazon Prime MY9UG4RT4,5968,Misc equipment tools and materials,7.99,0.00,7.99
Children and Young Peoples Services,Head of Childrens Social Care,085332,Middlestone Moor CU,Supplies and Services,324117,Provisions E324,06-Dec-2020,000009313738053,KEN WARNE LTD (O5),5411,Catering costs - provisions,7.58,0.00,7.58
Children and Young Peoples Services,Head of Childrens Social Care,085332,Middlestone Moor CU,Supplies and Services,348037,Subsistence E348,06-Dec-2020,000009313738055,MCDONALD`S,5812,Subsistence,8.88,0.00,8.88
Children and Young Peoples Services,Head of Early Help Inclusion & Vulnerable Children.,088110,Easington & Peterlee 0-19 Targeted Family Support,Supplies and Services,384302,Miscellaneous Expenses,06-Dec-2020,000009318444831,AMZNMKTPLACE AMAZON.CO,5999,Activity expenses,24.18,4.03,20.15
Children and Young Peoples Services,Head of Early Help Inclusion & Vulnerable Children.,088111,Easington & Peterlee 0-19 Community Family Hub,Supplies and Services,304259,Equipment and Materials,06-Dec-2020,000009318444831 - 1,AMZNMKTPLACE AMAZON.CO,5999,Equipment-purchase and rental,0.06,,0.06
Children and Young Peoples Services,Head of Childrens Social Care,085331,New Lea Childrens Home,Supplies and Services,304403,Equipment and Materials,07-Dec-2020,000009313737333,AMZNMktplace,5999,Other consumables,11.98,0.00,11.98
Resources BK0010,Digital and Customer Services,065432,Web Development Group,Supplies and Services,342033,Computers and Communications,07-Dec-2020,000009318443119,WPMU DEV INCSUBFEE.COM,7372,Computer hardware,14.17,0.00,14.17
"Regeneration, Economy and Growth",Development and Housing,031581,Prevention Fund,Supplies and Services,384999,Miscellaneous Expenses,07-Dec-2020,000009318443197,WWW.EASTDURHAMHOMES.CO,9399,Other expenses,116.79,0.00,116.79
Children and Young Peoples Services,Head of Childrens Social Care,085357,LAC Bespoke Placements,Supplies and Services,352001,Conference Expenses,07-Dec-2020,000009318443227,LITTLEWHITE FARM COTTA,7011,Conferencesseminars fees etc,395.00,0.00,395.00
Children and Young Peoples Services,Head of Childrens Social Care,085501,Child Care Cases Legal Expenses,Supplies and Services,304403,Equipment and Materials,07-Dec-2020,000009318443233,HULL CITY COUNCIL,9399,Other consumables,11.00,0.00,11.00
Children and Young Peoples Services,Head of Childrens Social Care,085501,Child Care Cases Legal Expenses,Supplies and Services,304403,Equipment and Materials,07-Dec-2020,000009318443243,HULL CITY COUNCIL,9399,Other consumables,11.00,0.00,11.00
Children and Young Peoples Services,Head of Childrens Social Care,085501,Child Care Cases Legal Expenses,Supplies and Services,304403,Equipment and Materials,07-Dec-2020,000009318443249,HULL CITY COUNCIL,9399,Other consumables,11.00,0.00,11.00
Children and Young Peoples Services,Head of Childrens Social Care,085501,Child Care Cases Legal Expenses,Supplies and Services,304403,Equipment and Materials,07-Dec-2020,000009318443255,HULL CITY COUNCIL,9399,Other consumables,11.00,0.00,11.00
Children and Young Peoples Services,Head of Childrens Social Care,085501,Child Care Cases Legal Expenses,Supplies and Services,304403,Equipment and Materials,07-Dec-2020,000009318443273,HULL CITY COUNCIL,9399,Other consumables,11.00,0.00,11.00
Children and Young Peoples Services,Head of Childrens Social Care,085501,Child Care Cases Legal Expenses,Supplies and Services,304403,Equipment and Materials,07-Dec-2020,000009318443287,SUNDERLAND CC,7523,Other consumables,11.00,0.00,11.00
"Regeneration, Economy and Growth",Development and Housing,030773,CLLD North,Employees,040149,Recruitment Instruction and Training,07-Dec-2020,000009318443307,DIAMOND PEOPLE NE LTD,8999,Training-all costs,38.00,0.00,38.00
Children and Young Peoples Services,Head of Education and Skills,075021,Youth Employment Initiative,Supplies and Services,364301,Grants to Voluntary Organisations,07-Dec-2020,000009318443325,SCREWFIX DIRECT,5211,Hardship,39.98,6.66,33.32
"Regeneration, Economy and Growth",Culture Sport and Tourism,054820,Gala Theatre - Overheads,Supplies and Services,304259,Equipment and Materials,07-Dec-2020,000009318443343,ST JOHN AMBULANCE,8398,Equipment-purchase and rental,131.94,0.00,131.94
Children and Young Peoples Services,Head of Childrens Social Care,085341,High Etherley Satelite Home,Supplies and Services,328041,Clothing uniforms and laundry E328,07-Dec-2020,000009318443381,TK MAXX,5331,Clothing uniforms and laundry,24.98,0.00,24.98
Children and Young Peoples Services,Head of Childrens Social Care,085341,High Etherley Satelite Home,Supplies and Services,324117,Provisions E324,07-Dec-2020,000009318443387,CO-OP GROUP 010989,5411,Catering costs - provisions,28.63,0.00,28.63
Neighbourhoods and Climate Change,Environmental Services,010367,C&G - South Grounds Maintenance,Supplies and Services,304221,Equipment and Materials,07-Dec-2020,000009318443501,SCREWFIX DIRECT,5211,Direct materials,37.99,0.00,37.99
Children and Young Peoples Services,Head of Childrens Social Care,085380,Operations Manager LAC Resources,Supplies and Services,328041,Clothing uniforms and laundry E328,07-Dec-2020,000009318443619,ARGOS LTD,5310,Clothing uniforms and laundry,-100.00,0.00,-100.00
Children and Young Peoples Services,Head of Childrens Social Care,085332,Middlestone Moor CU,Supplies and Services,304083,Equipment and Materials,07-Dec-2020,000009318443655,MOCHA,5812,Catering equipment,33.75,0.00,33.75
Children and Young Peoples Services,Head of Early Help Inclusion & Vulnerable Children.,085957,Secure Management,Supplies and Services,304403,Equipment and Materials,07-Dec-2020,000009318443723,AMZNMKTPLACE AMAZON.CO,5999,Other consumables,3.30,0.55,2.75
Children and Young Peoples Services,Head of Early Help Inclusion & Vulnerable Children.,085957,Secure Management,Supplies and Services,324117,Provisions E324,07-Dec-2020,000009318443731,TESCO STORES 6329,5411,Catering costs - provisions,107.86,0.00,107.86
Neighbourhoods and Climate Change,Environmental Services,010900,Fleet - Meadowfield Fleet,Transport,215013,Running Costs of Vehicles,07-Dec-2020,000009318443845,DVLA VEHICLE TAX,9311,Vehicle Excise Duty (VED),267.50,0.00,267.50
Children and Young Peoples Services,Head of Education and Skills,071732,Dean Bank Childcare,Supplies and Services,304403,Equipment and Materials,07-Dec-2020,000009318443937,AMZNMktplace,5999,Other consumables,29.95,5.00,24.95
Children and Young Peoples Services,Head of Education and Skills,071732,Dean Bank Childcare,Supplies and Services,324117,Provisions E324,07-Dec-2020,000009318443945,B&M 035 - SHILDON,5399,Catering costs - provisions,63.73,0.00,63.73
Children and Young Peoples Services,Head of Education and Skills,071732,Dean Bank Childcare,Supplies and Services,304403,Equipment and Materials,07-Dec-2020,000009318443955,AMZNMktplace,5999,Other consumables,24.79,4.14,20.65
"Regeneration, Economy and Growth",Culture Sport and Tourism,054967,Theatre - Technical Staffing,Supplies and Services,304221,Equipment and Materials,07-Dec-2020,000009318443961,SCREWFIX DIRECT,5211,Direct materials,39.65,0.00,39.65
Children and Young Peoples Services,Head of Childrens Social Care,085332,Middlestone Moor CU,Employees,040149,Recruitment Instruction and Training,07-Dec-2020,000009318443995,ROYAL VOLUNTARY SERVIC,8398,Training-all costs,8.74,0.00,8.74
Children and Young Peoples Services,Head of Childrens Social Care,085332,Middlestone Moor CU,Supplies and Services,324117,Provisions E324,07-Dec-2020,000009318443999,ENGIE UHND,5499,Catering costs - provisions,4.90,0.00,4.90
Children and Young Peoples Services,Head of Childrens Social Care,085332,Middlestone Moor CU,Supplies and Services,324117,Provisions E324,07-Dec-2020,000009318444007,TESCO STORES 2916,5411,Catering costs - provisions,21.73,0.00,21.73
Neighbourhoods and Climate Change,Environmental Services,010301,C&G - North Grounds Maintenance,Supplies and Services,304221,Equipment and Materials,07-Dec-2020,000009318444055,AZTEC CHEMICALS LTD,5169,Direct materials,378.97,63.16,315.81
Neighbourhoods and Climate Change,Environmental Services,010301,C&G - North Grounds Maintenance,Supplies and Services,304221,Equipment and Materials,07-Dec-2020,000009318444061,AZTEC CHEMICALS LTD,5169,Direct materials,417.31,69.55,347.76
"Regeneration, Economy and Growth",Development and Housing,031576,B& B - Temp Accom,Supplies and Services,364320,Grants to Voluntary Organisations,07-Dec-2020,000009318444103,H52STANLEY,7011,Accommodation assistance,339.00,0.00,339.00
"Regeneration, Economy and Growth",Development and Housing,031576,B& B - Temp Accom,Supplies and Services,364320,Grants to Voluntary Organisations,07-Dec-2020,000009318444111,DUNCAN BELTON TA K,6513,Accommodation assistance,350.00,0.00,350.00
Children and Young Peoples Services,Head of Early Help Inclusion & Vulnerable Children.,085957,Secure Management,Supplies and Services,384999,Miscellaneous Expenses,07-Dec-2020,000009318444121,Amazon.co.uk MS16M4CP4,5969,Other expenses,79.18,13.21,65.97
Children and Young Peoples Services,Head of Early Help Inclusion & Vulnerable Children.,085957,Secure Management,Supplies and Services,304403,Equipment and Materials,07-Dec-2020,000009318444127,AMZNMktplace,5999,Other consumables,63.84,10.64,53.20
Children and Young Peoples Services,Head of Early Help Inclusion & Vulnerable Children.,085957,Secure Management,Supplies and Services,304403,Equipment and Materials,07-Dec-2020,000009318444127 - 1,AMZNMktplace,5999,Other consumables,0.08,,0.08
Children and Young Peoples Services,Head of Early Help Inclusion & Vulnerable Children.,085957,Secure Management,Supplies and Services,328041,Clothing uniforms and laundry E328,07-Dec-2020,000009318444133,PRETTYLITTLETHING.COM,5691,Clothing uniforms and laundry,-17.00,0.00,-17.00
Neighbourhoods and Climate Change,Environmental Services,010367,C&G - South Grounds Maintenance,Supplies and Services,304221,Equipment and Materials,07-Dec-2020,000009318444189,A HILL & SONS LTD,5261,Direct materials,180.00,0.00,180.00
Neighbourhoods and Climate Change,Environmental Services,011060,C&G - Hardwick Park Catering,Supplies and Services,324117,Provisions E324,07-Dec-2020,000009318444207,FREEMAN CATERING BUTCH,5422,Catering costs - provisions,48.36,0.00,48.36
Neighbourhoods and Climate Change,Environmental Services,011060,C&G - Hardwick Park Catering,Supplies and Services,324117,Provisions E324,07-Dec-2020,000009318444219,FREEMAN CATERING BUTCH,5422,Catering costs - provisions,64.04,0.00,64.04
Neighbourhoods and Climate Change,Environmental Services,010919,C&G - Countryside Site Management,Supplies and Services,304221,Equipment and Materials,07-Dec-2020,000009318444271,SCREWFIX DIRECT,5211,Direct materials,16.98,0.00,16.98
Neighbourhoods and Climate Change,Environmental Services,010919,C&G - Countryside Site Management,Supplies and Services,304403,Equipment and Materials,07-Dec-2020,000009318444279,AMZ Keejea,5999,Other consumables,-15.75,-2.63,-13.12
"Regeneration, Economy and Growth",Development and Housing,031500,Housing Solutions - Core Team,Supplies and Services,348037,Subsistence E348,07-Dec-2020,000009318444377,MANOR HOUSE FERRYHILL,5812,Subsistence,350.00,0.00,350.00
"Regeneration, Economy and Growth",Development and Housing,031500,Housing Solutions - Core Team,Supplies and Services,352001,Conference Expenses,07-Dec-2020,000009318444387,HI NEWCASTLE WASHI,7011,Conferencesseminars fees etc,429.00,0.00,429.00
Children and Young Peoples Services,Head of Childrens Social Care,085331,New Lea Childrens Home,Supplies and Services,304403,Equipment and Materials,07-Dec-2020,000009318444393,AMZNMKTPLACE AMAZON.CO,5999,Other consumables,12.94,0.00,12.94
Children and Young Peoples Services,Head of Early Help Inclusion & Vulnerable Children.,088108,Spennymoor & Shildon 0-19 Targeted Family Support,Supplies and Services,304259,Equipment and Materials,07-Dec-2020,000009318444451,HOME BARGAINS,5251,Equipment-purchase and rental,37.90,0.00,37.90
Adult and Health Services,Head of Adults,055643,Hawthorn House LD Respite Unit,Supplies and Services,324117,Provisions E324,07-Dec-2020,000009318444545,WILKO RETAIL LIMITED,5399,Catering costs - provisions,6.00,0.00,6.00
Neighbourhoods and Climate Change,Environmental Services,010367,C&G - South Grounds Maintenance,Supplies and Services,304221,Equipment and Materials,07-Dec-2020,000009318444619,WINDLESTONE NURSERY LT,5261,Direct materials,75.00,0.00,75.00
Children and Young Peoples Services,Head of Childrens Social Care,085352,Tow Law CU,Supplies and Services,324117,Provisions E324,07-Dec-2020,000009318444669,WILKO.COM,5399,Catering costs - provisions,50.00,0.00,50.00
Neighbourhoods and Climate Change,Environmental Services,010367,C&G - South Grounds Maintenance,Supplies and Services,304221,Equipment and Materials,07-Dec-2020,000009318444715,SCREWFIX BISHOP AUCKLA,5211,Direct materials,4.98,0.00,4.98
Neighbourhoods and Climate Change,Environmental Services,010367,C&G - South Grounds Maintenance,Supplies and Services,304221,Equipment and Materials,07-Dec-2020,000009318444725,SCREWFIX DIRECT,5211,Direct materials,57.94,0.00,57.94
Adult and Health Services,Head of Adults,055643,Hawthorn House LD Respite Unit,Supplies and Services,324117,Provisions E324,07-Dec-2020,000009318444737,FREEMAN CATERING BUTCH,5422,Catering costs - provisions,31.29,0.00,31.29
Neighbourhoods and Climate Change,Environmental Services,010301,C&G - North Grounds Maintenance,Supplies and Services,324117,Provisions E324,07-Dec-2020,000009318444761,J VAN VLIET GATESHEAD,5399,Catering costs - provisions,96.84,0.00,96.84
Children and Young Peoples Services,Head of Early Help Inclusion & Vulnerable Children.,088110,Easington & Peterlee 0-19 Targeted Family Support,Supplies and Services,384302,Miscellaneous Expenses,07-Dec-2020,000009318444823,AMZNMKTPLACE AMAZON.CO,5999,Activity expenses,8.57,0.00,8.57
Children and Young Peoples Services,Head of Early Help Inclusion & Vulnerable Children.,088110,Easington & Peterlee 0-19 Targeted Family Support,Supplies and Services,384302,Miscellaneous Expenses,07-Dec-2020,000009318444837,AMZNMKTPLACE AMAZON.CO,5999,Activity expenses,40.39,6.74,33.65
Children and Young Peoples Services,Head of Early Help Inclusion & Vulnerable Children.,088110,Easington & Peterlee 0-19 Targeted Family Support,Supplies and Services,384302,Miscellaneous Expenses,07-Dec-2020,000009318444841,AMZNMKTPLACE AMAZON.CO,5999,Activity expenses,54.98,9.16,45.82
Children and Young Peoples Services,Head of Early Help Inclusion & Vulnerable Children.,088111,Easington & Peterlee 0-19 Community Family Hub,Supplies and Services,384302,Miscellaneous Expenses,07-Dec-2020,000009318444849,AMZNMktplace,5999,Activity expenses,5.99,1.00,4.99
"Regeneration, Economy and Growth",Culture Sport and Tourism,011204,Festival and Events,Supplies and Services,336005,Advertising E336,07-Dec-2020,000009318444895,FACEBK DJNNHYWQP2,7311,Advertising other than for staff,17.59,0.00,17.59
Adult and Health Services,Head of Adults,055301,Stanley Pathways,Supplies and Services,324117,Provisions E324,07-Dec-2020,000009318444939,WILKO RETAIL LIMITED,5399,Catering costs - provisions,3.00,0.00,3.00
Adult and Health Services,Head of Adults,055301,Stanley Pathways,Supplies and Services,324117,Provisions E324,07-Dec-2020,000009318444951,ASDA SUPERSTORE,5411,Catering costs - provisions,3.96,0.00,3.96
Children and Young Peoples Services,Head of Childrens Social Care,085351,Framwellgate Moor CU,Supplies and Services,304403,Equipment and Materials,07-Dec-2020,000009318445019,PERFUMEPRICE FRAGRANCE,5999,Other consumables,66.45,0.00,66.45
Children and Young Peoples Services,Head of Childrens Social Care,085351,Framwellgate Moor CU,Supplies and Services,324117,Provisions E324,07-Dec-2020,000009318445029,SAINSBURYS 0776,5411,Catering costs - provisions,42.31,0.00,42.31
Children and Young Peoples Services,Head of Childrens Social Care,085351,Framwellgate Moor CU,Supplies and Services,304259,Equipment and Materials,07-Dec-2020,000009318445033,JD SPORTS PLC,5941,Equipment-purchase and rental,126.00,0.00,126.00
Children and Young Peoples Services,Head of Childrens Social Care,085342,16 Hickstead Rise (previously 9 Cedar Ave),Supplies and Services,324117,Provisions E324,07-Dec-2020,000009318445043,TESCO STORES 2916,5411,Catering costs - provisions,143.48,0.00,143.48
Children and Young Peoples Services,Head of Education and Skills,071802,Louisa Cent Nursery,Supplies and Services,328041,Clothing uniforms and laundry E328,07-Dec-2020,000009318445051,POUNDSTRETCHER 354,5331,Clothing uniforms and laundry,5.37,0.00,5.37
Children and Young Peoples Services,Head of Education and Skills,071802,Louisa Cent Nursery,Supplies and Services,304999,Equipment and Materials,07-Dec-2020,000009318445059,HOME BARGAINS,5251,Misc equipment tools and materials,1.99,0.00,1.99
Children and Young Peoples Services,Head of Education and Skills,071802,Louisa Cent Nursery,Supplies and Services,324117,Provisions E324,07-Dec-2020,000009318445075,ASDA SUPERSTORE,5411,Catering costs - provisions,2.14,0.00,2.14
Children and Young Peoples Services,Head of Childrens Social Care,085633,Families First Chester-Le-Street,Supplies and Services,364340,Grants to Voluntary Organisations,07-Dec-2020,000009318445115,GO NORTH EAST LIMITED,4131,Contact expenses,20.00,0.00,20.00
Children and Young Peoples Services,Head of Early Help Inclusion & Vulnerable Children.,088107,Ferryhill & Newton Aycliffe 0-19 Community Family Hub,Supplies and Services,324117,Provisions E324,07-Dec-2020,000009318445135,ASDA GROCERIES ONLINE,5411,Catering costs - provisions,124.64,0.00,124.64
Children and Young Peoples Services,Head of Early Help Inclusion & Vulnerable Children.,088107,Ferryhill & Newton Aycliffe 0-19 Community Family Hub,Supplies and Services,324117,Provisions E324,07-Dec-2020,000009318445145,ASDA GROCERIES ONLINE,5411,Catering costs - provisions,-28.74,0.00,-28.74
"Regeneration, Economy and Growth",Development and Housing,031500,Housing Solutions - Core Team,Supplies and Services,304999,Equipment and Materials,07-Dec-2020,000009318445171,DUNCAN BELTON TA K,6513,Misc equipment tools and materials,500.00,0.00,500.00
"Regeneration, Economy and Growth",Development and Housing,030776,LINKCD Flexible Fund,Supplies and Services,304221,Equipment and Materials,07-Dec-2020,000009318445245,SCREWFIX DIRECT,5211,Direct materials,97.98,0.00,97.98
Children and Young Peoples Services,Head of Childrens Social Care,085333,Coxhoe Satelite Home,Supplies and Services,384999,Miscellaneous Expenses,07-Dec-2020,000009318445255,Pandora Jewellery UK L,5944,Other expenses,62.99,0.00,62.99
Children and Young Peoples Services,Head of Childrens Social Care,085331,New Lea Childrens Home,Supplies and Services,324117,Provisions E324,07-Dec-2020,000009318445281,TESCO STORES 6334,5411,Catering costs - provisions,7.99,0.00,7.99
Children and Young Peoples Services,Head of Childrens Social Care,085331,New Lea Childrens Home,Supplies and Services,328041,Clothing uniforms and laundry E328,07-Dec-2020,000009318445285,MOUNTAIN WAREHOUSE,5691,Clothing uniforms and laundry,34.88,0.00,34.88
Children and Young Peoples Services,Head of Childrens Social Care,085331,New Lea Childrens Home,Supplies and Services,304999,Equipment and Materials,07-Dec-2020,000009318445295,"BOOTS, 6551",5912,Misc equipment tools and materials,7.49,0.00,7.49
"Regeneration, Economy and Growth",Corporate Property and Land,021235,Catering - Wharton Park,Supplies and Services,324117,Provisions E324,07-Dec-2020,000009321007633,BATLEYS PERTH,5300,Catering costs - provisions,-16.55,-2.76,-13.79
Resources BK0010,Digital and Customer Services,065432,Web Development Group,Supplies and Services,342033,Computers and Communications,08-Dec-2020,000009318443127,WPMU DEV INCSUBFEE.COM,7372,Computer hardware,0.39,0.00,0.39
Children and Young Peoples Services,Head of Education and Skills,071801,Selby Cottage Childcare Centre,Supplies and Services,324117,Provisions E324,08-Dec-2020,000009321005071,ASDA GROCERIES ONLINE,5411,Catering costs - provisions,86.53,0.00,86.53
Children and Young Peoples Services,Head of Education and Skills,071801,Selby Cottage Childcare Centre,Supplies and Services,324117,Provisions E324,08-Dec-2020,000009321005077,ASDA GROCERIES ONLINE,5411,Catering costs - provisions,12.90,0.00,12.90
Children and Young Peoples Services,Head of Education and Skills,071801,Selby Cottage Childcare Centre,Supplies and Services,304999,Equipment and Materials,08-Dec-2020,000009321005089,Amazon Prime MS1UV6FN4,5968,Misc equipment tools and materials,7.99,0.00,7.99
Children and Young Peoples Services,Head of Education and Skills,054640,Durham Learning Resources 054640,Supplies and Services,304403,Equipment and Materials,08-Dec-2020,000009321005103,AMZNMktplace,5999,Other consumables,107.88,18.00,89.88
Children and Young Peoples Services,Head of Education and Skills,054640,Durham Learning Resources 054640,Supplies and Services,304403,Equipment and Materials,08-Dec-2020,000009321005113,AMZNMktplace,5999,Other consumables,37.55,6.27,31.28
Children and Young Peoples Services,Head of Childrens Social Care,085501,Child Care Cases Legal Expenses,Supplies and Services,304403,Equipment and Materials,08-Dec-2020,000009321005163,MIDDLESBROUGH COUNCIL,9399,Other consumables,35.00,0.00,35.00
Children and Young Peoples Services,Head of Education and Skills,075021,Youth Employment Initiative,Supplies and Services,364301,Grants to Voluntary Organisations,08-Dec-2020,000009321005197,AMZNMktplace,5999,Hardship,20.95,3.49,17.46
Children and Young Peoples Services,Head of Education and Skills,075021,Youth Employment Initiative,Supplies and Services,332048,Printing Stationery and Gen Off Exps,08-Dec-2020,000009321005205,AMZNMktplace,5999,Administrative stationery etc,9.99,0.00,9.99
Children and Young Peoples Services,Head of Education and Skills,075021,Youth Employment Initiative,Supplies and Services,364301,Grants to Voluntary Organisations,08-Dec-2020,000009321005211,GO NORTH EAST LIMITED,4131,Hardship,75.00,0.00,75.00
Children and Young Peoples Services,Head of Education and Skills,075021,Youth Employment Initiative,Supplies and Services,364301,Grants to Voluntary Organisations,08-Dec-2020,000009321005215,GO NORTH EAST LIMITED,4131,Hardship,75.00,0.00,75.00
Children and Young Peoples Services,Head of Education and Skills,075021,Youth Employment Initiative,Supplies and Services,364301,Grants to Voluntary Organisations,08-Dec-2020,000009321005221,ASDA GEORGE COM LEEDS,5411,Hardship,27.00,0.00,27.00
Resources BK0010,Transformation,060136,Relocation of County Archives,Supplies and Services,304259,Equipment and Materials,08-Dec-2020,000009321005225,ETSY.COM GREENBANKS,5699,Equipment-purchase and rental,64.00,0.00,64.00
Children and Young Peoples Services,Head of Childrens Social Care,085332,Middlestone Moor CU,Supplies and Services,324117,Provisions E324,08-Dec-2020,000009321005305,TESCO STORES 2371,5411,Catering costs - provisions,139.46,0.00,139.46
Children and Young Peoples Services,Head of Childrens Social Care,085341,High Etherley Satelite Home,Supplies and Services,324117,Provisions E324,08-Dec-2020,000009321005377,TESCO STORES 6329,5411,Catering costs - provisions,41.80,0.00,41.80
Children and Young Peoples Services,Head of Childrens Social Care,085341,High Etherley Satelite Home,Supplies and Services,324117,Provisions E324,08-Dec-2020,000009321005389,TESCO STORES 6329,5411,Catering costs - provisions,9.12,0.00,9.12
Neighbourhoods and Climate Change,Environmental Services,010367,C&G - South Grounds Maintenance,Supplies and Services,304221,Equipment and Materials,08-Dec-2020,000009321005629,SCREWFIX PETERLEE,5211,Direct materials,15.96,2.66,13.30
Neighbourhoods and Climate Change,Environmental Services,010367,C&G - South Grounds Maintenance,Supplies and Services,304221,Equipment and Materials,08-Dec-2020,000009321005761,JT ATKINSON & SONS LTD,5211,Direct materials,16.80,0.00,16.80
Neighbourhoods and Climate Change,Environmental Services,010367,C&G - South Grounds Maintenance,Supplies and Services,304221,Equipment and Materials,08-Dec-2020,000009321005771,JEWSON LTD,5211,Direct materials,412.16,0.00,412.16
Neighbourhoods and Climate Change,Environmental Services,010561,Fleet - Morrison Busty Fleet,Transport,215013,Running Costs of Vehicles,08-Dec-2020,000009321006041,DVLA VEHICLE TAX,9311,Vehicle Excise Duty (VED),267.50,0.00,267.50
Neighbourhoods and Climate Change,Environmental Services,010900,Fleet - Meadowfield Fleet,Transport,215013,Running Costs of Vehicles,08-Dec-2020,000009321006053,DVLA VEHICLE TAX,9311,Vehicle Excise Duty (VED),267.50,0.00,267.50
Neighbourhoods and Climate Change,Environmental Services,010551,Fleet - Chilton Fleet,Transport,215013,Running Costs of Vehicles,08-Dec-2020,000009321006061,DVLA VEHICLE TAX,9311,Vehicle Excise Duty (VED),302.50,0.00,302.50
Neighbourhoods and Climate Change,Environmental Services,010900,Fleet - Meadowfield Fleet,Transport,215013,Running Costs of Vehicles,08-Dec-2020,000009321006073,DVLA VEHICLE TAX,9311,Vehicle Excise Duty (VED),267.50,0.00,267.50
Neighbourhoods and Climate Change,Environmental Services,010551,Fleet - Chilton Fleet,Transport,215013,Running Costs of Vehicles,08-Dec-2020,000009321006091,DVLA VEHICLE TAX,9311,Vehicle Excise Duty (VED),302.50,0.00,302.50
Neighbourhoods and Climate Change,Environmental Services,010561,Fleet - Morrison Busty Fleet,Transport,215013,Running Costs of Vehicles,08-Dec-2020,000009321006097,DVLA VEHICLE TAX,9311,Vehicle Excise Duty (VED),152.50,0.00,152.50
Neighbourhoods and Climate Change,Environmental Services,010900,Fleet - Meadowfield Fleet,Transport,215013,Running Costs of Vehicles,08-Dec-2020,000009321006105,DVLA VEHICLE TAX,9311,Vehicle Excise Duty (VED),152.50,0.00,152.50
Neighbourhoods and Climate Change,Environmental Services,010561,Fleet - Morrison Busty Fleet,Transport,215013,Running Costs of Vehicles,08-Dec-2020,000009321006117,DVLA VEHICLE TAX,9311,Vehicle Excise Duty (VED),167.50,0.00,167.50
Neighbourhoods and Climate Change,Environmental Services,010900,Fleet - Meadowfield Fleet,Transport,215013,Running Costs of Vehicles,08-Dec-2020,000009321006135,DVLA VEHICLE TAX,9311,Vehicle Excise Duty (VED),152.50,0.00,152.50
Neighbourhoods and Climate Change,Environmental Services,010561,Fleet - Morrison Busty Fleet,Transport,215013,Running Costs of Vehicles,08-Dec-2020,000009321006137,DVLA VEHICLE TAX,9311,Vehicle Excise Duty (VED),302.50,0.00,302.50
Neighbourhoods and Climate Change,Environmental Services,010900,Fleet - Meadowfield Fleet,Transport,215013,Running Costs of Vehicles,08-Dec-2020,000009321006145,DVLA VEHICLE TAX,9311,Vehicle Excise Duty (VED),267.50,0.00,267.50
Neighbourhoods and Climate Change,Environmental Services,010900,Fleet - Meadowfield Fleet,Transport,215013,Running Costs of Vehicles,08-Dec-2020,000009321006153,DVLA VEHICLE TAX,9311,Vehicle Excise Duty (VED),167.50,0.00,167.50
Neighbourhoods and Climate Change,Environmental Services,010551,Fleet - Chilton Fleet,Transport,215013,Running Costs of Vehicles,08-Dec-2020,000009321006161,DVLA VEHICLE TAX,9311,Vehicle Excise Duty (VED),267.50,0.00,267.50
Neighbourhoods and Climate Change,Environmental Services,010561,Fleet - Morrison Busty Fleet,Transport,215013,Running Costs of Vehicles,08-Dec-2020,000009321006169,DVLA VEHICLE TAX,9311,Vehicle Excise Duty (VED),267.50,0.00,267.50
Neighbourhoods and Climate Change,Environmental Services,010864,Fleet - Hackworth Road Fleet,Transport,215013,Running Costs of Vehicles,08-Dec-2020,000009321006175,DVLA VEHICLE TAX,9311,Vehicle Excise Duty (VED),167.50,0.00,167.50
Neighbourhoods and Climate Change,Environmental Services,010900,Fleet - Meadowfield Fleet,Transport,215013,Running Costs of Vehicles,08-Dec-2020,000009321006185,DVLA VEHICLE TAX,9311,Vehicle Excise Duty (VED),167.50,0.00,167.50
Neighbourhoods and Climate Change,Environmental Services,010900,Fleet - Meadowfield Fleet,Transport,215013,Running Costs of Vehicles,08-Dec-2020,000009321006193,DVLA VEHICLE TAX,9311,Vehicle Excise Duty (VED),267.50,0.00,267.50
Neighbourhoods and Climate Change,Environmental Services,010561,Fleet - Morrison Busty Fleet,Transport,215013,Running Costs of Vehicles,08-Dec-2020,000009321006201,DVLA VEHICLE TAX,9311,Vehicle Excise Duty (VED),302.50,0.00,302.50
Resources BK0010,Digital and Customer Services,065487,ICT Telephony Recharges,Supplies and Services,372009,Subscriptions E372,08-Dec-2020,000009321006279,NOMINET UK,7392,Subscriptions 372009,37.44,6.24,31.20
Resources BK0010,Digital and Customer Services,070204,School Services - Systems,Supplies and Services,372009,Subscriptions E372,08-Dec-2020,000009321006293,NOMINET UK,7392,Subscriptions 372009,70.20,0.00,70.20
Children and Young Peoples Services,Head of Education and Skills,071732,Dean Bank Childcare,Supplies and Services,304403,Equipment and Materials,08-Dec-2020,000009321006383,AMZNMktplace,5999,Other consumables,15.66,2.61,13.05
Children and Young Peoples Services,Head of Education and Skills,071732,Dean Bank Childcare,Supplies and Services,324117,Provisions E324,08-Dec-2020,000009321006387,B&M 035 - SHILDON,5399,Catering costs - provisions,62.02,0.00,62.02
Children and Young Peoples Services,Head of Education and Skills,071732,Dean Bank Childcare,Supplies and Services,324117,Provisions E324,08-Dec-2020,000009321006397,ASDA GROCERIES ONLINE,5411,Catering costs - provisions,55.50,0.00,55.50
Children and Young Peoples Services,Head of Education and Skills,071732,Dean Bank Childcare,Supplies and Services,324117,Provisions E324,08-Dec-2020,000009321006401,ASDA GROCERIES ONLINE,5411,Catering costs - provisions,103.00,0.00,103.00
Children and Young Peoples Services,Head of Education and Skills,071732,Dean Bank Childcare,Supplies and Services,324117,Provisions E324,08-Dec-2020,000009321006409,ASDA GROCERIES ONLINE,5411,Catering costs - provisions,8.40,0.00,8.40
Children and Young Peoples Services,Head of Education and Skills,071732,Dean Bank Childcare,Supplies and Services,324117,Provisions E324,08-Dec-2020,000009321006419,ASDA GROCERIES ONLINE,5411,Catering costs - provisions,4.68,0.00,4.68
"Regeneration, Economy and Growth",Culture Sport and Tourism,054967,Theatre - Technical Staffing,Supplies and Services,304221,Equipment and Materials,08-Dec-2020,000009321006423,PAIGNTON TOOLS,5211,Direct materials,12.24,0.00,12.24
"Regeneration, Economy and Growth",Culture Sport and Tourism,054967,Theatre - Technical Staffing,Supplies and Services,304259,Equipment and Materials,08-Dec-2020,000009321006429,PAYPAL LOGICIRRIGA,5941,Equipment-purchase and rental,32.76,0.00,32.76
"Regeneration, Economy and Growth",Culture Sport and Tourism,054967,Theatre - Technical Staffing,Supplies and Services,304403,Equipment and Materials,08-Dec-2020,000009321006437,AMZNMKTPLACE AMAZON.CO,5999,Other consumables,13.99,0.00,13.99
Neighbourhoods and Climate Change,Environmental Services,011060,C&G - Hardwick Park Catering,Supplies and Services,304083,Equipment and Materials,08-Dec-2020,000009321006457,WWW.NISBETS.COM,5964,Catering equipment,107.01,0.00,107.01
Neighbourhoods and Climate Change,Environmental Services,010314,Nei.Prot - Bereavement Services,Supplies and Services,304259,Equipment and Materials,08-Dec-2020,000009321006465,Durham County CNCL,9399,Equipment-purchase and rental,11.00,0.00,11.00
"Regeneration, Economy and Growth",Development and Housing,031576,B& B - Temp Accom,Supplies and Services,364320,Grants to Voluntary Organisations,08-Dec-2020,000009321006541,AYCLIFFE BIZ,7011,Accommodation assistance,152.00,0.00,152.00
"Regeneration, Economy and Growth",Development and Housing,031576,B& B - Temp Accom,Supplies and Services,364320,Grants to Voluntary Organisations,08-Dec-2020,000009321006547,AYCLIFFE BIZ,7011,Accommodation assistance,152.00,0.00,152.00
"Regeneration, Economy and Growth",Development and Housing,031576,B& B - Temp Accom,Supplies and Services,364320,Grants to Voluntary Organisations,08-Dec-2020,000009321006555,DUNCAN BELTON TA K,6513,Accommodation assistance,500.00,0.00,500.00
Children and Young Peoples Services,Head of Early Help Inclusion & Vulnerable Children.,088107,Ferryhill & Newton Aycliffe 0-19 Community Family Hub,Supplies and Services,384999,Miscellaneous Expenses,08-Dec-2020,000009321006563,Amazon.co.uk MS0GD0FQ4,5969,Other expenses,18.00,3.00,15.00
Children and Young Peoples Services,Head of Early Help Inclusion & Vulnerable Children.,088107,Ferryhill & Newton Aycliffe 0-19 Community Family Hub,Supplies and Services,384999,Miscellaneous Expenses,08-Dec-2020,000009321006563 - 1,Amazon.co.uk MS0GD0FQ4,5969,Other expenses,24.84,,24.84
Children and Young Peoples Services,Head of Childrens Social Care,085334,West Rainton Satelite Home,Supplies and Services,324117,Provisions E324,08-Dec-2020,000009321006617,TESCO STORES 2916,5411,Catering costs - provisions,34.00,0.00,34.00
Children and Young Peoples Services,Head of Early Help Inclusion & Vulnerable Children.,085957,Secure Management,Supplies and Services,328041,Clothing uniforms and laundry E328,08-Dec-2020,000009321006627,Foot Locker Europe.com,5661,Clothing uniforms and laundry,29.99,0.00,29.99
Children and Young Peoples Services,Head of Early Help Inclusion & Vulnerable Children.,085957,Secure Management,Supplies and Services,304403,Equipment and Materials,08-Dec-2020,000009321006633,AMZNMKTPLACE AMAZON.CO,5999,Other consumables,16.04,2.68,13.36
Children and Young Peoples Services,Head of Early Help Inclusion & Vulnerable Children.,085957,Secure Management,Supplies and Services,304403,Equipment and Materials,08-Dec-2020,000009321006637,AMZNMKTPLACE AMAZON.CO,5999,Other consumables,19.99,0.00,19.99
Children and Young Peoples Services,Head of Early Help Inclusion & Vulnerable Children.,085957,Secure Management,Supplies and Services,328041,Clothing uniforms and laundry E328,08-Dec-2020,000009321006647,VIVICHI LIMITED,5691,Clothing uniforms and laundry,35.99,0.00,35.99
Children and Young Peoples Services,Head of Early Help Inclusion & Vulnerable Children.,085957,Secure Management,Supplies and Services,384999,Miscellaneous Expenses,08-Dec-2020,000009321006653,Amazon.co.uk MS0QJ5FV4,5969,Other expenses,15.01,2.50,12.51
Children and Young Peoples Services,Head of Early Help Inclusion & Vulnerable Children.,085957,Secure Management,Supplies and Services,328041,Clothing uniforms and laundry E328,08-Dec-2020,000009321006669,PRETTYLITTLETHING.COM,5691,Clothing uniforms and laundry,23.80,0.00,23.80
Children and Young Peoples Services,Head of Early Help Inclusion & Vulnerable Children.,085957,Secure Management,Supplies and Services,328041,Clothing uniforms and laundry E328,08-Dec-2020,000009321006673,PRETTYLITTLETHING.COM,5691,Clothing uniforms and laundry,17.50,0.00,17.50
Children and Young Peoples Services,Head of Early Help Inclusion & Vulnerable Children.,085957,Secure Management,Supplies and Services,328041,Clothing uniforms and laundry E328,08-Dec-2020,000009321006681,PRETTYLITTLETHING.COM,5691,Clothing uniforms and laundry,12.60,0.00,12.60
Children and Young Peoples Services,Head of Early Help Inclusion & Vulnerable Children.,085957,Secure Management,Supplies and Services,324117,Provisions E324,08-Dec-2020,000009321006687,MARKS&SPENCER PLC,5411,Catering costs - provisions,35.00,0.00,35.00
Children and Young Peoples Services,Head of Early Help Inclusion & Vulnerable Children.,085957,Secure Management,Supplies and Services,304259,Equipment and Materials,08-Dec-2020,000009321006697,JD SPORTS INTERNET,5941,Equipment-purchase and rental,145.00,0.00,145.00
Children and Young Peoples Services,Head of Early Help Inclusion & Vulnerable Children.,085957,Secure Management,Supplies and Services,304259,Equipment and Materials,08-Dec-2020,000009321006701,JD SPORTS INTERNET,5941,Equipment-purchase and rental,31.99,0.00,31.99
"Regeneration, Economy and Growth",Development and Housing,031500,Housing Solutions - Core Team,Supplies and Services,352001,Conference Expenses,08-Dec-2020,000009321006819,AYCLIFFE BIZ,7011,Conferencesseminars fees etc,152.00,0.00,152.00
"Regeneration, Economy and Growth",Development and Housing,031500,Housing Solutions - Core Team,Supplies and Services,304259,Equipment and Materials,08-Dec-2020,000009321006827,WWW.EASTDURHAMHOMES.CO,9399,Equipment-purchase and rental,187.10,0.00,187.10
Children and Young Peoples Services,Head of Childrens Social Care,085331,New Lea Childrens Home,Supplies and Services,312009,Newspapers books and periodicals E312,08-Dec-2020,000009321006835,BOOKDEPOSITORY.COM,5942,Newspapers books and periodicals,7.19,0.00,7.19
Children and Young Peoples Services,Head of Early Help Inclusion & Vulnerable Children.,088108,Spennymoor & Shildon 0-19 Targeted Family Support,Supplies and Services,304259,Equipment and Materials,08-Dec-2020,000009321006937,ASDA STORES,5411,Equipment-purchase and rental,9.00,0.00,9.00
Children and Young Peoples Services,Head of Early Help Inclusion & Vulnerable Children.,088109,Spennymoor & Shildon 0-19 Community Family Hub,Supplies and Services,304259,Equipment and Materials,08-Dec-2020,000009321006943,highstreetvouchers,8641,Equipment-purchase and rental,506.50,0.00,506.50
Children and Young Peoples Services,Head of Education and Skills,071802,Louisa Cent Nursery,Supplies and Services,324117,Provisions E324,08-Dec-2020,000009321007025,ASDA SUPERSTORE,5411,Catering costs - provisions,2.68,0.00,2.68
Children and Young Peoples Services,Head of Childrens Social Care,085352,Tow Law CU,Supplies and Services,324117,Provisions E324,08-Dec-2020,000009321007083,B&M 681 - DURHAM,5399,Catering costs - provisions,83.39,0.00,83.39
Children and Young Peoples Services,Head of Childrens Social Care,085352,Tow Law CU,Supplies and Services,324117,Provisions E324,08-Dec-2020,000009321007089,SAINSBURYS 0776,5411,Catering costs - provisions,35.60,0.00,35.60
Children and Young Peoples Services,Head of Education and Skills,071903,Early Years Sustainability,Supplies and Services,384999,Miscellaneous Expenses,08-Dec-2020,000009321007161,PAYPAL TEACHERHEAD,8211,Other expenses,70.00,0.00,70.00
Children and Young Peoples Services,Head of Childrens Social Care,085334,West Rainton Satelite Home,Supplies and Services,304999,Equipment and Materials,08-Dec-2020,000009321007171,Costco Wholesale #109,7278,Misc equipment tools and materials,33.60,0.00,33.60
Resources BK0010,Digital and Customer Services,065335,School Services - Implementations,Supplies and Services,304303,Equipment and Materials,08-Dec-2020,000009321007205,AMZNMKTPLACE AMAZON.CO,5999,Network for resale,250.20,41.70,208.50
Resources BK0010,Digital and Customer Services,065335,School Services - Implementations,Supplies and Services,304303,Equipment and Materials,08-Dec-2020,000009321007205 - 1,AMZNMKTPLACE AMAZON.CO,5999,Network for resale,0.04,,0.04
Resources BK0010,Digital and Customer Services,065335,School Services - Implementations,Supplies and Services,304639,Equipment and Materials,08-Dec-2020,000009321007213,REPLACEBASE,5732,Technicians-supplies,25.91,0.00,25.91
Resources BK0010,Digital and Customer Services,065335,School Services - Implementations,Supplies and Services,304303,Equipment and Materials,08-Dec-2020,000009321007217,WWW.GEAR4MUSIC.COM,5733,Network for resale,181.49,0.00,181.49
Children and Young Peoples Services,Head of Childrens Social Care,085342,16 Hickstead Rise (previously 9 Cedar Ave),Supplies and Services,324117,Provisions E324,08-Dec-2020,000009321007223,TESCO STORES 2916,5411,Catering costs - provisions,6.70,0.00,6.70
Children and Young Peoples Services,Head of Childrens Social Care,085334,West Rainton Satelite Home,Supplies and Services,304999,Equipment and Materials,08-Dec-2020,000009321007227,Costco Wholesale #109,7278,Misc equipment tools and materials,289.95,0.00,289.95
Children and Young Peoples Services,Head of Childrens Social Care,085334,West Rainton Satelite Home,Supplies and Services,324117,Provisions E324,08-Dec-2020,000009321007231,THE APPLE ORCHARD,5411,Catering costs - provisions,12.00,0.00,12.00
Children and Young Peoples Services,Head of Childrens Social Care,085334,West Rainton Satelite Home,Supplies and Services,324117,Provisions E324,08-Dec-2020,000009321007235,ALDI 24 774,5411,Catering costs - provisions,65.26,0.00,65.26
Resources BK0010,Business Support,052986,CYPS - Locality and Operational Support,Supplies and Services,304403,Equipment and Materials,08-Dec-2020,000009321007267,AMZNMktplace,5999,Other consumables,40.00,0.00,40.00
Resources BK0010,Business Support,052986,CYPS - Locality and Operational Support,Supplies and Services,304403,Equipment and Materials,08-Dec-2020,000009321007273,AMZNMKTPLACE AMAZON.CO,5999,Other consumables,40.00,0.00,40.00
Resources BK0010,Business Support,052986,CYPS - Locality and Operational Support,Supplies and Services,304403,Equipment and Materials,08-Dec-2020,000009321007277,AMZNMKTPLACE AMAZON.CO,5999,Other consumables,40.00,0.00,40.00
Resources BK0010,Business Support,052986,CYPS - Locality and Operational Support,Supplies and Services,304403,Equipment and Materials,08-Dec-2020,000009321007283,AMZNMktplace,5999,Other consumables,40.00,0.00,40.00
Resources BK0010,Business Support,052986,CYPS - Locality and Operational Support,Supplies and Services,304403,Equipment and Materials,08-Dec-2020,000009321007287,AMZNMktplace,5999,Other consumables,40.00,0.00,40.00
Resources BK0010,Business Support,052986,CYPS - Locality and Operational Support,Supplies and Services,304403,Equipment and Materials,08-Dec-2020,000009321007293,AMZNMktplace,5999,Other consumables,40.00,0.00,40.00
"Regeneration, Economy and Growth",Business Durham CL0850,030690,Durham Dales Centre - Tourist Information Centre,Supplies and Services,304403,Equipment and Materials,08-Dec-2020,000009321007301,WWW.GAINSBOROUGHGIFTWA,5947,Other consumables,300.61,0.00,300.61
"Regeneration, Economy and Growth",Business Durham CL0850,030690,Durham Dales Centre - Tourist Information Centre,Supplies and Services,304403,Equipment and Materials,08-Dec-2020,000009321007309,JOE DAVIES (MANCHESTER,5947,Other consumables,667.61,0.00,667.61
Neighbourhoods and Climate Change,Environmental Services,010301,C&G - North Grounds Maintenance,Supplies and Services,304221,Equipment and Materials,08-Dec-2020,000009321007317,MKM BUILDING SUPPLIES,5211,Direct materials,57.70,0.00,57.70
"Regeneration, Economy and Growth",Business Durham CL0850,030671,Business Space 030671,Supplies and Services,340001,Postages E340,08-Dec-2020,000009321007327,ROYAL MAIL FEES,9402,Postages,58.00,0.00,58.00
Children and Young Peoples Services,Head of Childrens Social Care,085342,16 Hickstead Rise (previously 9 Cedar Ave),Supplies and Services,324117,Provisions E324,08-Dec-2020,000009321007385,TESCO STORES 2916,5411,Catering costs - provisions,73.04,0.00,73.04
"Regeneration, Economy and Growth",Development and Housing,031500,Housing Solutions - Core Team,Supplies and Services,352001,Conference Expenses,08-Dec-2020,000009321007439,H52STANLEY,7011,Conferencesseminars fees etc,129.00,0.00,129.00
"Regeneration, Economy and Growth",Development and Housing,031500,Housing Solutions - Core Team,Supplies and Services,352001,Conference Expenses,08-Dec-2020,000009321007445,H52STANLEY,7011,Conferencesseminars fees etc,154.00,0.00,154.00
"Regeneration, Economy and Growth",Development and Housing,031500,Housing Solutions - Core Team,Supplies and Services,304999,Equipment and Materials,08-Dec-2020,000009321007455,DUNCAN BELTON TA K,6513,Misc equipment tools and materials,200.00,0.00,200.00
Children and Young Peoples Services,Head of Childrens Social Care,085331,New Lea Childrens Home,Supplies and Services,324117,Provisions E324,08-Dec-2020,000009321007515,TESCO STORES 2371,5411,Catering costs - provisions,128.67,0.00,128.67
Children and Young Peoples Services,Head of Childrens Social Care,085331,New Lea Childrens Home,Supplies and Services,304403,Equipment and Materials,08-Dec-2020,000009321007521,IZ DURHAM BED AND FUR,5999,Other consumables,150.00,0.00,150.00
Resources BK0010,Business Support,069010,Administration 069010,Supplies and Services,384999,Miscellaneous Expenses,08-Dec-2020,000009321007573,Amazon.co.uk MS16I74M4,5969,Other expenses,19.89,3.32,16.57
Neighbourhoods and Climate Change,Environmental Services,031217,North Pennines - Cold Blooded & Spineless,Supplies and Services,324117,Provisions E324,08-Dec-2020,000009321007675,TESCO STORES 5184,5411,Catering costs - provisions,5.00,0.00,5.00
Children and Young Peoples Services,Head of Childrens Social Care,085334,West Rainton Satelite Home,Supplies and Services,304999,Equipment and Materials,08-Dec-2020,000009321007691,HOME BARGAINS,5251,Misc equipment tools and materials,9.66,0.00,9.66
Children and Young Peoples Services,Head of Childrens Social Care,085551,Short Break Services-Park Hse Sher,Supplies and Services,324117,Provisions E324,08-Dec-2020,000009321007701,TESCO STORES 2371,5411,Catering costs - provisions,11.68,0.00,11.68
Resources BK0010,Digital and Customer Services,065330,Operations Field Support,Supplies and Services,304403,Equipment and Materials,08-Dec-2020,000009324046401,AMZNMKTPLACE AMAZON.CO,5999,Other consumables,27.89,4.65,23.24
Resources BK0010,Transformation,060136,Relocation of County Archives,Supplies and Services,304259,Equipment and Materials,08-Dec-2020,000009324046721,ETSY.COM GREENBANKS,5699,Equipment-purchase and rental,-23.00,0.00,-23.00
Children and Young Peoples Services,Head of Childrens Social Care,085334,West Rainton Satelite Home,Supplies and Services,328041,Clothing uniforms and laundry E328,08-Dec-2020,000009324048203,PRIMARK,5651,Clothing uniforms and laundry,13.00,0.00,13.00
Children and Young Peoples Services,Head of Early Help Inclusion & Vulnerable Children.,085957,Secure Management,Supplies and Services,328041,Clothing uniforms and laundry E328,08-Dec-2020,000009324048289,VANS,5651,Clothing uniforms and laundry,65.00,0.00,65.00
Neighbourhoods and Climate Change,Environmental Services,011060,C&G - Hardwick Park Catering,Supplies and Services,324117,Provisions E324,08-Dec-2020,000009324048393,BATLEYS PERTH,5300,Catering costs - provisions,-17.39,0.00,-17.39
Children and Young Peoples Services,Head of Early Help Inclusion & Vulnerable Children.,085957,Secure Management,Supplies and Services,328041,Clothing uniforms and laundry E328,08-Dec-2020,000009324049163,HM.COM,5691,Clothing uniforms and laundry,135.66,22.61,113.05
Resources BK0010,Business Support,052986,CYPS - Locality and Operational Support,Supplies and Services,352001,Conference Expenses,08-Dec-2020,000009324049197,TVLICENSING.CO.UK,7392,Conferencesseminars fees etc,157.50,0.00,157.50
Resources BK0010,Business Support,052986,CYPS - Locality and Operational Support,Supplies and Services,352001,Conference Expenses,08-Dec-2020,000009324049209,TVLICENSING.CO.UK,7392,Conferencesseminars fees etc,157.50,0.00,157.50
Resources BK0010,Business Support,052986,CYPS - Locality and Operational Support,Supplies and Services,304403,Equipment and Materials,08-Dec-2020,000009324049217,AMZNMKTPLACE AMAZON.CO,5999,Other consumables,80.00,0.00,80.00
Children and Young Peoples Services,Head of Early Help Inclusion & Vulnerable Children.,085957,Secure Management,Supplies and Services,328041,Clothing uniforms and laundry E328,09-Dec-2020,000009321006659,Nike,5655,Clothing uniforms and laundry,102.90,0.00,102.90
Children and Young Peoples Services,Head of Early Help Inclusion & Vulnerable Children.,085957,Secure Management,Supplies and Services,304403,Equipment and Materials,09-Dec-2020,000009321006689,AMZNMktplace,5999,Other consumables,24.49,0.00,24.49
"Regeneration, Economy and Growth",Business Durham CL0850,030689,Inward Investment and Aftercare,Supplies and Services,304999,Equipment and Materials,09-Dec-2020,000009324046163,MAILCHIMP MONTHLY,5968,Misc equipment tools and materials,79.44,0.00,79.44
Children and Young Peoples Services,Head of Education and Skills,071801,Selby Cottage Childcare Centre,Supplies and Services,324117,Provisions E324,09-Dec-2020,000009324046253,TESCO STORES 2371,5411,Catering costs - provisions,83.44,0.00,83.44
Children and Young Peoples Services,Head of Education and Skills,054640,Durham Learning Resources 054640,Supplies and Services,304403,Equipment and Materials,09-Dec-2020,000009324046283,AMZNMktplace,5999,Other consumables,27.96,0.00,27.96
Children and Young Peoples Services,Head of Education and Skills,054640,Durham Learning Resources 054640,Supplies and Services,384999,Miscellaneous Expenses,09-Dec-2020,000009324046303,Amazon.co.uk MS0U29Z74,5969,Other expenses,89.95,15.00,74.95
Children and Young Peoples Services,Head of Education and Skills,054640,Durham Learning Resources 054640,Supplies and Services,384999,Miscellaneous Expenses,09-Dec-2020,000009324046317,Amazon.co.uk MS6JM3L34,5969,Other expenses,18.88,0.00,18.88
Children and Young Peoples Services,Head of Education and Skills,054640,Durham Learning Resources 054640,Supplies and Services,384999,Miscellaneous Expenses,09-Dec-2020,000009324046331,Amazon.co.uk MS2F31ZD4,5969,Other expenses,18.66,0.00,18.66
Neighbourhoods and Climate Change,Technical Services CM0300,018500,Highway Services - Countywide,Supplies and Services,304403,Equipment and Materials,09-Dec-2020,000009324046413,AMZNMktplace,5999,Other consumables,7.49,1.25,6.24
Neighbourhoods and Climate Change,Technical Services CM0300,018500,Highway Services - Countywide,Supplies and Services,304403,Equipment and Materials,09-Dec-2020,000009324046431,AMZNMktplace,5999,Other consumables,24.80,4.15,20.65
Resources BK0010,Digital and Customer Services,065487,ICT Telephony Recharges,Supplies and Services,344033,Telephones,09-Dec-2020,000009324046445,AMZNMktplace,5999,Telephones general-all costs,305.00,51.00,254.00
Children and Young Peoples Services,Head of Education and Skills,078554,Adult Skills-Main,Supplies and Services,332047,Printing Stationery and Gen Off Exps,09-Dec-2020,000009324046667,Amazon.co.uk MS1Z51Z04,5969,Stationery,40.28,0.00,40.28
Children and Young Peoples Services,Head of Education and Skills,078411,16-19 Education & Training,Transport,235057,Public Transport,09-Dec-2020,000009324046681,GO NORTH EAST LIMITED,4131,Staff travelling,17.00,0.00,17.00
Resources BK0010,Transformation,060136,Relocation of County Archives,Supplies and Services,304259,Equipment and Materials,09-Dec-2020,000009324046703,Amazon.co.uk MS8UT3LK4,5969,Equipment-purchase and rental,54.99,9.17,45.82
Children and Young Peoples Services,Head of Childrens Social Care,085332,Middlestone Moor CU,Supplies and Services,324117,Provisions E324,09-Dec-2020,000009324046735,HOME BARGAINS,5251,Catering costs - provisions,80.06,0.00,80.06
Children and Young Peoples Services,Head of Childrens Social Care,085332,Middlestone Moor CU,Supplies and Services,324117,Provisions E324,09-Dec-2020,000009324046749,TESCO STORES 2916,5411,Catering costs - provisions,29.85,0.00,29.85
Children and Young Peoples Services,Head of Childrens Social Care,085380,Operations Manager LAC Resources,Supplies and Services,328041,Clothing uniforms and laundry E328,09-Dec-2020,000009324047235,ARGOS LTD,5310,Clothing uniforms and laundry,119.00,0.00,119.00
Children and Young Peoples Services,Head of Childrens Social Care,085380,Operations Manager LAC Resources,Supplies and Services,328041,Clothing uniforms and laundry E328,09-Dec-2020,000009324047253,ARGOS LTD,5310,Clothing uniforms and laundry,207.95,0.00,207.95
"Regeneration, Economy and Growth",Development and Housing,030770,Durham Advance,Supplies and Services,304259,Equipment and Materials,09-Dec-2020,000009324047267,CANVA 02899-9727718,7221,Equipment-purchase and rental,107.88,0.00,107.88
Neighbourhoods and Climate Change,Environmental Services,010367,C&G - South Grounds Maintenance,Supplies and Services,304221,Equipment and Materials,09-Dec-2020,000009324047405,TRAVIS PERKINS,5211,Direct materials,42.96,7.16,35.80
Neighbourhoods and Climate Change,Environmental Services,010367,C&G - South Grounds Maintenance,Supplies and Services,304221,Equipment and Materials,09-Dec-2020,000009324047413,JEWSON LTD,5211,Direct materials,161.40,0.00,161.40
"Regeneration, Economy and Growth",Development and Housing,031576,B& B - Temp Accom,Supplies and Services,364320,Grants to Voluntary Organisations,09-Dec-2020,000009324047433,H52STANLEY,7011,Accommodation assistance,308.00,0.00,308.00
Children and Young Peoples Services,Head of Childrens Social Care,085511,Emergency Duty Team,Supplies and Services,304259,Equipment and Materials,09-Dec-2020,000009324047511,MIAMI PIZZA SHILDON,5732,Equipment-purchase and rental,7.02,0.00,7.02
Children and Young Peoples Services,Head of Early Help Inclusion & Vulnerable Children.,073998,TTF-Co-ordinator Grant,Transfer Payments,525033,Other,09-Dec-2020,000009324047667,J DODDS CARPETS LTD,5713,Grants to individuals,245.00,0.00,245.00
Neighbourhoods and Climate Change,Environmental Services,010561,Fleet - Morrison Busty Fleet,Transport,215013,Running Costs of Vehicles,09-Dec-2020,000009324047731,DVLA VEHICLE TAX,9311,Vehicle Excise Duty (VED),267.50,0.00,267.50
Neighbourhoods and Climate Change,Environmental Services,010561,Fleet - Morrison Busty Fleet,Transport,215013,Running Costs of Vehicles,09-Dec-2020,000009324047741,DVLA VEHICLE TAX,9311,Vehicle Excise Duty (VED),302.50,0.00,302.50
Neighbourhoods and Climate Change,Environmental Services,010561,Fleet - Morrison Busty Fleet,Transport,215013,Running Costs of Vehicles,09-Dec-2020,000009324047749,DVLA VEHICLE TAX,9311,Vehicle Excise Duty (VED),267.50,0.00,267.50
Neighbourhoods and Climate Change,Environmental Services,010864,Fleet - Hackworth Road Fleet,Transport,215013,Running Costs of Vehicles,09-Dec-2020,000009324047761,DVLA VEHICLE TAX,9311,Vehicle Excise Duty (VED),267.50,0.00,267.50
Neighbourhoods and Climate Change,Environmental Services,010900,Fleet - Meadowfield Fleet,Transport,215013,Running Costs of Vehicles,09-Dec-2020,000009324047773,DVLA VEHICLE TAX,9311,Vehicle Excise Duty (VED),167.50,0.00,167.50
Neighbourhoods and Climate Change,Environmental Services,010561,Fleet - Morrison Busty Fleet,Transport,215013,Running Costs of Vehicles,09-Dec-2020,000009324047779,DVLA VEHICLE TAX,9311,Vehicle Excise Duty (VED),267.50,0.00,267.50
Neighbourhoods and Climate Change,Environmental Services,010551,Fleet - Chilton Fleet,Transport,215013,Running Costs of Vehicles,09-Dec-2020,000009324047787,DVLA VEHICLE TAX,9311,Vehicle Excise Duty (VED),267.50,0.00,267.50
Neighbourhoods and Climate Change,Environmental Services,010561,Fleet - Morrison Busty Fleet,Transport,215013,Running Costs of Vehicles,09-Dec-2020,000009324047797,DVLA VEHICLE TAX,9311,Vehicle Excise Duty (VED),302.50,0.00,302.50
Neighbourhoods and Climate Change,Environmental Services,010561,Fleet - Morrison Busty Fleet,Transport,215013,Running Costs of Vehicles,09-Dec-2020,000009324047801,DVLA VEHICLE TAX,9311,Vehicle Excise Duty (VED),267.50,0.00,267.50
Neighbourhoods and Climate Change,Environmental Services,010900,Fleet - Meadowfield Fleet,Transport,215013,Running Costs of Vehicles,09-Dec-2020,000009324047809,DVLA VEHICLE TAX,9311,Vehicle Excise Duty (VED),267.50,0.00,267.50
Neighbourhoods and Climate Change,Environmental Services,010900,Fleet - Meadowfield Fleet,Transport,215013,Running Costs of Vehicles,09-Dec-2020,000009324047817,DVLA VEHICLE TAX,9311,Vehicle Excise Duty (VED),167.50,0.00,167.50
Neighbourhoods and Climate Change,Environmental Services,010900,Fleet - Meadowfield Fleet,Transport,215013,Running Costs of Vehicles,09-Dec-2020,000009324047825,DVLA VEHICLE TAX,9311,Vehicle Excise Duty (VED),167.50,0.00,167.50
Neighbourhoods and Climate Change,Environmental Services,010561,Fleet - Morrison Busty Fleet,Transport,215013,Running Costs of Vehicles,09-Dec-2020,000009324047833,DVLA VEHICLE TAX,9311,Vehicle Excise Duty (VED),302.50,0.00,302.50
Neighbourhoods and Climate Change,Environmental Services,010551,Fleet - Chilton Fleet,Transport,215013,Running Costs of Vehicles,09-Dec-2020,000009324047843,DVLA VEHICLE TAX,9311,Vehicle Excise Duty (VED),302.50,0.00,302.50
Children and Young Peoples Services,Head of Childrens Social Care,085334,West Rainton Satelite Home,Supplies and Services,304999,Equipment and Materials,09-Dec-2020,000009324047929,HOME BARGAINS,5251,Misc equipment tools and materials,9.56,0.00,9.56
Children and Young Peoples Services,Head of Early Help Inclusion & Vulnerable Children.,088107,Ferryhill & Newton Aycliffe 0-19 Community Family Hub,Supplies and Services,384999,Miscellaneous Expenses,09-Dec-2020,000009324048137,Amazon.co.uk MS0WC5LI4,5969,Other expenses,9.98,1.66,8.32
Children and Young Peoples Services,Head of Early Help Inclusion & Vulnerable Children.,088107,Ferryhill & Newton Aycliffe 0-19 Community Family Hub,Supplies and Services,384999,Miscellaneous Expenses,09-Dec-2020,000009324048149,Amazon.co.uk MS7WT6LX4,5969,Other expenses,8.99,0.00,8.99
Children and Young Peoples Services,Head of Childrens Social Care,085334,West Rainton Satelite Home,Supplies and Services,328041,Clothing uniforms and laundry E328,09-Dec-2020,000009324048217,POUNDSTRETCHER 205,5331,Clothing uniforms and laundry,34.94,0.00,34.94
Children and Young Peoples Services,Head of Childrens Social Care,085334,West Rainton Satelite Home,Supplies and Services,324117,Provisions E324,09-Dec-2020,000009324048227,TESCO STORES 2371,5411,Catering costs - provisions,62.26,0.00,62.26
Children and Young Peoples Services,Head of Early Help Inclusion & Vulnerable Children.,071445,Chester le Street One Point Hub,Supplies and Services,384999,Miscellaneous Expenses,09-Dec-2020,000009324048239,PAYPAL QUICKDRAWSU EB,5970,Other expenses,33.04,0.00,33.04
Children and Young Peoples Services,Head of Early Help Inclusion & Vulnerable Children.,071445,Chester le Street One Point Hub,Supplies and Services,304259,Equipment and Materials,09-Dec-2020,000009324048253,STOCKTON BOROUGH COUNC,9399,Equipment-purchase and rental,22.00,0.00,22.00
Children and Young Peoples Services,Head of Early Help Inclusion & Vulnerable Children.,085957,Secure Management,Supplies and Services,328041,Clothing uniforms and laundry E328,09-Dec-2020,000009324048271,REDBUBBLE.COM,5691,Clothing uniforms and laundry,21.70,0.00,21.70
Children and Young Peoples Services,Head of Early Help Inclusion & Vulnerable Children.,085957,Secure Management,Supplies and Services,328041,Clothing uniforms and laundry E328,09-Dec-2020,000009324048277,PRETTYLITTLETHING.COM,5691,Clothing uniforms and laundry,13.50,0.00,13.50
Children and Young Peoples Services,Head of Early Help Inclusion & Vulnerable Children.,085957,Secure Management,Supplies and Services,324117,Provisions E324,09-Dec-2020,000009324048301,TESCO STORES 6329,5411,Catering costs - provisions,5.05,0.00,5.05
Children and Young Peoples Services,Head of Early Help Inclusion & Vulnerable Children.,085957,Secure Management,Supplies and Services,304259,Equipment and Materials,09-Dec-2020,000009324048307,JD SPORTS INTERNET,5941,Equipment-purchase and rental,120.00,0.00,120.00
Neighbourhoods and Climate Change,Environmental Services,011060,C&G - Hardwick Park Catering,Premises,145009,Cleaning and Domestic Supplies,09-Dec-2020,000009324048369,ALLIANCE DISPOSABLES L,2842,Other cleaning and domestic costs,168.50,28.08,140.42
Neighbourhoods and Climate Change,Environmental Services,011060,C&G - Hardwick Park Catering,Premises,145009,Cleaning and Domestic Supplies,09-Dec-2020,000009324048383,ALLIANCE DISPOSABLES L,2842,Other cleaning and domestic costs,40.30,6.72,33.58
Children and Young Peoples Services,Head of Childrens Social Care,085331,New Lea Childrens Home,Supplies and Services,324117,Provisions E324,09-Dec-2020,000009324048515,ASDA SUPERSTORE,5411,Catering costs - provisions,27.80,0.00,27.80
Children and Young Peoples Services,Head of Childrens Social Care,085331,New Lea Childrens Home,Supplies and Services,324117,Provisions E324,09-Dec-2020,000009324048523,ASDA SUPERSTORE,5411,Catering costs - provisions,12.10,0.00,12.10
Children and Young Peoples Services,Head of Childrens Social Care,085331,New Lea Childrens Home,Supplies and Services,324117,Provisions E324,09-Dec-2020,000009324048529,ALDI STORES,5411,Catering costs - provisions,31.04,0.00,31.04
Children and Young Peoples Services,Head of Childrens Social Care,085341,High Etherley Satelite Home,Supplies and Services,348037,Subsistence E348,09-Dec-2020,000009324048681,SUBWAY,5814,Subsistence,34.60,0.00,34.60
Children and Young Peoples Services,Head of Childrens Social Care,085341,High Etherley Satelite Home,Supplies and Services,304999,Equipment and Materials,09-Dec-2020,000009324048691,BOOTS/5002,5912,Misc equipment tools and materials,30.10,0.00,30.10
Children and Young Peoples Services,Head of Childrens Social Care,085341,High Etherley Satelite Home,Supplies and Services,304259,Equipment and Materials,09-Dec-2020,000009324048697,JD SPORTS 193,5941,Equipment-purchase and rental,199.10,0.00,199.10
Children and Young Peoples Services,Head of Childrens Social Care,085341,High Etherley Satelite Home,Supplies and Services,304259,Equipment and Materials,09-Dec-2020,000009324048705,JD SPORTS 193,5941,Equipment-purchase and rental,72.10,0.00,72.10
Children and Young Peoples Services,Head of Childrens Social Care,085341,High Etherley Satelite Home,Supplies and Services,304259,Equipment and Materials,09-Dec-2020,000009324048711,JD SPORTS 193,5941,Equipment-purchase and rental,100.10,0.00,100.10
Children and Young Peoples Services,Head of Education and Skills,071802,Louisa Cent Nursery,Supplies and Services,304999,Equipment and Materials,09-Dec-2020,000009324048793,HOME BARGAINS,5251,Misc equipment tools and materials,15.06,0.00,15.06
Resources BK0010,Business Support,052986,CYPS - Locality and Operational Support,Supplies and Services,384999,Miscellaneous Expenses,09-Dec-2020,000009324048995,BAKER ROSS,5970,Other expenses,423.91,0.00,423.91
Children and Young Peoples Services,Head of Education and Skills,071903,Early Years Sustainability,Third Party Payments,430100,Rendered by Private Contractors,09-Dec-2020,000009324049053,EB EXPLORING THE NEW,7399,Payments to sub-contractors,10.00,0.00,10.00
Children and Young Peoples Services,Head of Childrens Social Care,085334,West Rainton Satelite Home,Supplies and Services,348037,Subsistence E348,09-Dec-2020,000009324049063,MCDONALDS,5814,Subsistence,15.28,0.00,15.28
Children and Young Peoples Services,Head of Early Help Inclusion & Vulnerable Children.,088102,Consett & Stanley 0-19 Targeted Family Support,Supplies and Services,340001,Postages E340,09-Dec-2020,000009324049089,POST OFFICE COUNTER,9402,Postages,15.50,0.00,15.50
Children and Young Peoples Services,Head of Childrens Social Care,085334,West Rainton Satelite Home,Supplies and Services,324117,Provisions E324,09-Dec-2020,000009324049101,ASDA SUPERSTORE,5411,Catering costs - provisions,73.61,0.00,73.61
Resources BK0010,Business Support,052986,CYPS - Locality and Operational Support,Supplies and Services,304403,Equipment and Materials,09-Dec-2020,000009324049223,AMZNMktplace,5999,Other consumables,42.00,0.00,42.00
Resources BK0010,Business Support,052986,CYPS - Locality and Operational Support,Supplies and Services,304403,Equipment and Materials,09-Dec-2020,000009324049231,AMZNMktplace,5999,Other consumables,84.00,0.00,84.00
Resources BK0010,Business Support,052986,CYPS - Locality and Operational Support,Supplies and Services,304403,Equipment and Materials,09-Dec-2020,000009324049239,AMZNMktplace,5999,Other consumables,42.00,0.00,42.00
Resources BK0010,Business Support,052986,CYPS - Locality and Operational Support,Supplies and Services,304403,Equipment and Materials,09-Dec-2020,000009324049245,AMZNMktplace,5999,Other consumables,42.00,0.00,42.00
Resources BK0010,Business Support,052986,CYPS - Locality and Operational Support,Supplies and Services,304403,Equipment and Materials,09-Dec-2020,000009324049251,AMZNMktplace,5999,Other consumables,42.00,0.00,42.00
Resources BK0010,Business Support,052986,CYPS - Locality and Operational Support,Supplies and Services,304403,Equipment and Materials,09-Dec-2020,000009324049257,AMZNMktplace,5999,Other consumables,42.00,0.00,42.00
Resources BK0010,Business Support,052986,CYPS - Locality and Operational Support,Supplies and Services,304403,Equipment and Materials,09-Dec-2020,000009324049265,AMZNMktplace,5999,Other consumables,42.00,0.00,42.00
Resources BK0010,Business Support,052986,CYPS - Locality and Operational Support,Supplies and Services,304403,Equipment and Materials,09-Dec-2020,000009324049271,AMZNMktplace,5999,Other consumables,42.00,0.00,42.00
Resources BK0010,Business Support,052986,CYPS - Locality and Operational Support,Supplies and Services,304403,Equipment and Materials,09-Dec-2020,000009324049279,AMZNMktplace,5999,Other consumables,42.00,0.00,42.00
Resources BK0010,Business Support,052986,CYPS - Locality and Operational Support,Supplies and Services,304403,Equipment and Materials,09-Dec-2020,000009324049285,AMZNMKTPLACE AMAZON.CO,5999,Other consumables,42.00,0.00,42.00
Resources BK0010,Business Support,052986,CYPS - Locality and Operational Support,Supplies and Services,304403,Equipment and Materials,09-Dec-2020,000009324049295,AMZNMKTPLACE AMAZON.CO,5999,Other consumables,42.00,0.00,42.00
Resources BK0010,Business Support,052986,CYPS - Locality and Operational Support,Supplies and Services,304403,Equipment and Materials,09-Dec-2020,000009324049305,AMZNMKTPLACE AMAZON.CO,5999,Other consumables,42.00,0.00,42.00
Resources BK0010,Business Support,052986,CYPS - Locality and Operational Support,Supplies and Services,304403,Equipment and Materials,09-Dec-2020,000009324049313,AMZNMktplace,5999,Other consumables,42.00,0.00,42.00
Resources BK0010,Business Support,052986,CYPS - Locality and Operational Support,Supplies and Services,304403,Equipment and Materials,09-Dec-2020,000009324049319,AMZNMktplace,5999,Other consumables,42.00,0.00,42.00
Resources BK0010,Business Support,052986,CYPS - Locality and Operational Support,Supplies and Services,304403,Equipment and Materials,09-Dec-2020,000009324049325,AMZNMktplace,5999,Other consumables,42.00,0.00,42.00
Resources BK0010,Business Support,052986,CYPS - Locality and Operational Support,Supplies and Services,304403,Equipment and Materials,09-Dec-2020,000009324049331,AMZNMktplace,5999,Other consumables,42.00,0.00,42.00
Resources BK0010,Business Support,052986,CYPS - Locality and Operational Support,Supplies and Services,304403,Equipment and Materials,09-Dec-2020,000009324049337,AMZNMktplace,5999,Other consumables,42.00,0.00,42.00
Resources BK0010,Business Support,052986,CYPS - Locality and Operational Support,Supplies and Services,304403,Equipment and Materials,09-Dec-2020,000009324049343,AMZNMktplace,5999,Other consumables,42.00,0.00,42.00
"Regeneration, Economy and Growth",Business Durham CL0850,030690,Durham Dales Centre - Tourist Information Centre,Supplies and Services,304403,Equipment and Materials,09-Dec-2020,000009324049351,WWW.PUCKATOR.CO.UK,5947,Other consumables,182.70,0.00,182.70
Adult and Health Services,Head of Adults,055301,Stanley Pathways,Supplies and Services,324117,Provisions E324,09-Dec-2020,000009324049425,LIDL GB DURHAM,5411,Catering costs - provisions,9.17,0.00,9.17
Neighbourhoods and Climate Change,Environmental Services,010301,C&G - North Grounds Maintenance,Supplies and Services,304221,Equipment and Materials,09-Dec-2020,000009324049445,TOOLSTATION LTD,5211,Direct materials,21.51,0.00,21.51
Children and Young Peoples Services,Head of Childrens Social Care,085342,16 Hickstead Rise (previously 9 Cedar Ave),Supplies and Services,324117,Provisions E324,09-Dec-2020,000009324049497,TESCO STORES 2916,5411,Catering costs - provisions,20.61,0.00,20.61
Children and Young Peoples Services,Head of Education and Skills,071802,Louisa Cent Nursery,Supplies and Services,324117,Provisions E324,09-Dec-2020,000009324049509,ALDI STORES,5411,Catering costs - provisions,41.54,0.00,41.54
Children and Young Peoples Services,Head of Early Help Inclusion & Vulnerable Children.,088119,Durham 0-19 Community Family Hub,Supplies and Services,384302,Miscellaneous Expenses,09-Dec-2020,000009324049523,AMZNMktplace,5999,Activity expenses,106.85,0.00,106.85
Children and Young Peoples Services,Head of Childrens Social Care,085332,Middlestone Moor CU,Supplies and Services,304403,Equipment and Materials,09-Dec-2020,000009324049551,AMZNMKTPLACE AMAZON.CO,5999,Other consumables,13.99,2.33,11.66
"Regeneration, Economy and Growth",Development and Housing,031500,Housing Solutions - Core Team,Supplies and Services,352001,Conference Expenses,09-Dec-2020,000009324049569,TOAST LETTINGS,7011,Conferencesseminars fees etc,500.00,0.00,500.00
"Regeneration, Economy and Growth",Development and Housing,031500,Housing Solutions - Core Team,Supplies and Services,352001,Conference Expenses,09-Dec-2020,000009324049575,TOAST LETTINGS,7011,Conferencesseminars fees etc,500.00,0.00,500.00
"Regeneration, Economy and Growth",Development and Housing,031500,Housing Solutions - Core Team,Supplies and Services,352001,Conference Expenses,09-Dec-2020,000009324049585,TOAST LETTINGS,7011,Conferencesseminars fees etc,500.00,0.00,500.00
"Regeneration, Economy and Growth",Development and Housing,031500,Housing Solutions - Core Team,Supplies and Services,352001,Conference Expenses,09-Dec-2020,000009324049591,TOAST LETTINGS,7011,Conferencesseminars fees etc,500.00,0.00,500.00
"Regeneration, Economy and Growth",Development and Housing,031500,Housing Solutions - Core Team,Supplies and Services,352001,Conference Expenses,09-Dec-2020,000009324049597,TOAST LETTINGS,7011,Conferencesseminars fees etc,500.00,0.00,500.00
"Regeneration, Economy and Growth",Development and Housing,031500,Housing Solutions - Core Team,Supplies and Services,352001,Conference Expenses,09-Dec-2020,000009324049607,TOAST LETTINGS,7011,Conferencesseminars fees etc,500.00,0.00,500.00
"Regeneration, Economy and Growth",Development and Housing,031500,Housing Solutions - Core Team,Supplies and Services,352001,Conference Expenses,09-Dec-2020,000009324049617,TOAST LETTINGS,7011,Conferencesseminars fees etc,500.00,0.00,500.00
Children and Young Peoples Services,Head of Childrens Social Care,085333,Coxhoe Satelite Home,Supplies and Services,324117,Provisions E324,09-Dec-2020,000009324049633,TESCO STORES 2371,5411,Catering costs - provisions,26.15,0.00,26.15
Children and Young Peoples Services,Head of Childrens Social Care,085331,New Lea Childrens Home,Supplies and Services,324117,Provisions E324,09-Dec-2020,000009324049647,WILKO RETAIL LIMITED,5399,Catering costs - provisions,20.00,0.00,20.00
Children and Young Peoples Services,Head of Childrens Social Care,085331,New Lea Childrens Home,Supplies and Services,324117,Provisions E324,09-Dec-2020,000009324049653,SAINSBURYS 0776,5411,Catering costs - provisions,11.55,0.00,11.55
Children and Young Peoples Services,Head of Childrens Social Care,085331,New Lea Childrens Home,Supplies and Services,324117,Provisions E324,09-Dec-2020,000009324049663,ASDA STORES LTD 4313,5411,Catering costs - provisions,56.18,0.00,56.18
Children and Young Peoples Services,Head of Childrens Social Care,085331,New Lea Childrens Home,Supplies and Services,304999,Equipment and Materials,09-Dec-2020,000009324049673,SUPERDRUG STORES PLC,5912,Misc equipment tools and materials,2.99,0.00,2.99
Children and Young Peoples Services,Head of Childrens Social Care,085331,New Lea Childrens Home,Supplies and Services,328041,Clothing uniforms and laundry E328,09-Dec-2020,000009324049681,THE WORKS,5310,Clothing uniforms and laundry,10.00,0.00,10.00
"Regeneration, Economy and Growth",Development and Housing,031500,Housing Solutions - Core Team,Supplies and Services,352001,Conference Expenses,09-Dec-2020,000009324049729,BUDGET H EXPRESS HOTEL,7011,Conferencesseminars fees etc,178.00,0.00,178.00
"Regeneration, Economy and Growth",Business Durham CL0850,030694,Plexus 2,Supplies and Services,304403,Equipment and Materials,09-Dec-2020,000009324049881,AMZNMktplace,5999,Other consumables,54.45,0.00,54.45
Children and Young Peoples Services,Head of Childrens Social Care,085341,High Etherley Satelite Home,Supplies and Services,328041,Clothing uniforms and laundry E328,09-Dec-2020,000009327176713,PRIMARK 670 GATESHEAD,5651,Clothing uniforms and laundry,16.00,0.00,16.00
Children and Young Peoples Services,Head of Childrens Social Care,085341,High Etherley Satelite Home,Supplies and Services,328041,Clothing uniforms and laundry E328,09-Dec-2020,000009327176715,PRIMARK 670 GATESHEAD,5651,Clothing uniforms and laundry,16.50,0.00,16.50
Children and Young Peoples Services,Head of Childrens Social Care,085341,High Etherley Satelite Home,Supplies and Services,328041,Clothing uniforms and laundry E328,09-Dec-2020,000009327176719,PRIMARK 670 GATESHEAD,5651,Clothing uniforms and laundry,23.00,0.00,23.00
Children and Young Peoples Services,Head of Childrens Social Care,085341,High Etherley Satelite Home,Supplies and Services,328041,Clothing uniforms and laundry E328,09-Dec-2020,000009327176721,PRIMARK 670 GATESHEAD,5651,Clothing uniforms and laundry,11.00,0.00,11.00
Resources BK0010,Business Support,052986,CYPS - Locality and Operational Support,Supplies and Services,304403,Equipment and Materials,09-Dec-2020,000009327177021,AMZNMKTPLACE AMAZON.CO,5999,Other consumables,42.00,0.00,42.00
Resources BK0010,Business Support,052986,CYPS - Locality and Operational Support,Supplies and Services,304403,Equipment and Materials,09-Dec-2020,000009327177025,AMZNMKTPLACE AMAZON.CO,5999,Other consumables,42.00,0.00,42.00
Resources BK0010,Business Support,052986,CYPS - Locality and Operational Support,Supplies and Services,304403,Equipment and Materials,09-Dec-2020,000009327177031,AMZNMKTPLACE AMAZON.CO,5999,Other consumables,42.00,0.00,42.00
"Regeneration, Economy and Growth",Business Durham CL0850,030690,Durham Dales Centre - Tourist Information Centre,Supplies and Services,304221,Equipment and Materials,09-Dec-2020,000009327177045,A AND K HOSIERY LTD,5099,Direct materials,478.98,0.00,478.98
Children and Young Peoples Services,Head of Early Help Inclusion & Vulnerable Children.,085957,Secure Management,Supplies and Services,304259,Equipment and Materials,09-Dec-2020,000009331360633,SPORTSDIRECT.COM,5941,Equipment-purchase and rental,46.99,0.00,46.99
Children and Young Peoples Services,Head of Early Help Inclusion & Vulnerable Children.,085957,Secure Management,Supplies and Services,328041,Clothing uniforms and laundry E328,09-Dec-2020,000009331360637,NEW LOOK INTERNET,5621,Clothing uniforms and laundry,33.75,0.00,33.75
"Regeneration, Economy and Growth",Business Durham CL0850,030689,Inward Investment and Aftercare,Supplies and Services,304999,Equipment and Materials,10-Dec-2020,000009324046175,MAILCHIMP MONTHLY,5968,Misc equipment tools and materials,2.18,0.00,2.18
"Regeneration, Economy and Growth",Business Durham CL0850,030689,Inward Investment and Aftercare,Third Party Payments,430100,Rendered by Private Contractors,10-Dec-2020,000009327175887,BLS monday.com,7399,Payments to sub-contractors,148.80,0.00,148.80
Resources BK0010,Legal & Democratic Services,067910,Democratic Representation 067910,Supplies and Services,344033,Telephones,10-Dec-2020,000009327175941,WWW.MOBILEFUN.CO.U,4812,Telephones general-all costs,38.94,0.00,38.94
"Regeneration, Economy and Growth",Development and Housing,031576,B& B - Temp Accom,Supplies and Services,364320,Grants to Voluntary Organisations,10-Dec-2020,000009327175983,H52STANLEY,7011,Accommodation assistance,500.00,0.00,500.00
"Regeneration, Economy and Growth",Development and Housing,031576,B& B - Temp Accom,Supplies and Services,364320,Grants to Voluntary Organisations,10-Dec-2020,000009327175993,H52STANLEY,7011,Accommodation assistance,291.00,0.00,291.00
Children and Young Peoples Services,Head of Education and Skills,075021,Youth Employment Initiative,Supplies and Services,364301,Grants to Voluntary Organisations,10-Dec-2020,000009327176009,AMZNMktplace,5999,Hardship,20.95,3.49,17.46
Children and Young Peoples Services,Head of Education and Skills,075021,Youth Employment Initiative,Supplies and Services,364301,Grants to Voluntary Organisations,10-Dec-2020,000009327176015,SCREWFIX DIRECT,5211,Hardship,4.98,0.83,4.15
Children and Young Peoples Services,Head of Education and Skills,075021,Youth Employment Initiative,Supplies and Services,364301,Grants to Voluntary Organisations,10-Dec-2020,000009327176015 - 1,SCREWFIX DIRECT,5211,Hardship,30.01,,30.01
"Regeneration, Economy and Growth",Culture Sport and Tourism,054764,Killhope Museum - Rediscover Killhope,Supplies and Services,304259,Equipment and Materials,10-Dec-2020,000009327176021,Amazon.co.uk MS91573R4,5969,Equipment-purchase and rental,239.88,39.98,199.90
"Regeneration, Economy and Growth",Culture Sport and Tourism,054764,Killhope Museum - Rediscover Killhope,Supplies and Services,304259,Equipment and Materials,10-Dec-2020,000009327176021 - 1,Amazon.co.uk MS91573R4,5969,Equipment-purchase and rental,0.04,,0.04
Children and Young Peoples Services,Head of Childrens Social Care,085332,Middlestone Moor CU,Supplies and Services,324117,Provisions E324,10-Dec-2020,000009327176065,HERON FOODS LTD,5499,Catering costs - provisions,3.00,0.00,3.00
Children and Young Peoples Services,Head of Childrens Social Care,085332,Middlestone Moor CU,Supplies and Services,324117,Provisions E324,10-Dec-2020,000009327176073,WILKO RETAIL LIMITED,5399,Catering costs - provisions,1.50,0.00,1.50
Children and Young Peoples Services,Head of Childrens Social Care,085332,Middlestone Moor CU,Supplies and Services,324117,Provisions E324,10-Dec-2020,000009327176243,LIDL GB SPENNYMOOR,5411,Catering costs - provisions,8.25,0.00,8.25
Children and Young Peoples Services,Head of Early Help Inclusion & Vulnerable Children.,079599,Psychological-HQ,Employees,040149,Recruitment Instruction and Training,10-Dec-2020,000009327176269,NE-AS.ORG.UK,8398,Training-all costs,30.00,0.00,30.00
Children and Young Peoples Services,Head of Early Help Inclusion & Vulnerable Children.,079599,Psychological-HQ,Employees,040149,Recruitment Instruction and Training,10-Dec-2020,000009327176273,NE-AS.ORG.UK,8398,Training-all costs,30.00,0.00,30.00
Children and Young Peoples Services,Head of Early Help Inclusion & Vulnerable Children.,085957,Secure Management,Supplies and Services,328041,Clothing uniforms and laundry E328,10-Dec-2020,000009327176279,FOOTASYLUM PLC,5691,Clothing uniforms and laundry,26.99,0.00,26.99
Children and Young Peoples Services,Head of Early Help Inclusion & Vulnerable Children.,085957,Secure Management,Supplies and Services,328041,Clothing uniforms and laundry E328,10-Dec-2020,000009327176283,FOOTASYLUM PLC,5691,Clothing uniforms and laundry,89.98,0.00,89.98
Children and Young Peoples Services,Head of Early Help Inclusion & Vulnerable Children.,085957,Secure Management,Supplies and Services,328041,Clothing uniforms and laundry E328,10-Dec-2020,000009327176289,FOOTASYLUM PLC,5691,Clothing uniforms and laundry,104.98,0.00,104.98
Children and Young Peoples Services,Head of Early Help Inclusion & Vulnerable Children.,085957,Secure Management,Supplies and Services,304259,Equipment and Materials,10-Dec-2020,000009327176291,JD SPORTS INTERNET,5941,Equipment-purchase and rental,15.99,0.00,15.99
Children and Young Peoples Services,Head of Education and Skills,075021,Youth Employment Initiative,Supplies and Services,372009,Subscriptions E372,10-Dec-2020,000009327176359,WEB NETWORKSOLUTIONS,5968,Subscriptions 372009,45.29,0.00,45.29
Children and Young Peoples Services,Head of Childrens Social Care,085342,16 Hickstead Rise (previously 9 Cedar Ave),Supplies and Services,328041,Clothing uniforms and laundry E328,10-Dec-2020,000009327176367,MYCLOTHING,5137,Clothing uniforms and laundry,16.00,0.00,16.00
Children and Young Peoples Services,Head of Childrens Social Care,085342,16 Hickstead Rise (previously 9 Cedar Ave),Supplies and Services,348037,Subsistence E348,10-Dec-2020,000009327176371,ShakeNCake,5812,Subsistence,13.65,0.00,13.65
"Regeneration, Economy and Growth",Culture Sport and Tourism,054967,Theatre - Technical Staffing,Supplies and Services,304221,Equipment and Materials,10-Dec-2020,000009327176397,B & Q 1343,5200,Direct materials,82.29,0.00,82.29
Children and Young Peoples Services,Head of Childrens Social Care,085334,West Rainton Satelite Home,Supplies and Services,304403,Equipment and Materials,10-Dec-2020,000009327176405,AMZNMktplace,5999,Other consumables,29.99,0.00,29.99
Children and Young Peoples Services,Head of Childrens Social Care,085332,Middlestone Moor CU,Supplies and Services,384999,Miscellaneous Expenses,10-Dec-2020,000009327176427,Amazon.co.uk MS6469J44,5969,Other expenses,28.90,0.00,28.90
"Regeneration, Economy and Growth",Development and Housing,031576,B& B - Temp Accom,Supplies and Services,364320,Grants to Voluntary Organisations,10-Dec-2020,000009327176473,H52STANLEY,7011,Accommodation assistance,379.00,0.00,379.00
"Regeneration, Economy and Growth",Development and Housing,031623,Rough Sleeping Fund,Supplies and Services,364320,Grants to Voluntary Organisations,10-Dec-2020,000009327176479,TESCO STORES 6029,5411,Accommodation assistance,19.99,0.00,19.99
"Regeneration, Economy and Growth",Development and Housing,031576,B& B - Temp Accom,Supplies and Services,364320,Grants to Voluntary Organisations,10-Dec-2020,000009327176481,DUNCAN BELTON TA K,6513,Accommodation assistance,350.00,0.00,350.00
"Regeneration, Economy and Growth",Development and Housing,031576,B& B - Temp Accom,Supplies and Services,364320,Grants to Voluntary Organisations,10-Dec-2020,000009327176487,HI NEWCASTLE WASHI,7011,Accommodation assistance,450.00,0.00,450.00
"Regeneration, Economy and Growth",Development and Housing,031576,B& B - Temp Accom,Supplies and Services,364320,Grants to Voluntary Organisations,10-Dec-2020,000009327176491,HI NEWCASTLE WASHI,7011,Accommodation assistance,450.00,0.00,450.00
"Regeneration, Economy and Growth",Development and Housing,031576,B& B - Temp Accom,Supplies and Services,364320,Grants to Voluntary Organisations,10-Dec-2020,000009327176493,HI NEWCASTLE WASHI,7011,Accommodation assistance,392.55,0.00,392.55
Children and Young Peoples Services,Head of Childrens Social Care,085334,West Rainton Satelite Home,Supplies and Services,324117,Provisions E324,10-Dec-2020,000009327176509,TESCO STORES 2371,5411,Catering costs - provisions,43.66,0.00,43.66
Children and Young Peoples Services,Head of Childrens Social Care,085334,West Rainton Satelite Home,Supplies and Services,324117,Provisions E324,10-Dec-2020,000009327176513,TESCO STORES 2371,5411,Catering costs - provisions,76.48,0.00,76.48
Children and Young Peoples Services,Head of Childrens Social Care,085334,West Rainton Satelite Home,Supplies and Services,324117,Provisions E324,10-Dec-2020,000009327176517,TESCO STORES 2371,5411,Catering costs - provisions,40.00,0.00,40.00
Children and Young Peoples Services,Head of Childrens Social Care,085334,West Rainton Satelite Home,Supplies and Services,308011,Furniture,10-Dec-2020,000009327176523,DUNELM LTD,5714,Furniture repair and replacement,73.98,0.00,73.98
Children and Young Peoples Services,Head of Early Help Inclusion & Vulnerable Children.,085957,Secure Management,Supplies and Services,304259,Equipment and Materials,10-Dec-2020,000009327176531,JD SPORTS INTERNET,5941,Equipment-purchase and rental,-33.99,0.00,-33.99
Children and Young Peoples Services,Head of Early Help Inclusion & Vulnerable Children.,085957,Secure Management,Supplies and Services,304259,Equipment and Materials,10-Dec-2020,000009327176537,JD SPORTS INTERNET,5941,Equipment-purchase and rental,-100.00,0.00,-100.00
Neighbourhoods and Climate Change,Environmental Services,026591,C&G - Hardwick Park,Supplies and Services,304259,Equipment and Materials,10-Dec-2020,000009327176541,SCREWFIX BISHOP AUCKLA,5211,Equipment-purchase and rental,67.93,11.32,56.61
"Regeneration, Economy and Growth",Development and Housing,031500,Housing Solutions - Core Team,Transport,235057,Public Transport,10-Dec-2020,000009327176589,BLUE LINE TAXIS,4121,Staff travelling,24.00,0.00,24.00
"Regeneration, Economy and Growth",Development and Housing,031500,Housing Solutions - Core Team,Supplies and Services,304259,Equipment and Materials,10-Dec-2020,000009327176593,Durham County CNCL,9399,Equipment-purchase and rental,35.00,0.00,35.00
"Regeneration, Economy and Growth",Development and Housing,031576,B& B - Temp Accom,Supplies and Services,364320,Grants to Voluntary Organisations,10-Dec-2020,000009327176625,HI NEWCASTLE WASHI,7011,Accommodation assistance,195.00,0.00,195.00
"Regeneration, Economy and Growth",Development and Housing,031576,B& B - Temp Accom,Supplies and Services,364320,Grants to Voluntary Organisations,10-Dec-2020,000009327176629,HI NEWCASTLE WASHI,7011,Accommodation assistance,390.00,0.00,390.00
"Regeneration, Economy and Growth",Development and Housing,030554,International Relations 030554,Supplies and Services,324117,Provisions E324,10-Dec-2020,000009327176671,WWW.THEFOODMARKET.COM,5499,Catering costs - provisions,49.99,0.00,49.99
Children and Young Peoples Services,Head of Early Help Inclusion & Vulnerable Children.,088106,Ferryhill & N.Aycliffe 0-19 Targeted Family Support,Supplies and Services,364301,Grants to Voluntary Organisations,10-Dec-2020,000009327176675,ARGOS LTD,5310,Hardship,25.99,0.00,25.99
Children and Young Peoples Services,Head of Childrens Social Care,085341,High Etherley Satelite Home,Supplies and Services,304999,Equipment and Materials,10-Dec-2020,000009327176725,HOME BARGAINS SPENNYMO,5251,Misc equipment tools and materials,6.93,0.00,6.93
Adult and Health Services,Head of Adults,055643,Hawthorn House LD Respite Unit,Supplies and Services,324117,Provisions E324,10-Dec-2020,000009327176781,SAINSBURYS SACAT 0776,5411,Catering costs - provisions,19.40,0.00,19.40
Children and Young Peoples Services,Head of Education and Skills,071802,Louisa Cent Nursery,Supplies and Services,324117,Provisions E324,10-Dec-2020,000009327176787,ALDI STORES,5411,Catering costs - provisions,5.36,0.00,5.36
Neighbourhoods and Climate Change,Environmental Services,010367,C&G - South Grounds Maintenance,Supplies and Services,304403,Equipment and Materials,10-Dec-2020,000009327176833,TOOLSTATION UK,5999,Other consumables,39.92,0.00,39.92
Children and Young Peoples Services,Head of Childrens Social Care,085352,Tow Law CU,Supplies and Services,304403,Equipment and Materials,10-Dec-2020,000009327176859,AMZNMktplace,5999,Other consumables,12.89,2.15,10.74
Children and Young Peoples Services,Head of Childrens Social Care,085352,Tow Law CU,Supplies and Services,324117,Provisions E324,10-Dec-2020,000009327176863,ASDA SUPERSTORE 4987,5411,Catering costs - provisions,27.56,0.00,27.56
Resources BK0010,Business Support,052986,CYPS - Locality and Operational Support,Supplies and Services,304403,Equipment and Materials,10-Dec-2020,000009327176891,SP KIDS PARTY & CRAF,5734,Other consumables,23.89,0.00,23.89
Resources BK0010,Business Support,052986,CYPS - Locality and Operational Support,Supplies and Services,324117,Provisions E324,10-Dec-2020,000009327176895,WILKO RETAIL LIMITED,5399,Catering costs - provisions,37.50,0.00,37.50
Resources BK0010,Business Support,052986,CYPS - Locality and Operational Support,Supplies and Services,328041,Clothing uniforms and laundry E328,10-Dec-2020,000009327176903,ARGOS LTD,5310,Clothing uniforms and laundry,426.99,0.00,426.99
Resources BK0010,Business Support,052986,CYPS - Locality and Operational Support,Supplies and Services,328041,Clothing uniforms and laundry E328,10-Dec-2020,000009327176907,WWW.THEWORKS.CO.UK,5310,Clothing uniforms and laundry,170.00,0.00,170.00
Resources BK0010,Business Support,052986,CYPS - Locality and Operational Support,Supplies and Services,328041,Clothing uniforms and laundry E328,10-Dec-2020,000009327176911,ARGOS LTD,5310,Clothing uniforms and laundry,-6.00,0.00,-6.00
Children and Young Peoples Services,Head of Education and Skills,070102,Engagement with Young People,Supplies and Services,304403,Equipment and Materials,10-Dec-2020,000009327176923,AMZNMKTPLACE AMAZON.CO,5999,Other consumables,7.99,1.33,6.66
Children and Young Peoples Services,Head of Childrens Social Care,085334,West Rainton Satelite Home,Supplies and Services,324117,Provisions E324,10-Dec-2020,000009327176929,B&M 688 WASHINGTON,5399,Catering costs - provisions,90.15,0.00,90.15
Children and Young Peoples Services,Head of Childrens Social Care,085342,16 Hickstead Rise (previously 9 Cedar Ave),Supplies and Services,304403,Equipment and Materials,10-Dec-2020,000009327176949,AMZNMktplace,5999,Other consumables,24.81,0.00,24.81
Children and Young Peoples Services,Head of Early Help Inclusion & Vulnerable Children.,085956,Lumley,Transfer Payments,515140,Social Services Clients,10-Dec-2020,000009327176987,Foot Locker Europe.com,5661,Clothing allowances,59.99,0.00,59.99
Children and Young Peoples Services,Head of Early Help Inclusion & Vulnerable Children.,085956,Lumley,Transfer Payments,515140,Social Services Clients,10-Dec-2020,000009327176989,FOOTASYLUM PLC,5691,Clothing allowances,64.99,0.00,64.99
Children and Young Peoples Services,Head of Early Help Inclusion & Vulnerable Children.,085956,Lumley,Transfer Payments,515140,Social Services Clients,10-Dec-2020,000009327176995,PRETTYLITTLETHING.COM,5691,Clothing allowances,6.00,0.00,6.00
Children and Young Peoples Services,Head of Early Help Inclusion & Vulnerable Children.,085956,Lumley,Transfer Payments,515140,Social Services Clients,10-Dec-2020,000009327177001,PRETTYLITTLETHING.COM,5691,Clothing allowances,37.00,0.00,37.00
Children and Young Peoples Services,Head of Early Help Inclusion & Vulnerable Children.,085956,Lumley,Transfer Payments,515140,Social Services Clients,10-Dec-2020,000009327177005,Amazon.co.uk MS3YP5J44,5969,Clothing allowances,3.99,0.67,3.32
Children and Young Peoples Services,Head of Early Help Inclusion & Vulnerable Children.,085957,Secure Management,Supplies and Services,304403,Equipment and Materials,10-Dec-2020,000009327177009,AMZNMktplace,5999,Other consumables,4.99,0.83,4.16
Resources BK0010,Business Support,052986,CYPS - Locality and Operational Support,Supplies and Services,304259,Equipment and Materials,10-Dec-2020,000009327177035,HARTLEPOOL BC,9399,Equipment-purchase and rental,11.00,0.00,11.00
Resources BK0010,Business Support,052986,CYPS - Locality and Operational Support,Supplies and Services,304259,Equipment and Materials,10-Dec-2020,000009327177041,DARLINGTON BC INTERNET,9399,Equipment-purchase and rental,11.00,0.00,11.00
Children and Young Peoples Services,Head of Childrens Social Care,085351,Framwellgate Moor CU,Supplies and Services,372009,Subscriptions E372,10-Dec-2020,000009327177099,Netflix.com,4899,Subscriptions 372009,11.99,0.00,11.99
Children and Young Peoples Services,Head of Childrens Social Care,085351,Framwellgate Moor CU,Supplies and Services,324117,Provisions E324,10-Dec-2020,000009327177103,SAINSBURYS LOC4634,5411,Catering costs - provisions,1.80,0.00,1.80
Children and Young Peoples Services,Head of Childrens Social Care,085342,16 Hickstead Rise (previously 9 Cedar Ave),Supplies and Services,324117,Provisions E324,10-Dec-2020,000009327177109,WALKERS BUTCHERS & BAK,5499,Catering costs - provisions,36.28,0.00,36.28
Resources BK0010,Corporate Finance & Commercial Services,069800,Corporate Procurement 069800,Employees,040149,Recruitment Instruction and Training,10-Dec-2020,000009327177125,WWW.CIPS.ORG,8699,Training-all costs,108.00,0.00,108.00
Resources BK0010,Finance & Transactional Services,065180,Collections,Employees,040149,Recruitment Instruction and Training,10-Dec-2020,000009327177145,WWW.REGISTRY-TRUST.ORG,8999,Training-all costs,8.00,0.00,8.00
Children and Young Peoples Services,Head of Childrens Social Care,085333,Coxhoe Satelite Home,Supplies and Services,340001,Postages E340,10-Dec-2020,000009327177183,POST OFFICE COUNTER,9402,Postages,32.04,0.00,32.04
Children and Young Peoples Services,Head of Childrens Social Care,085331,New Lea Childrens Home,Supplies and Services,384999,Miscellaneous Expenses,10-Dec-2020,000009327177209,WWW.GAME.CO.UK,5945,Other expenses,10.00,0.00,10.00
Resources BK0010,COVID19 - Resources,091007,COVID19 - Resources,Supplies and Services,340001,Postages E340,10-Dec-2020,000009327177239,ROYAL MAIL REDIRECTION,9402,Postages,216.00,0.00,216.00
"Regeneration, Economy and Growth",Development and Housing,031500,Housing Solutions - Core Team,Supplies and Services,352001,Conference Expenses,10-Dec-2020,000009327177255,H52STANLEY,7011,Conferencesseminars fees etc,88.00,0.00,88.00
Neighbourhoods and Climate Change,Environmental Services,031217,North Pennines - Cold Blooded & Spineless,Supplies and Services,324117,Provisions E324,10-Dec-2020,000009327177261,HALLBANKGATE HUB LIMIT,5411,Catering costs - provisions,4.60,0.00,4.60
Children and Young Peoples Services,Head of Childrens Social Care,085551,Short Break Services-Park Hse Sher,Supplies and Services,384999,Miscellaneous Expenses,10-Dec-2020,000009327177297,Amazon.co.uk MS0ZY4J84,5969,Other expenses,47.80,0.00,47.80
Children and Young Peoples Services,Head of Childrens Social Care,085333,Coxhoe Satelite Home,Supplies and Services,304403,Equipment and Materials,10-Dec-2020,000009327177367,CEX,5065,Other consumables,10.00,0.00,10.00
Neighbourhoods and Climate Change,Environmental Services,011060,C&G - Hardwick Park Catering,Supplies and Services,324117,Provisions E324,10-Dec-2020,000009331360673,BATLEYS PERTH,5300,Catering costs - provisions,17.40,2.90,14.50
Neighbourhoods and Climate Change,Environmental Services,011060,C&G - Hardwick Park Catering,Supplies and Services,324117,Provisions E324,10-Dec-2020,000009331360673 - 1,BATLEYS PERTH,5300,Catering costs - provisions,211.50,,211.50
"Regeneration, Economy and Growth",Development and Housing,031500,Housing Solutions - Core Team,Supplies and Services,352001,Conference Expenses,10-Dec-2020,000009331360741,AYCLIFFE BIZ,7011,Conferencesseminars fees etc,152.00,0.00,152.00
"Regeneration, Economy and Growth",Development and Housing,030554,International Relations 030554,Supplies and Services,304403,Equipment and Materials,10-Dec-2020,000009331360863,AMZNMKTPLACE AMAZON.CO,5999,Other consumables,16.58,0.00,16.58
Children and Young Peoples Services,Head of Early Help Inclusion & Vulnerable Children.,085957,Secure Management,Supplies and Services,304403,Equipment and Materials,10-Dec-2020,000009331361223,AMZNMKTPLACE AMAZON.CO,5999,Other consumables,44.99,0.00,44.99
Children and Young Peoples Services,Head of Early Help Inclusion & Vulnerable Children.,085956,Lumley,Transfer Payments,515140,Social Services Clients,10-Dec-2020,000009331361233,RIVER ISLAND 400,5691,Clothing allowances,75.00,0.00,75.00
Children and Young Peoples Services,Head of Childrens Social Care,085351,Framwellgate Moor CU,Supplies and Services,328041,Clothing uniforms and laundry E328,10-Dec-2020,000009331361439,ARGOS LTD,5310,Clothing uniforms and laundry,139.00,0.00,139.00
Children and Young Peoples Services,Head of Childrens Social Care,085333,Coxhoe Satelite Home,Transport,215995,Running Costs of Vehicles,10-Dec-2020,000009331361581,TESCO PFS 4053,5541,Vehicle running expenses,45.43,0.00,45.43
Children and Young Peoples Services,Head of Education and Skills,075021,Youth Employment Initiative,Supplies and Services,372009,Subscriptions E372,11-Dec-2020,000009327176363,WEB NETWORKSOLUTIONS,5968,Subscriptions 372009,1.25,0.00,1.25
Children and Young Peoples Services,Head of Education and Skills,071801,Selby Cottage Childcare Centre,Supplies and Services,328041,Clothing uniforms and laundry E328,11-Dec-2020,000009331359783,WWW.THEWORKS.CO.UK,5310,Clothing uniforms and laundry,64.99,0.00,64.99
"Regeneration, Economy and Growth",Corporate Property and Land,036000,Asset Management 036000,Supplies and Services,384999,Miscellaneous Expenses,11-Dec-2020,000009331359793,Amazon.co.uk MS3WA7A84,5969,Other expenses,60.40,10.10,50.30
"Regeneration, Economy and Growth",Development and Housing,031576,B& B - Temp Accom,Supplies and Services,364320,Grants to Voluntary Organisations,11-Dec-2020,000009331359891,H52STANLEY,7011,Accommodation assistance,475.00,0.00,475.00
Children and Young Peoples Services,Head of Childrens Social Care,085501,Child Care Cases Legal Expenses,Supplies and Services,304403,Equipment and Materials,11-Dec-2020,000009331359967,CITY OF YORK COUNC,9399,Other consumables,11.00,0.00,11.00
Children and Young Peoples Services,Head of Education and Skills,075021,Youth Employment Initiative,Supplies and Services,364301,Grants to Voluntary Organisations,11-Dec-2020,000009331359973,ASDA GEORGE COM LEEDS,5411,Hardship,99.00,0.00,99.00
Resources BK0010,Transformation,060136,Relocation of County Archives,Supplies and Services,304259,Equipment and Materials,11-Dec-2020,000009331359979,ETSY.COM AMAZINGENGRAV,5699,Equipment-purchase and rental,13.99,0.00,13.99
Children and Young Peoples Services,Head of Childrens Social Care,085332,Middlestone Moor CU,Supplies and Services,324117,Provisions E324,11-Dec-2020,000009331360075,TESCO STORES 2371,5411,Catering costs - provisions,148.85,0.00,148.85
Children and Young Peoples Services,Head of Childrens Social Care,085332,Middlestone Moor CU,Supplies and Services,304999,Equipment and Materials,11-Dec-2020,000009331360081,THE RANGE,5311,Misc equipment tools and materials,34.34,0.00,34.34
Children and Young Peoples Services,Head of Childrens Social Care,085341,High Etherley Satelite Home,Supplies and Services,324117,Provisions E324,11-Dec-2020,000009331360137,TESCO STORES 6329,5411,Catering costs - provisions,21.34,0.00,21.34
"Regeneration, Economy and Growth",Development and Housing,030770,Durham Advance,Supplies and Services,304259,Equipment and Materials,11-Dec-2020,000009331360245,CURRYS ONLINE,5732,Equipment-purchase and rental,179.00,0.00,179.00
Children and Young Peoples Services,Head of Early Help Inclusion & Vulnerable Children.,085957,Secure Management,Supplies and Services,304259,Equipment and Materials,11-Dec-2020,000009331360293,JD SPORTS INTERNET,5941,Equipment-purchase and rental,59.99,0.00,59.99
Children and Young Peoples Services,Head of Early Help Inclusion & Vulnerable Children.,085957,Secure Management,Supplies and Services,328041,Clothing uniforms and laundry E328,11-Dec-2020,000009331360299,ARGOS LTD,5310,Clothing uniforms and laundry,24.99,0.00,24.99
Children and Young Peoples Services,Head of Early Help Inclusion & Vulnerable Children.,085957,Secure Management,Supplies and Services,328041,Clothing uniforms and laundry E328,11-Dec-2020,000009331360305,ARGOS LTD,5310,Clothing uniforms and laundry,219.98,0.00,219.98
"Regeneration, Economy and Growth",Development and Housing,030772,CLLD South,Supplies and Services,304259,Equipment and Materials,11-Dec-2020,000009331360345,Durham County CNCL,9399,Equipment-purchase and rental,11.00,0.00,11.00
Neighbourhoods and Climate Change,Environmental Services,011060,C&G - Hardwick Park Catering,Supplies and Services,304083,Equipment and Materials,11-Dec-2020,000009331360469,AMZNMktplace,5999,Catering equipment,51.19,8.53,42.66
Neighbourhoods and Climate Change,Environmental Services,026591,C&G - Hardwick Park,Supplies and Services,304245,Equipment and Materials,11-Dec-2020,000009331360475,AMZNMktplace,5999,Materials,8.49,1.42,7.07
Children and Young Peoples Services,Head of Childrens Social Care,085332,Middlestone Moor CU,Supplies and Services,324117,Provisions E324,11-Dec-2020,000009331360495,IZ Thames fruit and v,5499,Catering costs - provisions,14.50,0.00,14.50
Children and Young Peoples Services,Head of Childrens Social Care,085332,Middlestone Moor CU,Supplies and Services,348037,Subsistence E348,11-Dec-2020,000009331360497,GREGGS PLC,5812,Subsistence,5.10,0.00,5.10
"Regeneration, Economy and Growth",Development and Housing,031576,B& B - Temp Accom,Supplies and Services,364320,Grants to Voluntary Organisations,11-Dec-2020,000009331360573,AYCLIFFE BIZ,7011,Accommodation assistance,114.00,0.00,114.00
"Regeneration, Economy and Growth",Development and Housing,031576,B& B - Temp Accom,Supplies and Services,364320,Grants to Voluntary Organisations,11-Dec-2020,000009331360579,AYCLIFFE BIZ,7011,Accommodation assistance,114.00,0.00,114.00
"Regeneration, Economy and Growth",Development and Housing,031623,Rough Sleeping Fund,Supplies and Services,364320,Grants to Voluntary Organisations,11-Dec-2020,000009331360583,ASDA STORE 4703,5411,Accommodation assistance,10.88,0.00,10.88
Children and Young Peoples Services,Head of Childrens Social Care,085334,West Rainton Satelite Home,Supplies and Services,304403,Equipment and Materials,11-Dec-2020,000009331360615,AMZNMktplace,5999,Other consumables,29.99,0.00,29.99
Children and Young Peoples Services,Head of Early Help Inclusion & Vulnerable Children.,085957,Secure Management,Supplies and Services,304259,Equipment and Materials,11-Dec-2020,000009331360623,JD SPORTS INTERNET,5941,Equipment-purchase and rental,-58.99,0.00,-58.99
Children and Young Peoples Services,Head of Early Help Inclusion & Vulnerable Children.,085957,Secure Management,Supplies and Services,304259,Equipment and Materials,11-Dec-2020,000009331360629,JD SPORTS INTERNET,5941,Equipment-purchase and rental,-68.99,0.00,-68.99
Resources BK0010,Business Support,052986,CYPS - Locality and Operational Support,Supplies and Services,308011,Furniture,11-Dec-2020,000009331360659,SLEEPWELL,5713,Furniture repair and replacement,274.00,0.00,274.00
Neighbourhoods and Climate Change,Environmental Services,011060,C&G - Hardwick Park Catering,Supplies and Services,324117,Provisions E324,11-Dec-2020,000009331360681,HOPWELLS LTD,5811,Catering costs - provisions,61.79,0.00,61.79
Neighbourhoods and Climate Change,Environmental Services,011060,C&G - Hardwick Park Catering,Supplies and Services,324117,Provisions E324,11-Dec-2020,000009331360685,JR HOLLAND FOODSERVICE,5499,Catering costs - provisions,45.74,0.00,45.74
Neighbourhoods and Climate Change,Environmental Services,010919,C&G - Countryside Site Management,Supplies and Services,304221,Equipment and Materials,11-Dec-2020,000009331360707,B & Q 1343,5200,Direct materials,11.94,0.00,11.94
"Regeneration, Economy and Growth",Development and Housing,031500,Housing Solutions - Core Team,Supplies and Services,352001,Conference Expenses,11-Dec-2020,000009331360739,AYCLIFFE BIZ,7011,Conferencesseminars fees etc,114.00,0.00,114.00
Children and Young Peoples Services,Head of Childrens Social Care,085331,New Lea Childrens Home,Supplies and Services,324117,Provisions E324,11-Dec-2020,000009331360749,ALDI 24 774,5411,Catering costs - provisions,20.09,0.00,20.09
"Regeneration, Economy and Growth",Development and Housing,030554,International Relations 030554,Supplies and Services,304403,Equipment and Materials,11-Dec-2020,000009331360867,AMZNMKTPLACE AMAZON.CO,5999,Other consumables,16.58,0.00,16.58
"Regeneration, Economy and Growth",Development and Housing,030554,International Relations 030554,Supplies and Services,304403,Equipment and Materials,11-Dec-2020,000009331360873,AMZNMKTPLACE AMAZON.CO,5999,Other consumables,16.58,0.00,16.58
"Regeneration, Economy and Growth",Development and Housing,030554,International Relations 030554,Supplies and Services,304403,Equipment and Materials,11-Dec-2020,000009331360875,AMZNMKTPLACE AMAZON.CO,5999,Other consumables,16.58,0.00,16.58
Children and Young Peoples Services,Head of Childrens Social Care,085341,High Etherley Satelite Home,Supplies and Services,328041,Clothing uniforms and laundry E328,11-Dec-2020,000009331360917,BOOHOO.COM,5691,Clothing uniforms and laundry,49.35,0.00,49.35
Children and Young Peoples Services,Head of Childrens Social Care,085341,High Etherley Satelite Home,Supplies and Services,324117,Provisions E324,11-Dec-2020,000009331360919,ASDA SUPERSTORE 4987,5411,Catering costs - provisions,7.00,0.00,7.00
Children and Young Peoples Services,Head of Childrens Social Care,085341,High Etherley Satelite Home,Supplies and Services,384999,Miscellaneous Expenses,11-Dec-2020,000009331360923,LushCOMUK,5977,Other expenses,25.30,0.00,25.30
"Regeneration, Economy and Growth",Corporate Property and Land,030691,Catering - Durham Dales Centre,Supplies and Services,324117,Provisions E324,11-Dec-2020,000009331361065,HOPWELLS LTD,5811,Catering costs - provisions,109.06,0.00,109.06
"Regeneration, Economy and Growth",Corporate Property and Land,030691,Catering - Durham Dales Centre,Supplies and Services,324117,Provisions E324,11-Dec-2020,000009331361071,HOPWELLS LTD,5811,Catering costs - provisions,-10.95,0.00,-10.95
Resources BK0010,Business Support,052986,CYPS - Locality and Operational Support,Supplies and Services,304403,Equipment and Materials,11-Dec-2020,000009331361083,AMZNMktplace,5999,Other consumables,35.28,5.88,29.40
Resources BK0010,Business Support,052986,CYPS - Locality and Operational Support,Supplies and Services,384999,Miscellaneous Expenses,11-Dec-2020,000009331361089,BAKER ROSS,5970,Other expenses,-28.46,0.00,-28.46
"Regeneration, Economy and Growth",Development and Housing,031576,B& B - Temp Accom,Supplies and Services,364320,Grants to Voluntary Organisations,11-Dec-2020,000009331361101,H52STANLEY,7011,Accommodation assistance,497.00,0.00,497.00
Neighbourhoods and Climate Change,Environmental Services,010367,C&G - South Grounds Maintenance,Supplies and Services,304221,Equipment and Materials,11-Dec-2020,000009331361107,B & Q 1120,5200,Direct materials,268.57,0.00,268.57
Adult and Health Services,Head of Adults,055643,Hawthorn House LD Respite Unit,Supplies and Services,324117,Provisions E324,11-Dec-2020,000009331361111,HOPWELLS LTD,5811,Catering costs - provisions,67.09,0.00,67.09
Adult and Health Services,Head of Adults,055643,Hawthorn House LD Respite Unit,Supplies and Services,324117,Provisions E324,11-Dec-2020,000009331361115,HOPWELLS LTD,5811,Catering costs - provisions,42.54,0.00,42.54
Neighbourhoods and Climate Change,Environmental Services,031202,North Pennines - Peatscapes,Supplies and Services,384956,Miscellaneous Expenses,11-Dec-2020,000009331361123,CUMBRIA COUNTY COU,7375,Licences,50.00,0.00,50.00
Children and Young Peoples Services,Head of Education and Skills,070155,Inspection-HQ,Third Party Payments,430100,Rendered by Private Contractors,11-Dec-2020,000009331361151,EB INTRODUCTION TO TH,7399,Payments to sub-contractors,50.00,0.00,50.00
Children and Young Peoples Services,Head of Childrens Social Care,085334,West Rainton Satelite Home,Supplies and Services,324117,Provisions E324,11-Dec-2020,000009331361159,B&M 681 - DURHAM,5399,Catering costs - provisions,43.50,0.00,43.50
Children and Young Peoples Services,Head of Childrens Social Care,085334,West Rainton Satelite Home,Supplies and Services,324117,Provisions E324,11-Dec-2020,000009331361165,TESCO STORES 2371,5411,Catering costs - provisions,12.00,0.00,12.00
Resources BK0010,Digital and Customer Services,065335,School Services - Implementations,Supplies and Services,304303,Equipment and Materials,11-Dec-2020,000009331361175,AMZNMktplace,5999,Network for resale,16.98,0.00,16.98
Children and Young Peoples Services,Head of Childrens Social Care,085334,West Rainton Satelite Home,Supplies and Services,324117,Provisions E324,11-Dec-2020,000009331361207,ASDA SUPERSTORE,5411,Catering costs - provisions,100.89,0.00,100.89
Children and Young Peoples Services,Head of Early Help Inclusion & Vulnerable Children.,085957,Secure Management,Supplies and Services,304403,Equipment and Materials,11-Dec-2020,000009331361229,AMZNMktplace,5999,Other consumables,8.99,1.50,7.49
Children and Young Peoples Services,Head of Early Help Inclusion & Vulnerable Children.,085965,Barnard,Supplies and Services,324117,Provisions E324,11-Dec-2020,000009331361237,WWW.HARFIELDTABLEW,5399,Catering costs - provisions,203.95,33.99,169.96
Children and Young Peoples Services,Head of Early Help Inclusion & Vulnerable Children.,085957,Secure Management,Supplies and Services,304245,Equipment and Materials,11-Dec-2020,000009331361261,EUROFFICE.CO.UK,5943,Materials,15.78,2.63,13.15
Children and Young Peoples Services,Head of Early Help Inclusion & Vulnerable Children.,085957,Secure Management,Supplies and Services,304245,Equipment and Materials,11-Dec-2020,000009331361261 - 1,EUROFFICE.CO.UK,5943,Materials,0.03,,0.03
Resources BK0010,Business Support,052986,CYPS - Locality and Operational Support,Supplies and Services,304259,Equipment and Materials,11-Dec-2020,000009331361325,JD SPORTS INTERNET,5941,Equipment-purchase and rental,68.99,0.00,68.99
Resources BK0010,Business Support,052986,CYPS - Locality and Operational Support,Supplies and Services,304259,Equipment and Materials,11-Dec-2020,000009331361331,JD SPORTS INTERNET,5941,Equipment-purchase and rental,170.00,0.00,170.00
Resources BK0010,Business Support,052986,CYPS - Locality and Operational Support,Supplies and Services,304259,Equipment and Materials,11-Dec-2020,000009331361337,WWW.BLACKS.CO.UK,5941,Equipment-purchase and rental,142.50,0.00,142.50
Children and Young Peoples Services,Head of Early Help Inclusion & Vulnerable Children.,088110,Easington & Peterlee 0-19 Targeted Family Support,Supplies and Services,384302,Miscellaneous Expenses,11-Dec-2020,000009331361351,AMZNMktplace,5999,Activity expenses,8.12,1.36,6.76
"Regeneration, Economy and Growth",Development and Housing,031576,B& B - Temp Accom,Supplies and Services,364320,Grants to Voluntary Organisations,11-Dec-2020,000009331361399,H52STANLEY,7011,Accommodation assistance,299.00,0.00,299.00
Children and Young Peoples Services,Head of Early Help Inclusion & Vulnerable Children.,085801,CDYJS - Support,Supplies and Services,304259,Equipment and Materials,11-Dec-2020,000009331361407,JD SPORTS INTERNET,5941,Equipment-purchase and rental,20.00,0.00,20.00
Children and Young Peoples Services,Head of Childrens Social Care,085351,Framwellgate Moor CU,Supplies and Services,384999,Miscellaneous Expenses,11-Dec-2020,000009331361421,Amazon.co.uk MS39S7A94,5969,Other expenses,88.80,14.80,74.00
Children and Young Peoples Services,Head of Childrens Social Care,085351,Framwellgate Moor CU,Supplies and Services,324117,Provisions E324,11-Dec-2020,000009331361427,SAINSBURYS SACAT 0776,5411,Catering costs - provisions,15.40,0.00,15.40
Children and Young Peoples Services,Head of Childrens Social Care,085351,Framwellgate Moor CU,Supplies and Services,304403,Equipment and Materials,11-Dec-2020,000009331361433,CARD FACTORY,5947,Other consumables,28.95,0.00,28.95
Children and Young Peoples Services,Head of Childrens Social Care,085342,16 Hickstead Rise (previously 9 Cedar Ave),Supplies and Services,324117,Provisions E324,11-Dec-2020,000009331361445,TESCO STORES 2916,5411,Catering costs - provisions,79.84,0.00,79.84
Children and Young Peoples Services,Head of Education and Skills,071802,Louisa Cent Nursery,Supplies and Services,324117,Provisions E324,11-Dec-2020,000009331361451,ASDA GROCERIES ONLINE,5411,Catering costs - provisions,98.91,0.00,98.91
Children and Young Peoples Services,Head of Education and Skills,070169,Durham SSP,Supplies and Services,384199,Miscellaneous Expenses,11-Dec-2020,000009331361497,WWW.WHYBUYNEW.CO.UK,5732,Other hired and contracted services,134.00,0.00,134.00
Children and Young Peoples Services,Head of Education and Skills,070169,Durham SSP,Supplies and Services,384199,Miscellaneous Expenses,11-Dec-2020,000009331361503,WWW.DJANDDISCOSTUF,5065,Other hired and contracted services,139.00,23.17,115.83
Children and Young Peoples Services,Head of Education and Skills,070169,Durham SSP,Supplies and Services,384199,Miscellaneous Expenses,11-Dec-2020,000009331361507,WWW.WHYBUYNEW.CO.UK,5732,Other hired and contracted services,-134.00,0.00,-134.00
Resources BK0010,Finance & Transactional Services,065180,Collections,Supplies and Services,338048,Services,11-Dec-2020,000009331361531,CCBCOFFICE,9222,Court costs 338048,308.00,0.00,308.00
Children and Young Peoples Services,Head of Childrens Social Care,085333,Coxhoe Satelite Home,Supplies and Services,324117,Provisions E324,11-Dec-2020,000009331361575,LIDL GB DURHAM,5411,Catering costs - provisions,75.95,0.00,75.95
Children and Young Peoples Services,Head of Childrens Social Care,085331,New Lea Childrens Home,Supplies and Services,324117,Provisions E324,11-Dec-2020,000009331361607,ASDA SUPERSTORE,5411,Catering costs - provisions,141.33,0.00,141.33
Children and Young Peoples Services,Head of Childrens Social Care,085331,New Lea Childrens Home,Supplies and Services,348037,Subsistence E348,11-Dec-2020,000009331361613,MCDONALDS 1555,5814,Subsistence,8.01,0.00,8.01
Children and Young Peoples Services,Head of Childrens Social Care,085331,New Lea Childrens Home,Supplies and Services,304259,Equipment and Materials,11-Dec-2020,000009331361619,J D SPORTS,5941,Equipment-purchase and rental,220.10,0.00,220.10
Resources BK0010,Business Support,069010,Administration 069010,Employees,040149,Recruitment Instruction and Training,11-Dec-2020,000009331361625,GOVNET EVENTS,8699,Training-all costs,-354.00,0.00,-354.00
Adult and Health Services,Head of Adults,055310,Positive Journeys (Tudhoe),Supplies and Services,324117,Provisions E324,11-Dec-2020,000009331361629,ASDA STORES,5411,Catering costs - provisions,0.84,0.00,0.84
"Regeneration, Economy and Growth",Corporate Property and Land,021235,Catering - Wharton Park,Supplies and Services,324117,Provisions E324,11-Dec-2020,000009331361657,HOPWELLS LTD,5811,Catering costs - provisions,22.50,3.75,18.75
"Regeneration, Economy and Growth",Corporate Property and Land,021235,Catering - Wharton Park,Supplies and Services,324117,Provisions E324,11-Dec-2020,000009331361657 - 1,HOPWELLS LTD,5811,Catering costs - provisions,44.94,,44.94
"Regeneration, Economy and Growth",Corporate Property and Land,021235,Catering - Wharton Park,Supplies and Services,324117,Provisions E324,11-Dec-2020,000009331361663,JR HOLLAND FOODSERVICE,5499,Catering costs - provisions,9.56,0.00,9.56
Children and Young Peoples Services,Head of Childrens Social Care,085551,Short Break Services-Park Hse Sher,Supplies and Services,304403,Equipment and Materials,11-Dec-2020,000009331361695,AMZNMktplace,5999,Other consumables,25.99,0.00,25.99
Children and Young Peoples Services,Head of Childrens Social Care,085551,Short Break Services-Park Hse Sher,Supplies and Services,348037,Subsistence E348,11-Dec-2020,000009331361699,FISH FACE,5814,Subsistence,33.50,0.00,33.50
Adult and Health Services,Head of Adults,055643,Hawthorn House LD Respite Unit,Supplies and Services,324117,Provisions E324,11-Dec-2020,000009357797089,BATLEYS PERTH,5300,Catering costs - provisions,16.14,2.69,13.45
Adult and Health Services,Head of Adults,055643,Hawthorn House LD Respite Unit,Supplies and Services,324117,Provisions E324,11-Dec-2020,000009357797089 - 1,BATLEYS PERTH,5300,Catering costs - provisions,90.52,,90.52
Children and Young Peoples Services,Head of Education and Skills,071801,Selby Cottage Childcare Centre,Supplies and Services,304403,Equipment and Materials,12-Dec-2020,000009331359779,AMZNMktplace,5999,Other consumables,79.98,13.34,66.64
"Regeneration, Economy and Growth",Development and Housing,031576,B& B - Temp Accom,Supplies and Services,364320,Grants to Voluntary Organisations,12-Dec-2020,000009331359897,BUDGET H EXPRESS HOTEL,7011,Accommodation assistance,76.26,12.71,63.55
"Regeneration, Economy and Growth",Development and Housing,031576,B& B - Temp Accom,Supplies and Services,364320,Grants to Voluntary Organisations,12-Dec-2020,000009331359897 - 1,BUDGET H EXPRESS HOTEL,7011,Accommodation assistance,190.74,,190.74
Children and Young Peoples Services,Head of Childrens Social Care,085342,16 Hickstead Rise (previously 9 Cedar Ave),Supplies and Services,328041,Clothing uniforms and laundry E328,12-Dec-2020,000009331360029,PRIMARK,5651,Clothing uniforms and laundry,58.00,0.00,58.00
Children and Young Peoples Services,Head of Childrens Social Care,085342,16 Hickstead Rise (previously 9 Cedar Ave),Supplies and Services,384999,Miscellaneous Expenses,12-Dec-2020,000009331360037,BODYCARE,5977,Other expenses,9.88,0.00,9.88
Children and Young Peoples Services,Head of Childrens Social Care,085342,16 Hickstead Rise (previously 9 Cedar Ave),Supplies and Services,328041,Clothing uniforms and laundry E328,12-Dec-2020,000009331360043,ARGOS LTD,5310,Clothing uniforms and laundry,39.99,0.00,39.99
Children and Young Peoples Services,Head of Childrens Social Care,085342,16 Hickstead Rise (previously 9 Cedar Ave),Supplies and Services,348037,Subsistence E348,12-Dec-2020,000009331360049,MCDONALDS,5814,Subsistence,11.40,0.00,11.40
Children and Young Peoples Services,Head of Childrens Social Care,085342,16 Hickstead Rise (previously 9 Cedar Ave),Supplies and Services,324117,Provisions E324,12-Dec-2020,000009331360053,TESCO STORES 2916,5411,Catering costs - provisions,5.00,0.00,5.00
Children and Young Peoples Services,Head of Early Help Inclusion & Vulnerable Children.,088104,BA/BC/Crook 0-19 Targeted Family Support,Supplies and Services,324117,Provisions E324,12-Dec-2020,000009331360231,HOME BARGAINS,5251,Catering costs - provisions,89.00,0.00,89.00
Children and Young Peoples Services,Head of Education and Skills,071732,Dean Bank Childcare,Supplies and Services,304403,Equipment and Materials,12-Dec-2020,000009331360447,AMZNMktplace,5999,Other consumables,9.38,1.56,7.82
Children and Young Peoples Services,Head of Early Help Inclusion & Vulnerable Children.,085957,Secure Management,Supplies and Services,324117,Provisions E324,12-Dec-2020,000009331360641,ASDA GROCERIES ONLINE,5411,Catering costs - provisions,99.67,0.00,99.67
Children and Young Peoples Services,Head of Early Help Inclusion & Vulnerable Children.,085957,Secure Management,Supplies and Services,324117,Provisions E324,12-Dec-2020,000009331360653,ASDA GROCERIES ONLINE,5411,Catering costs - provisions,-0.08,0.00,-0.08
Children and Young Peoples Services,Head of Childrens Social Care,085331,New Lea Childrens Home,Supplies and Services,348037,Subsistence E348,12-Dec-2020,000009331360755,MCDONALDS,5814,Subsistence,5.39,0.00,5.39
Children and Young Peoples Services,Head of Childrens Social Care,085331,New Lea Childrens Home,Supplies and Services,324117,Provisions E324,12-Dec-2020,000009331360757,TESCO STORES 5457,5411,Catering costs - provisions,5.60,0.00,5.60
Children and Young Peoples Services,Head of Childrens Social Care,085342,16 Hickstead Rise (previously 9 Cedar Ave),Supplies and Services,324117,Provisions E324,12-Dec-2020,000009331361193,TESCO STORES 2916,5411,Catering costs - provisions,23.74,0.00,23.74
Children and Young Peoples Services,Head of Childrens Social Care,085342,16 Hickstead Rise (previously 9 Cedar Ave),Transport,215995,Running Costs of Vehicles,12-Dec-2020,000009331361195,TESCO PFS 4088,5541,Vehicle running expenses,14.00,0.00,14.00
Children and Young Peoples Services,Head of Early Help Inclusion & Vulnerable Children.,085952,Secure Education,Supplies and Services,304245,Equipment and Materials,12-Dec-2020,000009331361241,Amazon.co.uk MS6JM7E24,5969,Materials,27.00,4.50,22.50
Children and Young Peoples Services,Head of Childrens Social Care,085332,Middlestone Moor CU,Supplies and Services,324117,Provisions E324,12-Dec-2020,000009331361379,ASDA STORES,5411,Catering costs - provisions,33.06,0.00,33.06
